Workbook

Sheet 10851 pre-OGs
A1: Orthogroup | B1: A.edulis | C1: A.erythronioides | D1: A.wanzhensis | E1: E.albidum | F1: E.californicum | G1: E.japonicum | H1: E.sibiricum | I1: G.filiformis | J1: G.nakaiana | K1: N.campanulatum | L1: T.acuminata | M1: T.albertii | N1: T.altaica | O1: T.armena | P1: T.biflora | Q1: T.biflora2 | R1: T.biflora3 | S1: T.clusiana | T1: T.cretica | U1: T.dasystemon | V1: T.eichleri | W1: T.ferganica | X1: T.gesneriana | Y1: T.greigii | Z1: T.grengiolensis | AA1: T.heteropetala | AB1: T.heterophylla | AC1: T.hisarica | AD1: T.humilis | AE1: T.humilis2 | AF1: T.iliensis | AG1: T.kaufmanniana | AH1: T.kolpakowskiana | AI1: T.linifolia | AJ1: T.marjolettii | AK1: T.montana | AL1: T.orphanidea | AM1: T.patens | AN1: T.praecox | AO1: T.praestans | AP1: T.primulina | AQ1: T.sailimuensis | AR1: T.saxatilis | AS1: T.schrenkii | AT1: T.sinkiangensis | AU1: T.sprengeri | AV1: T.tarda | AW1: T.tetraphylla | AX1: T.thianschanica | AY1: T.turkestanica | AZ1: T.urumiensis | BA1: 0 | BB1: Total | BC1: Var | BD1: average | BE1: median | BF1: mode
A2: OG0000000 | B2: 10 | C2: 11 | D2: 7 | E2: 12 | F2: 5 | G2: 4 | H2: 6 | I2: 510 | J2: 8 | K2: 1 | L2: 4 | M2: 10 | N2: 157 | O2: 11 | P2: 13 | Q2: 11 | R2: 16 | S2: 11 | T2: 12 | U2: 128 | V2: 2 | W2: 9 | X2: 1 | Y2: 6 | Z2: 7 | AA2: 2 | AB2: 114 | AC2: 15 | AD2: 16 | AE2: 16 | AF2: 121 | AG2: 11 | AH2: 13 | AI2: 10 | AJ2: 7 | AK2: 9 | AL2: 22 | AM2: 140 | AN2: 8 | AO2: 10 | AP2: 9 | AQ2: 742 | AR2: 9 | AS2: 54 | AT2: 26 | AU2: 7 | AV2: 13 | AW2: 175 | AX2: 141 | AY2: 11 | AZ2: 17 | BA2: 0 | BB2: 2690 | BC2: =VAR(B2:AZ2) -> 16312.43373 | BD2: =AVERAGE(B2:AZ2) -> 52.74509804 | BE2: =MEDIAN(B2:AZ2) -> 11 | BF2: =MODE(B2:AZ2) -> 11
A3: OG0000001 | B3: 20 | C3: 19 | D3: 20 | E3: 33 | F3: 20 | G3: 33 | H3: 23 | I3: 48 | J3: 28 | K3: 51 | L3: 42 | M3: 70 | N3: 34 | O3: 30 | P3: 37 | Q3: 64 | R3: 59 | S3: 42 | T3: 52 | U3: 36 | V3: 46 | W3: 77 | X3: 63 | Y3: 31 | Z3: 72 | AA3: 22 | AB3: 29 | AC3: 51 | AD3: 24 | AE3: 58 | AF3: 95 | AG3: 70 | AH3: 82 | AI3: 62 | AJ3: 43 | AK3: 59 | AL3: 55 | AM3: 15 | AN3: 75 | AO3: 64 | AP3: 51 | AQ3: 27 | AR3: 38 | AS3: 69 | AT3: 79 | AU3: 49 | AV3: 65 | AW3: 90 | AX3: 93 | AY3: 66 | AZ3: 60 | BA3: 0 | BB3: 2541 | BC3: =VAR(B3:AZ3) -> 454.2282353 | BD3: =AVERAGE(B3:AZ3) -> 49.82352941 | BE3: =MEDIAN(B3:AZ3) -> 51 | BF3: =MODE(B3:AZ3) -> 20
A4: OG0000002 | B4: 4 | C4: 3 | D4: 6 | E4: 5 | F4: 8 | G4: 9 | H4: 5 | I4: 457 | J4: 8 | K4: 5 | L4: 4 | M4: 5 | N4: 8 | O4: 7 | P4: 14 | Q4: 24 | R4: 20 | S4: 6 | T4: 9 | U4: 137 | V4: 5 | W4: 6 | X4: 9 | Y4: 12 | Z4: 3 | AA4: 5 | AB4: 125 | AC4: 9 | AD4: 10 | AE4: 13 | AF4: 76 | AG4: 5 | AH4: 7 | AI4: 6 | AJ4: 5 | AK4: 4 | AL4: 14 | AM4: 98 | AN4: 14 | AO4: 8 | AP4: 7 | AQ4: 12 | AR4: 7 | AS4: 59 | AT4: 8 | AU4: 8 | AV4: 10 | AW4: 194 | AX4: 174 | AY4: 39 | AZ4: 12 | BA4: 0 | BB4: 1708 | BC4: 5560.294902 | BD4: 33.49019608 | BE4: 8 | BF4: 5
A5: OG0000003 | B5: 38 | C5: 32 | D5: 72 | E5: 28 | F5: 28 | G5: 46 | H5: 4 | I5: 4 | J5: 13 | K5: 28 | L5: 7 | M5: 0 | N5: 14 | O5: 23 | P5: 6 | Q5: 16 | R5: 17 | S5: 10 | T5: 27 | U5: 22 | V5: 3 | W5: 16 | X5: 19 | Y5: 27 | Z5: 7 | AA5: 41 | AB5: 18 | AC5: 16 | AD5: 37 | AE5: 30 | AF5: 14 | AG5: 36 | AH5: 41 | AI5: 24 | AJ5: 10 | AK5: 46 | AL5: 26 | AM5: 21 | AN5: 19 | AO5: 19 | AP5: 43 | AQ5: 19 | AR5: 44 | AS5: 14 | AT5: 33 | AU5: 9 | AV5: 10 | AW5: 20 | AX5: 27 | AY5: 6 | AZ5: 34 | BA5: 1 | BB5: 1164 | BC5: 201.8682353 | BD5: 22.82352941 | BE5: 20 | BF5: 19
A6: OG0000004 | B6: 23 | C6: 14 | D6: 11 | E6: 3 | F6: 12 | G6: 0 | H6: 2 | I6: 0 | J6: 0 | K6: 0 | L6: 4 | M6: 5 | N6: 17 | O6: 14 | P6: 62 | Q6: 47 | R6: 47 | S6: 16 | T6: 23 | U6: 29 | V6: 16 | W6: 18 | X6: 9 | Y6: 19 | Z6: 6 | AA6: 10 | AB6: 10 | AC6: 3 | AD6: 28 | AE6: 28 | AF6: 25 | AG6: 17 | AH6: 8 | AI6: 22 | AJ6: 6 | AK6: 23 | AL6: 36 | AM6: 17 | AN6: 9 | AO6: 13 | AP6: 25 | AQ6: 25 | AR6: 27 | AS6: 34 | AT6: 32 | AU6: 8 | AV6: 21 | AW6: 17 | AX6: 24 | AY6: 67 | AZ6: 18 | BA6: 4 | BB6: 950 | BC6: 215.1984314 | BD6: 18.62745098 | BE6: 17 | BF6: 0
A7: OG0000005 | B7: 42 | C7: 60 | D7: 74 | E7: 58 | F7: 11 | G7: 46 | H7: 4 | I7: 2 | J7: 1 | K7: 2 | L7: 5 | M7: 3 | N7: 35 | O7: 2 | P7: 3 | Q7: 3 | R7: 4 | S7: 8 | T7: 16 | U7: 32 | V7: 3 | W7: 13 | X7: 12 | Y7: 12 | Z7: 8 | AA7: 19 | AB7: 11 | AC7: 7 | AD7: 10 | AE7: 9 | AF7: 40 | AG7: 9 | AH7: 16 | AI7: 12 | AJ7: 6 | AK7: 13 | AL7: 14 | AM7: 22 | AN7: 7 | AO7: 23 | AP7: 19 | AQ7: 30 | AR7: 21 | AS7: 28 | AT7: 21 | AU7: 24 | AV7: 7 | AW7: 57 | AX7: 33 | AY7: 5 | AZ7: 15 | BA7: 0 | BB7: 937 | BC7: 296.3584314 | BD7: 18.37254902 | BE7: 12 | BF7: 3
A8: OG0000006 | B8: 20 | C8: 9 | D8: 16 | E8: 8 | F8: 10 | G8: 10 | H8: 13 | I8: 4 | J8: 5 | K8: 2 | L8: 13 | M8: 26 | N8: 13 | O8: 9 | P8: 16 | Q8: 31 | R8: 26 | S8: 19 | T8: 27 | U8: 9 | V8: 21 | W8: 26 | X8: 15 | Y8: 14 | Z8: 14 | AA8: 9 | AB8: 15 | AC8: 12 | AD8: 10 | AE8: 27 | AF8: 22 | AG8: 35 | AH8: 14 | AI8: 20 | AJ8: 20 | AK8: 18 | AL8: 23 | AM8: 11 | AN8: 23 | AO8: 28 | AP8: 19 | AQ8: 6 | AR8: 36 | AS8: 7 | AT8: 25 | AU8: 18 | AV8: 23 | AW8: 17 | AX8: 8 | AY8: 26 | AZ8: 34 | BA8: 0 | BB8: 882 | BC8: 70.61176471 | BD8: 17.29411765 | BE8: 16 | BF8: 9
A9: OG0000007 | B9: 21 | C9: 6 | D9: 21 | E9: 11 | F9: 12 | G9: 4 | H9: 8 | I9: 2 | J9: 10 | K9: 5 | L9: 13 | M9: 1 | N9: 18 | O9: 9 | P9: 19 | Q9: 34 | R9: 23 | S9: 35 | T9: 13 | U9: 27 | V9: 11 | W9: 21 | X9: 9 | Y9: 16 | Z9: 18 | AA9: 1 | AB9: 13 | AC9: 9 | AD9: 13 | AE9: 16 | AF9: 29 | AG9: 18 | AH9: 11 | AI9: 22 | AJ9: 14 | AK9: 17 | AL9: 30 | AM9: 10 | AN9: 16 | AO9: 21 | AP9: 8 | AQ9: 24 | AR9: 31 | AS9: 38 | AT9: 22 | AU9: 10 | AV9: 29 | AW9: 17 | AX9: 34 | AY9: 33 | AZ9: 16 | BA9: 0 | BB9: 869 | BC9: 88.79843137 | BD9: 17.03921569 | BE9: 16 | BF9: 21
A10: OG0000008 | B10: 12 | C10: 8 | D10: 18 | E10: 8 | F10: 8 | G10: 5 | H10: 2 | I10: 3 | J10: 1 | K10: 7 | L10: 8 | M10: 15 | N10: 16 | O10: 15 | P10: 18 | Q10: 28 | R10: 30 | S10: 7 | T10: 15 | U10: 15 | V10: 21 | W10: 21 | X10: 18 | Y10: 12 | Z10: 7 | AA10: 14 | AB10: 13 | AC10: 34 | AD10: 15 | AE10: 12 | AF10: 40 | AG10: 26 | AH10: 16 | AI10: 5 | AJ10: 11 | AK10: 8 | AL10: 23 | AM10: 13 | AN10: 18 | AO10: 27 | AP10: 12 | AQ10: 14 | AR10: 18 | AS10: 19 | AT10: 27 | AU10: 9 | AV10: 27 | AW10: 63 | AX10: 18 | AY10: 45 | AZ10: 23 | BA10: 0 | BB10: 868 | BC10: 128.8996078 | BD10: 17.01960784 | BE10: 15 | BF10: 18
A11: OG0000009 | B11: 0 | C11: 0 | D11: 0 | E11: 0 | F11: 0 | G11: 0 | H11: 0 | I11: 0 | J11: 0 | K11: 0 | L11: 10 | M11: 1 | N11: 26 | O11: 20 | P11: 43 | Q11: 43 | R11: 30 | S11: 7 | T11: 29 | U11: 28 | V11: 5 | W11: 9 | X11: 10 | Y11: 29 | Z11: 9 | AA11: 48 | AB11: 8 | AC11: 3 | AD11: 45 | AE11: 33 | AF11: 12 | AG11: 27 | AH11: 16 | AI11: 12 | AJ11: 5 | AK11: 12 | AL11: 40 | AM11: 21 | AN11: 19 | AO11: 11 | AP11: 29 | AQ11: 9 | AR11: 37 | AS11: 8 | AT11: 15 | AU11: 22 | AV11: 25 | AW11: 16 | AX11: 14 | AY11: 40 | AZ11: 40 | BA11: 10 | BB11: 866 | BC11: 213.3796078 | BD11: 16.98039216 | BE11: 12 | BF11: 0
A12: OG0000010 | B12: 8 | C12: 5 | D12: 15 | E12: 4 | F12: 2 | G12: 15 | H12: 18 | I12: 0 | J12: 0 | K12: 1 | L12: 7 | M12: 3 | N12: 7 | O12: 9 | P12: 29 | Q12: 20 | R12: 27 | S12: 21 | T12: 22 | U12: 10 | V12: 10 | W12: 8 | X12: 9 | Y12: 3 | Z12: 7 | AA12: 19 | AB12: 4 | AC12: 24 | AD12: 17 | AE12: 29 | AF12: 26 | AG12: 19 | AH12: 22 | AI12: 31 | AJ12: 10 | AK12: 14 | AL12: 45 | AM12: 8 | AN12: 17 | AO12: 20 | AP12: 13 | AQ12: 27 | AR12: 40 | AS12: 12 | AT12: 26 | AU12: 14 | AV12: 12 | AW12: 19 | AX12: 26 | AY12: 30 | AZ12: 35 | BA12: 2 | BB12: 819 | BC12: 113.5364706 | BD12: 16.05882353 | BE12: 15 | BF12: 8
A13: OG0000011 | B13: 11 | C13: 12 | D13: 23 | E13: 9 | F13: 8 | G13: 9 | H13: 14 | I13: 3 | J13: 1 | K13: 3 | L13: 5 | M13: 12 | N13: 15 | O13: 11 | P13: 35 | Q13: 18 | R13: 19 | S13: 13 | T13: 13 | U13: 8 | V13: 20 | W13: 22 | X13: 7 | Y13: 16 | Z13: 5 | AA13: 14 | AB13: 10 | AC13: 13 | AD13: 16 | AE13: 28 | AF13: 20 | AG13: 23 | AH13: 21 | AI13: 15 | AJ13: 13 | AK13: 15 | AL13: 35 | AM13: 11 | AN13: 14 | AO13: 22 | AP13: 19 | AQ13: 13 | AR13: 16 | AS13: 14 | AT13: 19 | AU13: 11 | AV13: 32 | AW13: 17 | AX13: 21 | AY13: 32 | AZ13: 24 | BA13: 0 | BB13: 800 | BC13: 61.29960784 | BD13: 15.68627451 | BE13: 14 | BF13: 13
A14: OG0000012 | B14: 2 | C14: 5 | D14: 5 | E14: 22 | F14: 9 | G14: 9 | H14: 18 | I14: 1 | J14: 3 | K14: 1 | L14: 9 | M14: 23 | N14: 12 | O14: 16 | P14: 29 | Q14: 24 | R14: 22 | S14: 34 | T14: 15 | U14: 7 | V14: 22 | W14: 27 | X14: 16 | Y14: 28 | Z14: 18 | AA14: 17 | AB14: 4 | AC14: 25 | AD14: 14 | AE14: 14 | AF14: 18 | AG14: 33 | AH14: 32 | AI14: 12 | AJ14: 14 | AK14: 8 | AL14: 13 | AM14: 7 | AN14: 8 | AO14: 29 | AP14: 8 | AQ14: 13 | AR14: 12 | AS14: 7 | AT14: 35 | AU14: 7 | AV14: 14 | AW14: 15 | AX14: 7 | AY14: 31 | AZ14: 24 | BA14: 0 | BB14: 798 | BC14: 89.19294118 | BD14: 15.64705882 | BE14: 14 | BF14: 7
A15: OG0000013 | B15: 15 | C15: 20 | D15: 27 | E15: 16 | F15: 9 | G15: 2 | H15: 10 | I15: 7 | J15: 8 | K15: 2 | L15: 3 | M15: 11 | N15: 3 | O15: 3 | P15: 23 | Q15: 41 | R15: 34 | S15: 16 | T15: 30 | U15: 16 | V15: 4 | W15: 20 | X15: 9 | Y15: 10 | Z15: 11 | AA15: 9 | AB15: 4 | AC15: 9 | AD15: 24 | AE15: 19 | AF15: 16 | AG15: 21 | AH15: 10 | AI15: 10 | AJ15: 7 | AK15: 6 | AL15: 23 | AM15: 10 | AN15: 4 | AO15: 12 | AP15: 9 | AQ15: 17 | AR15: 32 | AS15: 15 | AT15: 9 | AU15: 8 | AV15: 39 | AW15: 18 | AX15: 24 | AY15: 34 | AZ15: 35 | BA15: 0 | BB15: 774 | BC15: 105.2282353 | BD15: 15.17647059 | BE15: 11 | BF15: 9
A16: OG0000014 | B16: 14 | C16: 3 | D16: 12 | E16: 10 | F16: 11 | G16: 18 | H16: 10 | I16: 0 | J16: 2 | K16: 12 | L16: 4 | M16: 10 | N16: 5 | O16: 4 | P16: 41 | Q16: 37 | R16: 43 | S16: 23 | T16: 12 | U16: 11 | V16: 16 | W16: 14 | X16: 15 | Y16: 19 | Z16: 7 | AA16: 10 | AB16: 2 | AC16: 15 | AD16: 10 | AE16: 13 | AF16: 2 | AG16: 22 | AH16: 9 | AI16: 11 | AJ16: 7 | AK16: 5 | AL16: 25 | AM16: 3 | AN16: 13 | AO16: 12 | AP16: 11 | AQ16: 14 | AR16: 16 | AS16: 7 | AT16: 17 | AU16: 10 | AV16: 28 | AW16: 2 | AX16: 18 | AY16: 82 | AZ16: 40 | BA16: 1 | BB16: 757 | BC16: 191.974902 | BD16: 14.84313725 | BE16: 12 | BF16: 10
A17: OG0000015 | B17: 9 | C17: 10 | D17: 15 | E17: 14 | F17: 9 | G17: 4 | H17: 2 | I17: 38 | J17: 11 | K17: 1 | L17: 11 | M17: 8 | N17: 20 | O17: 11 | P17: 18 | Q17: 23 | R17: 20 | S17: 11 | T17: 13 | U17: 19 | V17: 12 | W17: 20 | X17: 8 | Y17: 12 | Z17: 11 | AA17: 2 | AB17: 13 | AC17: 14 | AD17: 14 | AE17: 11 | AF17: 35 | AG17: 7 | AH17: 6 | AI17: 10 | AJ17: 5 | AK17: 5 | AL17: 13 | AM17: 9 | AN17: 16 | AO17: 23 | AP17: 9 | AQ17: 22 | AR17: 25 | AS17: 33 | AT17: 12 | AU17: 6 | AV17: 14 | AW17: 44 | AX17: 31 | AY17: 20 | AZ17: 18 | BA17: 0 | BB17: 747 | BC17: 85.35294118 | BD17: 14.64705882 | BE17: 12 | BF17: 11
A18: OG0000016 | B18: 4 | C18: 14 | D18: 4 | E18: 20 | F18: 7 | G18: 16 | H18: 5 | I18: 1 | J18: 1 | K18: 0 | L18: 5 | M18: 27 | N18: 4 | O18: 7 | P18: 33 | Q18: 21 | R18: 18 | S18: 20 | T18: 5 | U18: 4 | V18: 15 | W18: 28 | X18: 16 | Y18: 11 | Z18: 13 | AA18: 7 | AB18: 3 | AC18: 15 | AD18: 20 | AE18: 14 | AF18: 6 | AG18: 41 | AH18: 22 | AI18: 16 | AJ18: 21 | AK18: 14 | AL18: 16 | AM18: 7 | AN18: 16 | AO18: 18 | AP18: 9 | AQ18: 25 | AR18: 4 | AS18: 26 | AT18: 32 | AU18: 6 | AV18: 14 | AW18: 11 | AX18: 12 | AY18: 27 | AZ18: 19 | BA18: 1 | BB18: 720 | BC18: 86.62588235 | BD18: 14.11764706 | BE18: 14 | BF18: 4
A19: OG0000017 | B19: 3 | C19: 2 | D19: 9 | E19: 22 | F19: 9 | G19: 6 | H19: 4 | I19: 0 | J19: 0 | K19: 1 | L19: 9 | M19: 5 | N19: 25 | O19: 12 | P19: 13 | Q19: 11 | R19: 15 | S19: 22 | T19: 18 | U19: 23 | V19: 23 | W19: 21 | X19: 19 | Y19: 21 | Z19: 19 | AA19: 6 | AB19: 9 | AC19: 17 | AD19: 7 | AE19: 12 | AF19: 27 | AG19: 25 | AH19: 16 | AI19: 25 | AJ19: 18 | AK19: 21 | AL19: 14 | AM19: 6 | AN19: 13 | AO19: 21 | AP19: 15 | AQ19: 18 | AR19: 14 | AS19: 16 | AT19: 17 | AU19: 5 | AV19: 16 | AW19: 22 | AX19: 25 | AY19: 11 | AZ19: 11 | BA19: 2 | BB19: 719 | BC19: 55.97019608 | BD19: 14.09803922 | BE19: 15 | BF19: 9
A20: OG0000018 | B20: 6 | C20: 4 | D20: 5 | E20: 21 | F20: 15 | G20: 0 | H20: 8 | I20: 2 | J20: 4 | K20: 12 | L20: 8 | M20: 13 | N20: 8 | O20: 21 | P20: 37 | Q20: 31 | R20: 28 | S20: 19 | T20: 9 | U20: 3 | V20: 27 | W20: 19 | X20: 8 | Y20: 35 | Z20: 5 | AA20: 21 | AB20: 2 | AC20: 9 | AD20: 17 | AE20: 12 | AF20: 4 | AG20: 35 | AH20: 47 | AI20: 7 | AJ20: 10 | AK20: 12 | AL20: 27 | AM20: 1 | AN20: 6 | AO20: 8 | AP20: 13 | AQ20: 17 | AR20: 14 | AS20: 13 | AT20: 17 | AU20: 6 | AV20: 10 | AW20: 6 | AX20: 7 | AY20: 34 | AZ20: 15 | BA20: 1 | BB20: 718 | BC20: 116.3137255 | BD20: 14.07843137 | BE20: 12 | BF20: 8
A21: OG0000019 | B21: 16 | C21: 7 | D21: 6 | E21: 3 | F21: 5 | G21: 4 | H21: 5 | I21: 0 | J21: 0 | K21: 0 | L21: 8 | M21: 21 | N21: 10 | O21: 7 | P21: 22 | Q21: 23 | R21: 21 | S21: 20 | T21: 18 | U21: 9 | V21: 14 | W21: 17 | X21: 15 | Y21: 15 | Z21: 12 | AA21: 9 | AB21: 10 | AC21: 16 | AD21: 9 | AE21: 12 | AF21: 42 | AG21: 16 | AH21: 16 | AI21: 7 | AJ21: 8 | AK21: 14 | AL21: 22 | AM21: 13 | AN21: 19 | AO21: 15 | AP21: 14 | AQ21: 15 | AR21: 24 | AS21: 13 | AT21: 23 | AU21: 10 | AV21: 20 | AW21: 21 | AX21: 24 | AY21: 27 | AZ21: 20 | BA21: 3 | BB21: 717 | BC21: 63.09647059 | BD21: 14.05882353 | BE21: 14 | BF21: 16
A22: OG0000020 | B22: 18 | C22: 11 | D22: 7 | E22: 20 | F22: 13 | G22: 19 | H22: 10 | I22: 2 | J22: 1 | K22: 6 | L22: 6 | M22: 5 | N22: 15 | O22: 11 | P22: 25 | Q22: 17 | R22: 13 | S22: 13 | T22: 9 | U22: 9 | V22: 19 | W22: 22 | X22: 7 | Y22: 16 | Z22: 6 | AA22: 8 | AB22: 9 | AC22: 10 | AD22: 22 | AE22: 22 | AF22: 14 | AG22: 13 | AH22: 10 | AI22: 13 | AJ22: 9 | AK22: 7 | AL22: 15 | AM22: 8 | AN22: 13 | AO22: 11 | AP22: 9 | AQ22: 26 | AR22: 13 | AS22: 24 | AT22: 25 | AU22: 15 | AV22: 15 | AW22: 29 | AX22: 24 | AY22: 22 | AZ22: 25 | BA22: 0 | BB22: 711 | BC22: 46.37647059 | BD22: 13.94117647 | BE22: 13 | BF22: 13
A23: OG0000021 | B23: 11 | C23: 9 | D23: 19 | E23: 14 | F23: 8 | G23: 13 | H23: 8 | I23: 14 | J23: 8 | K23: 8 | L23: 16 | M23: 11 | N23: 18 | O23: 18 | P23: 20 | Q23: 24 | R23: 15 | S23: 8 | T23: 14 | U23: 7 | V23: 3 | W23: 17 | X23: 16 | Y23: 10 | Z23: 11 | AA23: 16 | AB23: 9 | AC23: 15 | AD23: 7 | AE23: 13 | AF23: 15 | AG23: 22 | AH23: 24 | AI23: 5 | AJ23: 18 | AK23: 11 | AL23: 14 | AM23: 15 | AN23: 10 | AO23: 23 | AP23: 12 | AQ23: 14 | AR23: 14 | AS23: 12 | AT23: 27 | AU23: 20 | AV23: 11 | AW23: 15 | AX23: 20 | AY23: 6 | AZ23: 20 | BA23: 0 | BB23: 708 | BC23: 28.74588235 | BD23: 13.88235294 | BE23: 14 | BF23: 14
A24: OG0000022 | B24: 22 | C24: 6 | D24: 20 | E24: 21 | F24: 5 | G24: 4 | H24: 5 | I24: 11 | J24: 4 | K24: 10 | L24: 7 | M24: 12 | N24: 4 | O24: 15 | P24: 28 | Q24: 15 | R24: 11 | S24: 32 | T24: 10 | U24: 4 | V24: 10 | W24: 18 | X24: 3 | Y24: 23 | Z24: 9 | AA24: 11 | AB24: 6 | AC24: 23 | AD24: 8 | AE24: 19 | AF24: 6 | AG24: 31 | AH24: 33 | AI24: 20 | AJ24: 5 | AK24: 11 | AL24: 28 | AM24: 13 | AN24: 10 | AO24: 23 | AP24: 8 | AQ24: 9 | AR24: 21 | AS24: 4 | AT24: 16 | AU24: 19 | AV24: 13 | AW24: 8 | AX24: 5 | AY24: 20 | AZ24: 23 | BA24: 0 | BB24: 702 | BC24: 69.58352941 | BD24: 13.76470588 | BE24: 11 | BF24: 4
A25: OG0000023 | B25: 15 | C25: 16 | D25: 22 | E25: 10 | F25: 0 | G25: 6 | H25: 3 | I25: 3 | J25: 8 | K25: 3 | L25: 9 | M25: 4 | N25: 3 | O25: 24 | P25: 14 | Q25: 12 | R25: 18 | S25: 7 | T25: 23 | U25: 11 | V25: 14 | W25: 14 | X25: 4 | Y25: 11 | Z25: 10 | AA25: 6 | AB25: 2 | AC25: 22 | AD25: 25 | AE25: 21 | AF25: 6 | AG25: 25 | AH25: 28 | AI25: 14 | AJ25: 8 | AK25: 14 | AL25: 18 | AM25: 14 | AN25: 23 | AO25: 32 | AP25: 8 | AQ25: 14 | AR25: 36 | AS25: 10 | AT25: 28 | AU25: 8 | AV25: 14 | AW25: 6 | AX25: 9 | AY25: 10 | AZ25: 28 | BA25: 1 | BB25: 693 | BC25: 74.28705882 | BD25: 13.58823529 | BE25: 12 | BF25: 14
A26: OG0000024 | B26: 31 | C26: 7 | D26: 9 | E26: 7 | F26: 0 | G26: 8 | H26: 1 | I26: 0 | J26: 0 | K26: 3 | L26: 0 | M26: 0 | N26: 18 | O26: 16 | P26: 16 | Q26: 23 | R26: 23 | S26: 14 | T26: 20 | U26: 24 | V26: 3 | W26: 8 | X26: 5 | Y26: 28 | Z26: 2 | AA26: 42 | AB26: 4 | AC26: 3 | AD26: 34 | AE26: 21 | AF26: 11 | AG26: 16 | AH26: 14 | AI26: 11 | AJ26: 2 | AK26: 12 | AL26: 31 | AM26: 25 | AN26: 10 | AO26: 9 | AP26: 14 | AQ26: 18 | AR26: 24 | AS26: 10 | AT26: 15 | AU26: 25 | AV26: 11 | AW26: 9 | AX26: 10 | AY26: 22 | AZ26: 21 | BA26: 5 | BB26: 690 | BC26: 101.9741176 | BD26: 13.52941176 | BE26: 11 | BF26: 0
A27: OG0000025 | B27: 8 | C27: 17 | D27: 6 | E27: 14 | F27: 8 | G27: 7 | H27: 2 | I27: 1 | J27: 12 | K27: 0 | L27: 5 | M27: 13 | N27: 3 | O27: 4 | P27: 9 | Q27: 30 | R27: 24 | S27: 16 | T27: 12 | U27: 11 | V27: 24 | W27: 26 | X27: 12 | Y27: 22 | Z27: 9 | AA27: 7 | AB27: 5 | AC27: 16 | AD27: 15 | AE27: 16 | AF27: 22 | AG27: 17 | AH27: 20 | AI27: 11 | AJ27: 13 | AK27: 12 | AL27: 6 | AM27: 7 | AN27: 10 | AO27: 9 | AP27: 19 | AQ27: 17 | AR27: 22 | AS27: 7 | AT27: 15 | AU27: 5 | AV27: 22 | AW27: 14 | AX27: 26 | AY27: 34 | AZ27: 28 | BA27: 1 | BB27: 690 | BC27: 63.65411765 | BD27: 13.52941176 | BE27: 12 | BF27: 7
A28: OG0000026 | B28: 11 | C28: 9 | D28: 4 | E28: 8 | F28: 3 | G28: 8 | H28: 10 | I28: 0 | J28: 0 | K28: 0 | L28: 11 | M28: 8 | N28: 24 | O28: 10 | P28: 16 | Q28: 9 | R28: 12 | S28: 10 | T28: 22 | U28: 7 | V28: 13 | W28: 22 | X28: 18 | Y28: 25 | Z28: 10 | AA28: 16 | AB28: 7 | AC28: 9 | AD28: 15 | AE28: 16 | AF28: 23 | AG28: 15 | AH28: 27 | AI28: 6 | AJ28: 15 | AK28: 5 | AL28: 21 | AM28: 17 | AN28: 21 | AO28: 21 | AP28: 14 | AQ28: 14 | AR28: 20 | AS28: 11 | AT28: 31 | AU28: 11 | AV28: 11 | AW28: 19 | AX28: 25 | AY28: 8 | AZ28: 22 | BA28: 3 | BB28: 690 | BC28: 53.89411765 | BD28: 13.52941176 | BE28: 12 | BF28: 11
A29: OG0000027 | B29: 23 | C29: 21 | D29: 12 | E29: 31 | F29: 18 | G29: 3 | H29: 7 | I29: 0 | J29: 2 | K29: 2 | L29: 7 | M29: 7 | N29: 11 | O29: 8 | P29: 13 | Q29: 24 | R29: 29 | S29: 8 | T29: 18 | U29: 10 | V29: 11 | W29: 23 | X29: 5 | Y29: 13 | Z29: 7 | AA29: 9 | AB29: 9 | AC29: 10 | AD29: 12 | AE29: 16 | AF29: 12 | AG29: 10 | AH29: 18 | AI29: 16 | AJ29: 6 | AK29: 8 | AL29: 17 | AM29: 7 | AN29: 8 | AO29: 14 | AP29: 9 | AQ29: 13 | AR29: 17 | AS29: 29 | AT29: 8 | AU29: 4 | AV29: 27 | AW29: 21 | AX29: 29 | AY29: 24 | AZ29: 22 | BA29: 1 | BB29: 688 | BC29: 62.97490196 | BD29: 13.49019608 | BE29: 12 | BF29: 7
A30: OG0000028 | B30: 17 | C30: 9 | D30: 10 | E30: 24 | F30: 7 | G30: 25 | H30: 5 | I30: 0 | J30: 0 | K30: 2 | L30: 1 | M30: 9 | N30: 18 | O30: 12 | P30: 24 | Q30: 17 | R30: 23 | S30: 21 | T30: 5 | U30: 14 | V30: 6 | W30: 24 | X30: 11 | Y30: 13 | Z30: 10 | AA30: 9 | AB30: 13 | AC30: 11 | AD30: 9 | AE30: 6 | AF30: 35 | AG30: 6 | AH30: 18 | AI30: 7 | AJ30: 9 | AK30: 6 | AL30: 8 | AM30: 8 | AN30: 12 | AO30: 17 | AP30: 8 | AQ30: 17 | AR30: 7 | AS30: 12 | AT30: 22 | AU30: 7 | AV30: 21 | AW30: 31 | AX30: 25 | AY30: 31 | AZ30: 21 | BA30: 2 | BB30: 683 | BC30: 70.36313725 | BD30: 13.39215686 | BE30: 11 | BF30: 9
A31: OG0000029 | B31: 19 | C31: 14 | D31: 27 | E31: 22 | F31: 26 | G31: 33 | H31: 1 | I31: 4 | J31: 23 | K31: 25 | L31: 10 | M31: 1 | N31: 16 | O31: 7 | P31: 0 | Q31: 9 | R31: 8 | S31: 7 | T31: 15 | U31: 22 | V31: 3 | W31: 10 | X31: 12 | Y31: 21 | Z31: 2 | AA31: 22 | AB31: 6 | AC31: 13 | AD31: 21 | AE31: 5 | AF31: 14 | AG31: 9 | AH31: 14 | AI31: 20 | AJ31: 1 | AK31: 30 | AL31: 16 | AM31: 16 | AN31: 13 | AO31: 9 | AP31: 10 | AQ31: 8 | AR31: 22 | AS31: 12 | AT31: 19 | AU31: 3 | AV31: 9 | AW31: 14 | AX31: 16 | AY31: 2 | AZ31: 19 | BA31: 1 | BB31: 680 | BC31: 67.94666667 | BD31: 13.33333333 | BE31: 13 | BF31: 14
A32: OG0000030 | B32: 19 | C32: 18 | D32: 22 | E32: 30 | F32: 7 | G32: 4 | H32: 20 | I32: 8 | J32: 0 | K32: 5 | L32: 2 | M32: 8 | N32: 7 | O32: 7 | P32: 11 | Q32: 13 | R32: 15 | S32: 22 | T32: 5 | U32: 5 | V32: 10 | W32: 25 | X32: 9 | Y32: 13 | Z32: 7 | AA32: 4 | AB32: 2 | AC32: 5 | AD32: 9 | AE32: 8 | AF32: 40 | AG32: 15 | AH32: 2 | AI32: 10 | AJ32: 11 | AK32: 13 | AL32: 13 | AM32: 7 | AN32: 5 | AO32: 8 | AP32: 5 | AQ32: 22 | AR32: 13 | AS32: 62 | AT32: 13 | AU32: 0 | AV32: 13 | AW32: 29 | AX32: 58 | AY32: 6 | AZ32: 10 | BA32: 2 | BB32: 675 | BC32: 156.9035294 | BD32: 13.23529412 | BE32: 10 | BF32: 13
A33: OG0000031 | B33: 10 | C33: 12 | D33: 9 | E33: 7 | F33: 1 | G33: 1 | H33: 7 | I33: 5 | J33: 3 | K33: 2 | L33: 7 | M33: 26 | N33: 4 | O33: 4 | P33: 20 | Q33: 42 | R33: 21 | S33: 12 | T33: 12 | U33: 6 | V33: 18 | W33: 25 | X33: 17 | Y33: 5 | Z33: 9 | AA33: 14 | AB33: 9 | AC33: 9 | AD33: 11 | AE33: 12 | AF33: 25 | AG33: 27 | AH33: 8 | AI33: 7 | AJ33: 14 | AK33: 17 | AL33: 7 | AM33: 18 | AN33: 12 | AO33: 16 | AP33: 9 | AQ33: 23 | AR33: 13 | AS33: 17 | AT33: 18 | AU33: 2 | AV33: 20 | AW33: 29 | AX33: 11 | AY33: 26 | AZ33: 14 | BA33: 0 | BB33: 673 | BC33: 71.80078431 | BD33: 13.19607843 | BE33: 12 | BF33: 12
A34: OG0000032 | B34: 11 | C34: 11 | D34: 10 | E34: 11 | F34: 4 | G34: 3 | H34: 10 | I34: 5 | J34: 1 | K34: 5 | L34: 8 | M34: 21 | N34: 10 | O34: 6 | P34: 21 | Q34: 19 | R34: 35 | S34: 23 | T34: 18 | U34: 2 | V34: 11 | W34: 8 | X34: 7 | Y34: 9 | Z34: 8 | AA34: 7 | AB34: 8 | AC34: 19 | AD34: 14 | AE34: 31 | AF34: 1 | AG34: 21 | AH34: 10 | AI34: 13 | AJ34: 5 | AK34: 24 | AL34: 20 | AM34: 0 | AN34: 12 | AO34: 21 | AP34: 16 | AQ34: 7 | AR34: 35 | AS34: 3 | AT34: 20 | AU34: 22 | AV34: 15 | AW34: 2 | AX34: 0 | AY34: 30 | AZ34: 34 | BA34: 2 | BB34: 667 | BC34: 89.11372549 | BD34: 13.07843137 | BE34: 11 | BF34: 11
A35: OG0000033 | B35: 9 | C35: 3 | D35: 4 | E35: 9 | F35: 3 | G35: 9 | H35: 5 | I35: 6 | J35: 4 | K35: 4 | L35: 5 | M35: 10 | N35: 16 | O35: 8 | P35: 17 | Q35: 26 | R35: 23 | S35: 7 | T35: 14 | U35: 20 | V35: 18 | W35: 20 | X35: 10 | Y35: 8 | Z35: 12 | AA35: 8 | AB35: 6 | AC35: 7 | AD35: 13 | AE35: 20 | AF35: 17 | AG35: 15 | AH35: 14 | AI35: 17 | AJ35: 15 | AK35: 9 | AL35: 28 | AM35: 8 | AN35: 18 | AO35: 18 | AP35: 12 | AQ35: 19 | AR35: 15 | AS35: 8 | AT35: 8 | AU35: 22 | AV35: 26 | AW35: 15 | AX35: 17 | AY35: 23 | AZ35: 19 | BA35: 0 | BB35: 667 | BC35: 44.07372549 | BD35: 13.07843137 | BE35: 13 | BF35: 8
A36: OG0000034 | B36: 11 | C36: 16 | D36: 16 | E36: 13 | F36: 6 | G36: 5 | H36: 11 | I36: 0 | J36: 0 | K36: 3 | L36: 7 | M36: 26 | N36: 13 | O36: 8 | P36: 15 | Q36: 28 | R36: 27 | S36: 9 | T36: 11 | U36: 15 | V36: 13 | W36: 22 | X36: 11 | Y36: 12 | Z36: 11 | AA36: 9 | AB36: 7 | AC36: 15 | AD36: 15 | AE36: 20 | AF36: 17 | AG36: 14 | AH36: 13 | AI36: 9 | AJ36: 7 | AK36: 11 | AL36: 15 | AM36: 19 | AN36: 15 | AO36: 10 | AP36: 7 | AQ36: 10 | AR36: 22 | AS36: 8 | AT36: 17 | AU36: 8 | AV36: 22 | AW36: 14 | AX36: 15 | AY36: 18 | AZ36: 18 | BA36: 2 | BB36: 664 | BC36: 38.17960784 | BD36: 13.01960784 | BE36: 13 | BF36: 15
A37: OG0000035 | B37: 18 | C37: 15 | D37: 4 | E37: 9 | F37: 10 | G37: 11 | H37: 0 | I37: 1 | J37: 2 | K37: 8 | L37: 1 | M37: 0 | N37: 8 | O37: 9 | P37: 23 | Q37: 25 | R37: 18 | S37: 29 | T37: 11 | U37: 42 | V37: 11 | W37: 15 | X37: 5 | Y37: 11 | Z37: 4 | AA37: 2 | AB37: 10 | AC37: 3 | AD37: 15 | AE37: 11 | AF37: 21 | AG37: 4 | AH37: 5 | AI37: 18 | AJ37: 5 | AK37: 14 | AL37: 9 | AM37: 9 | AN37: 5 | AO37: 7 | AP37: 8 | AQ37: 16 | AR37: 12 | AS37: 23 | AT37: 21 | AU37: 1 | AV37: 20 | AW37: 21 | AX37: 35 | AY37: 51 | AZ37: 28 | BA37: 2 | BB37: 664 | BC37: 115.1396078 | BD37: 13.01960784 | BE37: 11 | BF37: 11
A38: OG0000036 | B38: 19 | C38: 13 | D38: 16 | E38: 12 | F38: 1 | G38: 3 | H38: 4 | I38: 0 | J38: 0 | K38: 3 | L38: 14 | M38: 9 | N38: 14 | O38: 3 | P38: 15 | Q38: 5 | R38: 14 | S38: 19 | T38: 9 | U38: 14 | V38: 9 | W38: 7 | X38: 7 | Y38: 14 | Z38: 7 | AA38: 9 | AB38: 9 | AC38: 8 | AD38: 16 | AE38: 15 | AF38: 42 | AG38: 19 | AH38: 7 | AI38: 13 | AJ38: 13 | AK38: 13 | AL38: 20 | AM38: 10 | AN38: 13 | AO38: 12 | AP38: 20 | AQ38: 15 | AR38: 21 | AS38: 23 | AT38: 3 | AU38: 16 | AV38: 18 | AW38: 17 | AX38: 16 | AY38: 26 | AZ38: 15 | BA38: 2 | BB38: 640 | BC38: 55.09254902 | BD38: 12.54901961 | BE38: 13 | BF38: 13
A39: OG0000037 | B39: 36 | C39: 29 | D39: 19 | E39: 15 | F39: 2 | G39: 1 | H39: 8 | I39: 0 | J39: 0 | K39: 0 | L39: 8 | M39: 10 | N39: 13 | O39: 12 | P39: 33 | Q39: 20 | R39: 10 | S39: 20 | T39: 4 | U39: 12 | V39: 11 | W39: 27 | X39: 12 | Y39: 3 | Z39: 2 | AA39: 6 | AB39: 23 | AC39: 17 | AD39: 14 | AE39: 3 | AF39: 17 | AG39: 10 | AH39: 17 | AI39: 11 | AJ39: 10 | AK39: 2 | AL39: 15 | AM39: 4 | AN39: 5 | AO39: 33 | AP39: 9 | AQ39: 22 | AR39: 13 | AS39: 15 | AT39: 25 | AU39: 0 | AV39: 7 | AW39: 20 | AX39: 5 | AY39: 21 | AZ39: 8 | BA39: 4 | BB39: 639 | BC39: 85.97411765 | BD39: 12.52941176 | BE39: 11 | BF39: 0
A40: OG0000038 | B40: 14 | C40: 13 | D40: 9 | E40: 10 | F40: 8 | G40: 16 | H40: 9 | I40: 0 | J40: 0 | K40: 1 | L40: 11 | M40: 14 | N40: 18 | O40: 7 | P40: 28 | Q40: 20 | R40: 17 | S40: 15 | T40: 10 | U40: 15 | V40: 17 | W40: 15 | X40: 6 | Y40: 9 | Z40: 11 | AA40: 6 | AB40: 11 | AC40: 12 | AD40: 10 | AE40: 9 | AF40: 33 | AG40: 8 | AH40: 8 | AI40: 10 | AJ40: 8 | AK40: 6 | AL40: 16 | AM40: 8 | AN40: 17 | AO40: 14 | AP40: 5 | AQ40: 11 | AR40: 17 | AS40: 21 | AT40: 14 | AU40: 5 | AV40: 11 | AW40: 32 | AX40: 17 | AY40: 17 | AZ40: 8 | BA40: 2 | BB40: 627 | BC40: 45.85176471 | BD40: 12.29411765 | BE40: 11 | BF40: 8
A41: OG0000039 | B41: 18 | C41: 16 | D41: 17 | E41: 15 | F41: 12 | G41: 11 | H41: 11 | I41: 2 | J41: 2 | K41: 5 | L41: 6 | M41: 10 | N41: 16 | O41: 8 | P41: 7 | Q41: 8 | R41: 15 | S41: 21 | T41: 9 | U41: 16 | V41: 17 | W41: 11 | X41: 6 | Y41: 8 | Z41: 5 | AA41: 8 | AB41: 9 | AC41: 8 | AD41: 6 | AE41: 13 | AF41: 32 | AG41: 8 | AH41: 5 | AI41: 21 | AJ41: 4 | AK41: 6 | AL41: 13 | AM41: 19 | AN41: 9 | AO41: 8 | AP41: 10 | AQ41: 20 | AR41: 13 | AS41: 25 | AT41: 9 | AU41: 11 | AV41: 11 | AW41: 27 | AX41: 15 | AY41: 23 | AZ41: 21 | BA41: 0 | BB41: 626 | BC41: 43.44313725 | BD41: 12.2745098 | BE41: 11 | BF41: 8
A42: OG0000040 | B42: 3 | C42: 1 | D42: 1 | E42: 0 | F42: 0 | G42: 5 | H42: 1 | I42: 8 | J42: 9 | K42: 0 | L42: 5 | M42: 3 | N42: 5 | O42: 23 | P42: 13 | Q42: 14 | R42: 5 | S42: 5 | T42: 15 | U42: 7 | V42: 13 | W42: 7 | X42: 11 | Y42: 28 | Z42: 9 | AA42: 23 | AB42: 1 | AC42: 11 | AD42: 33 | AE42: 20 | AF42: 18 | AG42: 31 | AH42: 10 | AI42: 19 | AJ42: 5 | AK42: 7 | AL42: 23 | AM42: 33 | AN42: 27 | AO42: 12 | AP42: 9 | AQ42: 10 | AR42: 19 | AS42: 8 | AT42: 20 | AU42: 18 | AV42: 8 | AW42: 13 | AX42: 20 | AY42: 8 | AZ42: 27 | BA42: 3 | BB42: 624 | BC42: 84.70352941 | BD42: 12.23529412 | BE42: 10 | BF42: 5
A43: OG0000041 | B43: 18 | C43: 15 | D43: 14 | E43: 15 | F43: 18 | G43: 8 | H43: 10 | I43: 1 | J43: 0 | K43: 9 | L43: 5 | M43: 13 | N43: 14 | O43: 9 | P43: 31 | Q43: 12 | R43: 13 | S43: 4 | T43: 9 | U43: 5 | V43: 13 | W43: 22 | X43: 11 | Y43: 12 | Z43: 4 | AA43: 13 | AB43: 5 | AC43: 7 | AD43: 7 | AE43: 6 | AF43: 25 | AG43: 20 | AH43: 18 | AI43: 4 | AJ43: 6 | AK43: 10 | AL43: 9 | AM43: 7 | AN43: 8 | AO43: 13 | AP43: 4 | AQ43: 13 | AR43: 4 | AS43: 20 | AT43: 21 | AU43: 7 | AV43: 10 | AW43: 22 | AX43: 17 | AY43: 38 | AZ43: 22 | BA43: 1 | BB43: 621 | BC43: 57.26823529 | BD43: 12.17647059 | BE43: 11 | BF43: 13
A44: OG0000042 | B44: 0 | C44: 0 | D44: 0 | E44: 0 | F44: 0 | G44: 0 | H44: 1 | I44: 7 | J44: 5 | K44: 0 | L44: 13 | M44: 1 | N44: 18 | O44: 27 | P44: 27 | Q44: 23 | R44: 11 | S44: 8 | T44: 10 | U44: 14 | V44: 20 | W44: 2 | X44: 12 | Y44: 30 | Z44: 6 | AA44: 16 | AB44: 3 | AC44: 16 | AD44: 17 | AE44: 17 | AF44: 14 | AG44: 22 | AH44: 15 | AI44: 12 | AJ44: 3 | AK44: 14 | AL44: 17 | AM44: 14 | AN44: 21 | AO44: 11 | AP44: 16 | AQ44: 6 | AR44: 45 | AS44: 2 | AT44: 19 | AU44: 13 | AV44: 14 | AW44: 7 | AX44: 13 | AY44: 18 | AZ44: 20 | BA44: 7 | BB44: 620 | BC44: 87.45490196 | BD44: 12.15686275 | BE44: 13 | BF44: 0
A45: OG0000043 | B45: 8 | C45: 5 | D45: 13 | E45: 11 | F45: 9 | G45: 14 | H45: 6 | I45: 0 | J45: 0 | K45: 0 | L45: 14 | M45: 5 | N45: 20 | O45: 14 | P45: 9 | Q45: 6 | R45: 3 | S45: 13 | T45: 9 | U45: 12 | V45: 7 | W45: 6 | X45: 15 | Y45: 21 | Z45: 8 | AA45: 4 | AB45: 11 | AC45: 16 | AD45: 10 | AE45: 7 | AF45: 23 | AG45: 31 | AH45: 29 | AI45: 20 | AJ45: 11 | AK45: 11 | AL45: 24 | AM45: 8 | AN45: 20 | AO45: 17 | AP45: 4 | AQ45: 15 | AR45: 10 | AS45: 18 | AT45: 12 | AU45: 11 | AV45: 5 | AW45: 24 | AX45: 23 | AY45: 5 | AZ45: 6 | BA45: 3 | BB45: 603 | BC45: 53.58823529 | BD45: 11.82352941 | BE45: 11 | BF45: 11
A46: OG0000044 | B46: 20 | C46: 17 | D46: 14 | E46: 16 | F46: 8 | G46: 9 | H46: 11 | I46: 12 | J46: 9 | K46: 8 | L46: 6 | M46: 12 | N46: 17 | O46: 9 | P46: 20 | Q46: 11 | R46: 10 | S46: 17 | T46: 8 | U46: 9 | V46: 11 | W46: 4 | X46: 8 | Y46: 8 | Z46: 10 | AA46: 13 | AB46: 7 | AC46: 12 | AD46: 13 | AE46: 9 | AF46: 12 | AG46: 13 | AH46: 13 | AI46: 16 | AJ46: 10 | AK46: 7 | AL46: 14 | AM46: 9 | AN46: 13 | AO46: 15 | AP46: 7 | AQ46: 16 | AR46: 11 | AS46: 17 | AT46: 15 | AU46: 9 | AV46: 11 | AW46: 12 | AX46: 16 | AY46: 12 | AZ46: 14 | BA46: 0 | BB46: 600 | BC46: 13.18352941 | BD46: 11.76470588 | BE46: 12 | BF46: 9
A47: OG0000045 | B47: 11 | C47: 10 | D47: 7 | E47: 17 | F47: 12 | G47: 11 | H47: 9 | I47: 6 | J47: 7 | K47: 21 | L47: 6 | M47: 8 | N47: 14 | O47: 9 | P47: 23 | Q47: 13 | R47: 8 | S47: 11 | T47: 9 | U47: 6 | V47: 15 | W47: 13 | X47: 7 | Y47: 17 | Z47: 6 | AA47: 10 | AB47: 5 | AC47: 11 | AD47: 9 | AE47: 10 | AF47: 29 | AG47: 10 | AH47: 13 | AI47: 9 | AJ47: 12 | AK47: 7 | AL47: 15 | AM47: 13 | AN47: 12 | AO47: 10 | AP47: 9 | AQ47: 18 | AR47: 12 | AS47: 10 | AT47: 9 | AU47: 9 | AV47: 10 | AW47: 20 | AX47: 19 | AY47: 16 | AZ47: 16 | BA47: 0 | BB47: 599 | BC47: 23.47372549 | BD47: 11.74509804 | BE47: 10 | BF47: 9
A48: OG0000046 | B48: 8 | C48: 4 | D48: 8 | E48: 38 | F48: 5 | G48: 2 | H48: 0 | I48: 0 | J48: 0 | K48: 0 | L48: 2 | M48: 0 | N48: 19 | O48: 2 | P48: 16 | Q48: 13 | R48: 12 | S48: 10 | T48: 8 | U48: 12 | V48: 7 | W48: 25 | X48: 16 | Y48: 15 | Z48: 7 | AA48: 15 | AB48: 13 | AC48: 8 | AD48: 12 | AE48: 21 | AF48: 33 | AG48: 5 | AH48: 8 | AI48: 0 | AJ48: 7 | AK48: 5 | AL48: 8 | AM48: 12 | AN48: 12 | AO48: 9 | AP48: 11 | AQ48: 6 | AR48: 12 | AS48: 32 | AT48: 15 | AU48: 5 | AV48: 18 | AW48: 43 | AX48: 21 | AY48: 28 | AZ48: 6 | BA48: 6 | BB48: 594 | BC48: 97.71294118 | BD48: 11.64705882 | BE48: 9 | BF48: 8
A49: OG0000047 | B49: 32 | C49: 7 | D49: 18 | E49: 25 | F49: 11 | G49: 14 | H49: 11 | I49: 0 | J49: 1 | K49: 0 | L49: 12 | M49: 2 | N49: 9 | O49: 10 | P49: 14 | Q49: 14 | R49: 18 | S49: 27 | T49: 9 | U49: 3 | V49: 12 | W49: 6 | X49: 14 | Y49: 11 | Z49: 7 | AA49: 4 | AB49: 3 | AC49: 7 | AD49: 11 | AE49: 10 | AF49: 19 | AG49: 19 | AH49: 6 | AI49: 16 | AJ49: 9 | AK49: 6 | AL49: 14 | AM49: 13 | AN49: 11 | AO49: 7 | AP49: 2 | AQ49: 4 | AR49: 19 | AS49: 22 | AT49: 18 | AU49: 9 | AV49: 10 | AW49: 14 | AX49: 18 | AY49: 23 | AZ49: 11 | BA49: 2 | BB49: 592 | BC49: 50.00313725 | BD49: 11.60784314 | BE49: 11 | BF49: 11
A50: OG0000048 | B50: 0 | C50: 6 | D50: 3 | E50: 7 | F50: 2 | G50: 10 | H50: 6 | I50: 0 | J50: 0 | K50: 1 | L50: 1 | M50: 5 | N50: 9 | O50: 8 | P50: 62 | Q50: 29 | R50: 22 | S50: 15 | T50: 11 | U50: 7 | V50: 25 | W50: 22 | X50: 15 | Y50: 10 | Z50: 6 | AA50: 10 | AB50: 5 | AC50: 22 | AD50: 10 | AE50: 11 | AF50: 14 | AG50: 4 | AH50: 4 | AI50: 10 | AJ50: 7 | AK50: 7 | AL50: 7 | AM50: 4 | AN50: 7 | AO50: 10 | AP50: 12 | AQ50: 11 | AR50: 20 | AS50: 20 | AT50: 27 | AU50: 3 | AV50: 18 | AW50: 10 | AX50: 4 | AY50: 26 | AZ50: 27 | BA50: 3 | BB50: 592 | BC50: 113.7231373 | BD50: 11.60784314 | BE50: 10 | BF50: 10
A51: OG0000049 | B51: 18 | C51: 20 | D51: 14 | E51: 7 | F51: 7 | G51: 6 | H51: 8 | I51: 1 | J51: 1 | K51: 2 | L51: 3 | M51: 4 | N51: 13 | O51: 7 | P51: 12 | Q51: 18 | R51: 25 | S51: 19 | T51: 11 | U51: 10 | V51: 4 | W51: 16 | X51: 6 | Y51: 18 | Z51: 6 | AA51: 8 | AB51: 13 | AC51: 15 | AD51: 10 | AE51: 15 | AF51: 32 | AG51: 6 | AH51: 8 | AI51: 3 | AJ51: 9 | AK51: 7 | AL51: 8 | AM51: 9 | AN51: 5 | AO51: 8 | AP51: 10 | AQ51: 24 | AR51: 12 | AS51: 12 | AT51: 25 | AU51: 11 | AV51: 13 | AW51: 14 | AX51: 22 | AY51: 21 | AZ51: 9 | BA51: 0 | BB51: 585 | BC51: 47.21411765 | BD51: 11.47058824 | BE51: 10 | BF51: 8
A52: OG0000050 | B52: 1 | C52: 9 | D52: 6 | E52: 5 | F52: 10 | G52: 3 | H52: 5 | I52: 0 | J52: 0 | K52: 0 | L52: 4 | M52: 6 | N52: 12 | O52: 8 | P52: 30 | Q52: 20 | R52: 16 | S52: 9 | T52: 17 | U52: 19 | V52: 14 | W52: 12 | X52: 4 | Y52: 17 | Z52: 5 | AA52: 4 | AB52: 6 | AC52: 8 | AD52: 16 | AE52: 20 | AF52: 9 | AG52: 14 | AH52: 16 | AI52: 7 | AJ52: 6 | AK52: 4 | AL52: 29 | AM52: 19 | AN52: 10 | AO52: 12 | AP52: 9 | AQ52: 13 | AR52: 20 | AS52: 6 | AT52: 25 | AU52: 15 | AV52: 12 | AW52: 13 | AX52: 16 | AY52: 17 | AZ52: 21 | BA52: 3 | BB52: 579 | BC52: 52.15294118 | BD52: 11.35294118 | BE52: 10 | BF52: 6
A53: OG0000051 | B53: 7 | C53: 20 | D53: 9 | E53: 9 | F53: 3 | G53: 8 | H53: 9 | I53: 5 | J53: 6 | K53: 2 | L53: 7 | M53: 6 | N53: 13 | O53: 11 | P53: 27 | Q53: 5 | R53: 5 | S53: 13 | T53: 13 | U53: 15 | V53: 5 | W53: 9 | X53: 6 | Y53: 16 | Z53: 6 | AA53: 9 | AB53: 10 | AC53: 6 | AD53: 8 | AE53: 11 | AF53: 43 | AG53: 6 | AH53: 13 | AI53: 4 | AJ53: 7 | AK53: 7 | AL53: 12 | AM53: 8 | AN53: 8 | AO53: 9 | AP53: 7 | AQ53: 16 | AR53: 17 | AS53: 8 | AT53: 31 | AU53: 14 | AV53: 4 | AW53: 22 | AX53: 23 | AY53: 12 | AZ53: 28 | BA53: 0 | BB53: 578 | BC53: 62.50666667 | BD53: 11.33333333 | BE53: 9 | BF53: 9
A54: OG0000052 | B54: 8 | C54: 15 | D54: 12 | E54: 8 | F54: 7 | G54: 15 | H54: 5 | I54: 7 | J54: 3 | K54: 3 | L54: 9 | M54: 8 | N54: 11 | O54: 7 | P54: 13 | Q54: 16 | R54: 12 | S54: 11 | T54: 15 | U54: 6 | V54: 23 | W54: 9 | X54: 4 | Y54: 18 | Z54: 6 | AA54: 5 | AB54: 10 | AC54: 8 | AD54: 7 | AE54: 19 | AF54: 14 | AG54: 16 | AH54: 15 | AI54: 8 | AJ54: 9 | AK54: 8 | AL54: 20 | AM54: 10 | AN54: 18 | AO54: 27 | AP54: 7 | AQ54: 9 | AR54: 12 | AS54: 11 | AT54: 11 | AU54: 7 | AV54: 9 | AW54: 27 | AX54: 14 | AY54: 13 | AZ54: 13 | BA54: 0 | BB54: 578 | BC54: 30.22666667 | BD54: 11.33333333 | BE54: 10 | BF54: 8
A55: OG0000053 | B55: 7 | C55: 9 | D55: 8 | E55: 15 | F55: 9 | G55: 16 | H55: 13 | I55: 11 | J55: 10 | K55: 10 | L55: 12 | M55: 4 | N55: 20 | O55: 15 | P55: 11 | Q55: 3 | R55: 7 | S55: 9 | T55: 4 | U55: 15 | V55: 15 | W55: 7 | X55: 5 | Y55: 6 | Z55: 14 | AA55: 9 | AB55: 13 | AC55: 13 | AD55: 15 | AE55: 4 | AF55: 12 | AG55: 19 | AH55: 14 | AI55: 11 | AJ55: 6 | AK55: 3 | AL55: 16 | AM55: 15 | AN55: 12 | AO55: 14 | AP55: 3 | AQ55: 28 | AR55: 17 | AS55: 15 | AT55: 11 | AU55: 11 | AV55: 13 | AW55: 11 | AX55: 18 | AY55: 9 | AZ55: 10 | BA55: 0 | BB55: 577 | BC55: 24.53960784 | BD55: 11.31372549 | BE55: 11 | BF55: 15
A56: OG0000054 | B56: 6 | C56: 6 | D56: 9 | E56: 9 | F56: 11 | G56: 13 | H56: 5 | I56: 0 | J56: 0 | K56: 2 | L56: 9 | M56: 14 | N56: 3 | O56: 9 | P56: 16 | Q56: 11 | R56: 10 | S56: 9 | T56: 18 | U56: 6 | V56: 11 | W56: 19 | X56: 9 | Y56: 16 | Z56: 11 | AA56: 8 | AB56: 5 | AC56: 17 | AD56: 11 | AE56: 17 | AF56: 18 | AG56: 24 | AH56: 24 | AI56: 8 | AJ56: 14 | AK56: 9 | AL56: 23 | AM56: 7 | AN56: 14 | AO56: 16 | AP56: 12 | AQ56: 12 | AR56: 16 | AS56: 11 | AT56: 11 | AU56: 20 | AV56: 12 | AW56: 14 | AX56: 7 | AY56: 7 | AZ56: 7 | BA56: 2 | BB56: 576 | BC56: 31.61176471 | BD56: 11.29411765 | BE56: 11 | BF56: 9
A57: OG0000055 | B57: 15 | C57: 7 | D57: 10 | E57: 1 | F57: 1 | G57: 12 | H57: 1 | I57: 0 | J57: 0 | K57: 2 | L57: 5 | M57: 4 | N57: 10 | O57: 17 | P57: 14 | Q57: 22 | R57: 20 | S57: 10 | T57: 13 | U57: 26 | V57: 9 | W57: 8 | X57: 9 | Y57: 31 | Z57: 4 | AA57: 24 | AB57: 3 | AC57: 3 | AD57: 13 | AE57: 9 | AF57: 12 | AG57: 6 | AH57: 13 | AI57: 11 | AJ57: 5 | AK57: 19 | AL57: 16 | AM57: 10 | AN57: 9 | AO57: 13 | AP57: 14 | AQ57: 14 | AR57: 13 | AS57: 10 | AT57: 13 | AU57: 21 | AV57: 12 | AW57: 16 | AX57: 7 | AY57: 22 | AZ57: 14 | BA57: 2 | BB57: 573 | BC57: 49.02352941 | BD57: 11.23529412 | BE57: 11 | BF57: 13
A58: OG0000056 | B58: 5 | C58: 6 | D58: 10 | E58: 10 | F58: 6 | G58: 14 | H58: 10 | I58: 1 | J58: 0 | K58: 1 | L58: 10 | M58: 18 | N58: 10 | O58: 10 | P58: 13 | Q58: 11 | R58: 18 | S58: 21 | T58: 5 | U58: 7 | V58: 16 | W58: 27 | X58: 9 | Y58: 11 | Z58: 12 | AA58: 5 | AB58: 6 | AC58: 17 | AD58: 11 | AE58: 9 | AF58: 16 | AG58: 25 | AH58: 19 | AI58: 8 | AJ58: 14 | AK58: 10 | AL58: 11 | AM58: 11 | AN58: 9 | AO58: 6 | AP58: 4 | AQ58: 12 | AR58: 9 | AS58: 16 | AT58: 16 | AU58: 6 | AV58: 13 | AW58: 16 | AX58: 12 | AY58: 13 | AZ58: 16 | BA58: 1 | BB58: 571 | BC58: 31.64078431 | BD58: 11.19607843 | BE58: 11 | BF58: 10
A59: OG0000057 | B59: 8 | C59: 16 | D59: 11 | E59: 4 | F59: 4 | G59: 3 | H59: 4 | I59: 2 | J59: 1 | K59: 2 | L59: 7 | M59: 10 | N59: 10 | O59: 10 | P59: 14 | Q59: 12 | R59: 11 | S59: 23 | T59: 9 | U59: 7 | V59: 13 | W59: 11 | X59: 15 | Y59: 11 | Z59: 11 | AA59: 14 | AB59: 11 | AC59: 11 | AD59: 11 | AE59: 10 | AF59: 23 | AG59: 12 | AH59: 14 | AI59: 13 | AJ59: 13 | AK59: 10 | AL59: 18 | AM59: 10 | AN59: 17 | AO59: 6 | AP59: 9 | AQ59: 13 | AR59: 13 | AS59: 8 | AT59: 9 | AU59: 10 | AV59: 14 | AW59: 19 | AX59: 22 | AY59: 16 | AZ59: 14 | BA59: 0 | BB59: 569 | BC59: 25.13490196 | BD59: 11.15686275 | BE59: 11 | BF59: 11
A60: OG0000058 | B60: 23 | C60: 7 | D60: 13 | E60: 7 | F60: 10 | G60: 4 | H60: 8 | I60: 0 | J60: 4 | K60: 5 | L60: 7 | M60: 2 | N60: 6 | O60: 9 | P60: 3 | Q60: 14 | R60: 7 | S60: 23 | T60: 10 | U60: 13 | V60: 7 | W60: 18 | X60: 15 | Y60: 9 | Z60: 10 | AA60: 1 | AB60: 4 | AC60: 13 | AD60: 12 | AE60: 12 | AF60: 8 | AG60: 13 | AH60: 8 | AI60: 22 | AJ60: 12 | AK60: 14 | AL60: 30 | AM60: 5 | AN60: 7 | AO60: 15 | AP60: 10 | AQ60: 5 | AR60: 24 | AS60: 22 | AT60: 16 | AU60: 5 | AV60: 11 | AW60: 13 | AX60: 18 | AY60: 21 | AZ60: 11 | BA60: 1 | BB60: 566 | BC60: 43.45019608 | BD60: 11.09803922 | BE60: 10 | BF60: 7
A61: OG0000059 | B61: 10 | C61: 10 | D61: 10 | E61: 9 | F61: 12 | G61: 4 | H61: 7 | I61: 7 | J61: 10 | K61: 3 | L61: 4 | M61: 15 | N61: 18 | O61: 10 | P61: 5 | Q61: 12 | R61: 15 | S61: 17 | T61: 9 | U61: 9 | V61: 9 | W61: 17 | X61: 17 | Y61: 9 | Z61: 14 | AA61: 3 | AB61: 13 | AC61: 5 | AD61: 13 | AE61: 12 | AF61: 19 | AG61: 14 | AH61: 7 | AI61: 11 | AJ61: 15 | AK61: 4 | AL61: 10 | AM61: 19 | AN61: 12 | AO61: 10 | AP61: 14 | AQ61: 11 | AR61: 16 | AS61: 16 | AT61: 4 | AU61: 8 | AV61: 14 | AW61: 14 | AX61: 15 | AY61: 17 | AZ61: 7 | BA61: 0 | BB61: 565 | BC61: 19.75372549 | BD61: 11.07843137 | BE61: 11 | BF61: 10
A62: OG0000060 | B62: 3 | C62: 4 | D62: 4 | E62: 2 | F62: 1 | G62: 8 | H62: 7 | I62: 2 | J62: 1 | K62: 1 | L62: 3 | M62: 9 | N62: 13 | O62: 12 | P62: 11 | Q62: 26 | R62: 21 | S62: 10 | T62: 12 | U62: 7 | V62: 15 | W62: 16 | X62: 5 | Y62: 7 | Z62: 12 | AA62: 7 | AB62: 15 | AC62: 20 | AD62: 6 | AE62: 14 | AF62: 9 | AG62: 17 | AH62: 22 | AI62: 15 | AJ62: 12 | AK62: 9 | AL62: 20 | AM62: 10 | AN62: 9 | AO62: 20 | AP62: 11 | AQ62: 8 | AR62: 15 | AS62: 19 | AT62: 6 | AU62: 7 | AV62: 19 | AW62: 9 | AX62: 24 | AY62: 17 | AZ62: 8 | BA62: 0 | BB62: 560 | BC62: 41.33960784 | BD62: 10.98039216 | BE62: 10 | BF62: 7
A63: OG0000061 | B63: 2 | C63: 4 | D63: 7 | E63: 8 | F63: 4 | G63: 8 | H63: 10 | I63: 1 | J63: 0 | K63: 3 | L63: 7 | M63: 4 | N63: 8 | O63: 8 | P63: 12 | Q63: 17 | R63: 18 | S63: 10 | T63: 12 | U63: 35 | V63: 10 | W63: 3 | X63: 8 | Y63: 11 | Z63: 4 | AA63: 4 | AB63: 4 | AC63: 10 | AD63: 14 | AE63: 8 | AF63: 21 | AG63: 10 | AH63: 7 | AI63: 5 | AJ63: 10 | AK63: 2 | AL63: 22 | AM63: 16 | AN63: 10 | AO63: 5 | AP63: 14 | AQ63: 15 | AR63: 21 | AS63: 16 | AT63: 7 | AU63: 21 | AV63: 14 | AW63: 13 | AX63: 21 | AY63: 20 | AZ63: 35 | BA63: 1 | BB63: 559 | BC63: 58.79843137 | BD63: 10.96078431 | BE63: 10 | BF63: 10
A64: OG0000062 | B64: 18 | C64: 6 | D64: 24 | E64: 8 | F64: 13 | G64: 0 | H64: 5 | I64: 0 | J64: 1 | K64: 0 | L64: 6 | M64: 0 | N64: 12 | O64: 11 | P64: 4 | Q64: 14 | R64: 16 | S64: 18 | T64: 8 | U64: 14 | V64: 6 | W64: 18 | X64: 10 | Y64: 9 | Z64: 8 | AA64: 0 | AB64: 3 | AC64: 7 | AD64: 7 | AE64: 7 | AF64: 22 | AG64: 8 | AH64: 6 | AI64: 12 | AJ64: 16 | AK64: 17 | AL64: 22 | AM64: 9 | AN64: 8 | AO64: 12 | AP64: 8 | AQ64: 14 | AR64: 21 | AS64: 44 | AT64: 6 | AU64: 7 | AV64: 6 | AW64: 20 | AX64: 22 | AY64: 18 | AZ64: 6 | BA64: 5 | BB64: 557 | BC64: 65.47372549 | BD64: 10.92156863 | BE64: 8 | BF64: 6
A65: OG0000063 | B65: 16 | C65: 20 | D65: 17 | E65: 1 | F65: 2 | G65: 12 | H65: 2 | I65: 0 | J65: 0 | K65: 2 | L65: 9 | M65: 0 | N65: 16 | O65: 20 | P65: 5 | Q65: 8 | R65: 4 | S65: 25 | T65: 6 | U65: 4 | V65: 13 | W65: 18 | X65: 7 | Y65: 20 | Z65: 6 | AA65: 11 | AB65: 17 | AC65: 15 | AD65: 7 | AE65: 6 | AF65: 17 | AG65: 22 | AH65: 23 | AI65: 32 | AJ65: 9 | AK65: 26 | AL65: 3 | AM65: 1 | AN65: 13 | AO65: 18 | AP65: 4 | AQ65: 11 | AR65: 5 | AS65: 16 | AT65: 25 | AU65: 2 | AV65: 4 | AW65: 14 | AX65: 14 | AY65: 5 | AZ65: 2 | BA65: 3 | BB65: 555 | BC65: 66.98588235 | BD65: 10.88235294 | BE65: 9 | BF65: 2
A66: OG0000064 | B66: 2 | C66: 3 | D66: 2 | E66: 12 | F66: 4 | G66: 2 | H66: 10 | I66: 0 | J66: 3 | K66: 1 | L66: 15 | M66: 11 | N66: 7 | O66: 8 | P66: 12 | Q66: 8 | R66: 9 | S66: 3 | T66: 16 | U66: 10 | V66: 6 | W66: 14 | X66: 5 | Y66: 16 | Z66: 5 | AA66: 6 | AB66: 6 | AC66: 11 | AD66: 16 | AE66: 19 | AF66: 9 | AG66: 32 | AH66: 14 | AI66: 14 | AJ66: 24 | AK66: 8 | AL66: 25 | AM66: 14 | AN66: 17 | AO66: 9 | AP66: 13 | AQ66: 8 | AR66: 19 | AS66: 15 | AT66: 11 | AU66: 5 | AV66: 20 | AW66: 7 | AX66: 10 | AY66: 17 | AZ66: 16 | BA66: 1 | BB66: 549 | BC66: 44.58352941 | BD66: 10.76470588 | BE66: 10 | BF66: 8
A67: OG0000065 | B67: 4 | C67: 6 | D67: 5 | E67: 19 | F67: 7 | G67: 11 | H67: 9 | I67: 29 | J67: 4 | K67: 4 | L67: 9 | M67: 19 | N67: 3 | O67: 9 | P67: 2 | Q67: 6 | R67: 4 | S67: 37 | T67: 12 | U67: 6 | V67: 11 | W67: 20 | X67: 12 | Y67: 11 | Z67: 7 | AA67: 6 | AB67: 2 | AC67: 15 | AD67: 9 | AE67: 24 | AF67: 2 | AG67: 13 | AH67: 21 | AI67: 11 | AJ67: 11 | AK67: 6 | AL67: 18 | AM67: 2 | AN67: 16 | AO67: 20 | AP67: 11 | AQ67: 6 | AR67: 19 | AS67: 0 | AT67: 23 | AU67: 4 | AV67: 10 | AW67: 1 | AX67: 13 | AY67: 6 | AZ67: 13 | BA67: 1 | BB67: 548 | BC67: =VAR(B67:AZ67) -> 59.63372549 | BD67: =AVERAGE(B67:AZ67) -> 10.74509804 | BE67: =MEDIAN(B67:AZ67) -> 9 | BF67: =MODE(B67:AZ67) -> 6
A68: OG0000066 | B68: 24 | C68: 14 | D68: 18 | E68: 9 | F68: 0 | G68: 11 | H68: 0 | I68: 0 | J68: 0 | K68: 0 | L68: 4 | M68: 2 | N68: 14 | O68: 7 | P68: 11 | Q68: 21 | R68: 15 | S68: 11 | T68: 13 | U68: 8 | V68: 4 | W68: 3 | X68: 2 | Y68: 4 | Z68: 7 | AA68: 3 | AB68: 11 | AC68: 2 | AD68: 12 | AE68: 19 | AF68: 28 | AG68: 10 | AH68: 1 | AI68: 1 | AJ68: 6 | AK68: 0 | AL68: 20 | AM68: 8 | AN68: 7 | AO68: 13 | AP68: 31 | AQ68: 19 | AR68: 11 | AS68: 24 | AT68: 10 | AU68: 1 | AV68: 9 | AW68: 35 | AX68: 15 | AY68: 36 | AZ68: 12 | BA68: 6 | BB68: 546 | BC68: 85.73176471 | BD68: 10.70588235 | BE68: 10 | BF68: 0
A69: OG0000067 | B69: 4 | C69: 3 | D69: 2 | E69: 0 | F69: 0 | G69: 0 | H69: 0 | I69: 0 | J69: 1 | K69: 3 | L69: 6 | M69: 1 | N69: 2 | O69: 17 | P69: 19 | Q69: 18 | R69: 15 | S69: 8 | T69: 13 | U69: 26 | V69: 3 | W69: 9 | X69: 5 | Y69: 23 | Z69: 8 | AA69: 26 | AB69: 6 | AC69: 7 | AD69: 19 | AE69: 11 | AF69: 3 | AG69: 19 | AH69: 19 | AI69: 27 | AJ69: 7 | AK69: 17 | AL69: 21 | AM69: 11 | AN69: 7 | AO69: 9 | AP69: 15 | AQ69: 7 | AR69: 19 | AS69: 6 | AT69: 15 | AU69: 24 | AV69: 10 | AW69: 7 | AX69: 3 | AY69: 12 | AZ69: 28 | BA69: 5 | BB69: 541 | BC69: 68.96313725 | BD69: 10.60784314 | BE69: 8 | BF69: 3
A70: OG0000068 | B70: 12 | C70: 13 | D70: 6 | E70: 15 | F70: 7 | G70: 28 | H70: 1 | I70: 0 | J70: 0 | K70: 0 | L70: 6 | M70: 6 | N70: 3 | O70: 6 | P70: 19 | Q70: 15 | R70: 21 | S70: 26 | T70: 7 | U70: 20 | V70: 22 | W70: 11 | X70: 11 | Y70: 15 | Z70: 6 | AA70: 11 | AB70: 6 | AC70: 12 | AD70: 10 | AE70: 13 | AF70: 18 | AG70: 14 | AH70: 2 | AI70: 4 | AJ70: 6 | AK70: 9 | AL70: 15 | AM70: 12 | AN70: 9 | AO70: 7 | AP70: 9 | AQ70: 9 | AR70: 5 | AS70: 17 | AT70: 6 | AU70: 3 | AV70: 17 | AW70: 4 | AX70: 19 | AY70: 18 | AZ70: 8 | BA70: 3 | BB70: 539 | BC70: 45.37019608 | BD70: 10.56862745 | BE70: 9 | BF70: 6
A71: OG0000069 | B71: 22 | C71: 12 | D71: 10 | E71: 31 | F71: 11 | G71: 8 | H71: 5 | I71: 2 | J71: 2 | K71: 1 | L71: 5 | M71: 3 | N71: 17 | O71: 5 | P71: 11 | Q71: 12 | R71: 16 | S71: 16 | T71: 12 | U71: 5 | V71: 5 | W71: 12 | X71: 4 | Y71: 9 | Z71: 3 | AA71: 10 | AB71: 5 | AC71: 5 | AD71: 6 | AE71: 7 | AF71: 8 | AG71: 21 | AH71: 8 | AI71: 12 | AJ71: 5 | AK71: 6 | AL71: 19 | AM71: 8 | AN71: 8 | AO71: 11 | AP71: 3 | AQ71: 11 | AR71: 10 | AS71: 18 | AT71: 8 | AU71: 8 | AV71: 16 | AW71: 13 | AX71: 11 | AY71: 31 | AZ71: 24 | BA71: 0 | BB71: 531 | BC71: 46.64705882 | BD71: 10.41176471 | BE71: 9 | BF71: 5
A72: OG0000070 | B72: 16 | C72: 9 | D72: 2 | E72: 6 | F72: 7 | G72: 5 | H72: 0 | I72: 0 | J72: 0 | K72: 0 | L72: 5 | M72: 3 | N72: 2 | O72: 5 | P72: 19 | Q72: 13 | R72: 15 | S72: 10 | T72: 8 | U72: 18 | V72: 9 | W72: 21 | X72: 4 | Y72: 11 | Z72: 5 | AA72: 3 | AB72: 5 | AC72: 14 | AD72: 9 | AE72: 13 | AF72: 9 | AG72: 25 | AH72: 6 | AI72: 21 | AJ72: 12 | AK72: 6 | AL72: 24 | AM72: 6 | AN72: 6 | AO72: 8 | AP72: 12 | AQ72: 10 | AR72: 12 | AS72: 14 | AT72: 20 | AU72: 12 | AV72: 21 | AW72: 9 | AX72: 28 | AY72: 16 | AZ72: 16 | BA72: 4 | BB72: 530 | BC72: 48.68313725 | BD72: 10.39215686 | BE72: 9 | BF72: 9
A73: OG0000071 | B73: 5 | C73: 17 | D73: 16 | E73: 28 | F73: 1 | G73: 2 | H73: 8 | I73: 3 | J73: 1 | K73: 0 | L73: 4 | M73: 6 | N73: 10 | O73: 13 | P73: 3 | Q73: 5 | R73: 3 | S73: 3 | T73: 9 | U73: 10 | V73: 13 | W73: 9 | X73: 5 | Y73: 13 | Z73: 6 | AA73: 27 | AB73: 5 | AC73: 7 | AD73: 5 | AE73: 1 | AF73: 27 | AG73: 20 | AH73: 22 | AI73: 6 | AJ73: 7 | AK73: 9 | AL73: 8 | AM73: 19 | AN73: 12 | AO73: 15 | AP73: 2 | AQ73: 24 | AR73: 9 | AS73: 18 | AT73: 15 | AU73: 10 | AV73: 3 | AW73: 21 | AX73: 24 | AY73: 3 | AZ73: 15 | BA73: 1 | BB73: 527 | BC73: 59.86666667 | BD73: 10.33333333 | BE73: 9 | BF73: 3
A74: OG0000072 | B74: 5 | C74: 10 | D74: 4 | E74: 6 | F74: 8 | G74: 6 | H74: 9 | I74: 9 | J74: 1 | K74: 14 | L74: 10 | M74: 8 | N74: 7 | O74: 9 | P74: 8 | Q74: 13 | R74: 12 | S74: 13 | T74: 8 | U74: 12 | V74: 11 | W74: 4 | X74: 9 | Y74: 16 | Z74: 4 | AA74: 12 | AB74: 3 | AC74: 5 | AD74: 12 | AE74: 8 | AF74: 8 | AG74: 30 | AH74: 11 | AI74: 11 | AJ74: 9 | AK74: 9 | AL74: 18 | AM74: 6 | AN74: 9 | AO74: 14 | AP74: 10 | AQ74: 5 | AR74: 19 | AS74: 17 | AT74: 14 | AU74: 7 | AV74: 9 | AW74: 17 | AX74: 11 | AY74: 16 | AZ74: 13 | BA74: 0 | BB74: 519 | BC74: 24.38823529 | BD74: 10.17647059 | BE74: 9 | BF74: 9
A75: OG0000073 | B75: 5 | C75: 12 | D75: 6 | E75: 11 | F75: 12 | G75: 6 | H75: 9 | I75: 2 | J75: 2 | K75: 3 | L75: 7 | M75: 7 | N75: 3 | O75: 8 | P75: 22 | Q75: 6 | R75: 10 | S75: 15 | T75: 14 | U75: 5 | V75: 12 | W75: 8 | X75: 11 | Y75: 10 | Z75: 6 | AA75: 11 | AB75: 5 | AC75: 7 | AD75: 6 | AE75: 22 | AF75: 3 | AG75: 19 | AH75: 17 | AI75: 15 | AJ75: 13 | AK75: 9 | AL75: 21 | AM75: 1 | AN75: 10 | AO75: 16 | AP75: 11 | AQ75: 9 | AR75: 20 | AS75: 8 | AT75: 23 | AU75: 12 | AV75: 9 | AW75: 3 | AX75: 2 | AY75: 17 | AZ75: 18 | BA75: 0 | BB75: 519 | BC75: 34.34823529 | BD75: 10.17647059 | BE75: 9 | BF75: 6
A76: OG0000074 | B76: 6 | C76: 3 | D76: 5 | E76: 23 | F76: 5 | G76: 9 | H76: 8 | I76: 11 | J76: 6 | K76: 11 | L76: 2 | M76: 7 | N76: 17 | O76: 5 | P76: 21 | Q76: 10 | R76: 12 | S76: 8 | T76: 9 | U76: 22 | V76: 3 | W76: 11 | X76: 4 | Y76: 4 | Z76: 5 | AA76: 7 | AB76: 13 | AC76: 13 | AD76: 14 | AE76: 7 | AF76: 12 | AG76: 16 | AH76: 7 | AI76: 18 | AJ76: 3 | AK76: 9 | AL76: 12 | AM76: 12 | AN76: 4 | AO76: 6 | AP76: 8 | AQ76: 5 | AR76: 13 | AS76: 13 | AT76: 11 | AU76: 14 | AV76: 12 | AW76: 8 | AX76: 15 | AY76: 21 | AZ76: 16 | BA76: 0 | BB76: 516 | BC76: 28.06588235 | BD76: 10.11764706 | BE76: 9 | BF76: 5
A77: OG0000075 | B77: 10 | C77: 7 | D77: 8 | E77: 20 | F77: 10 | G77: 18 | H77: 9 | I77: 2 | J77: 5 | K77: 2 | L77: 6 | M77: 4 | N77: 24 | O77: 7 | P77: 18 | Q77: 6 | R77: 9 | S77: 7 | T77: 4 | U77: 6 | V77: 8 | W77: 24 | X77: 5 | Y77: 13 | Z77: 3 | AA77: 5 | AB77: 5 | AC77: 7 | AD77: 13 | AE77: 8 | AF77: 21 | AG77: 8 | AH77: 10 | AI77: 6 | AJ77: 8 | AK77: 1 | AL77: 13 | AM77: 9 | AN77: 15 | AO77: 16 | AP77: 9 | AQ77: 10 | AR77: 10 | AS77: 16 | AT77: 21 | AU77: 5 | AV77: 7 | AW77: 25 | AX77: 18 | AY77: 4 | AZ77: 7 | BA77: 0 | BB77: 512 | BC77: 38.15843137 | BD77: 10.03921569 | BE77: 8 | BF77: 7
A78: OG0000076 | B78: 3 | C78: 2 | D78: 11 | E78: 23 | F78: 1 | G78: 0 | H78: 3 | I78: 1 | J78: 0 | K78: 0 | L78: 1 | M78: 1 | N78: 6 | O78: 2 | P78: 29 | Q78: 7 | R78: 33 | S78: 5 | T78: 6 | U78: 28 | V78: 6 | W78: 15 | X78: 3 | Y78: 7 | Z78: 1 | AA78: 2 | AB78: 6 | AC78: 3 | AD78: 7 | AE78: 13 | AF78: 36 | AG78: 11 | AH78: 2 | AI78: 0 | AJ78: 4 | AK78: 2 | AL78: 9 | AM78: 9 | AN78: 3 | AO78: 2 | AP78: 11 | AQ78: 19 | AR78: 8 | AS78: 26 | AT78: 4 | AU78: 3 | AV78: 8 | AW78: 56 | AX78: 37 | AY78: 28 | AZ78: 8 | BA78: 4 | BB78: 511 | BC78: 145.7396078 | BD78: 10.01960784 | BE78: 6 | BF78: 3
A79: OG0000077 | B79: 2 | C79: 3 | D79: 6 | E79: 10 | F79: 6 | G79: 12 | H79: 10 | I79: 13 | J79: 5 | K79: 18 | L79: 14 | M79: 10 | N79: 9 | O79: 14 | P79: 3 | Q79: 10 | R79: 10 | S79: 5 | T79: 9 | U79: 5 | V79: 5 | W79: 10 | X79: 13 | Y79: 6 | Z79: 11 | AA79: 8 | AB79: 6 | AC79: 15 | AD79: 4 | AE79: 7 | AF79: 18 | AG79: 12 | AH79: 29 | AI79: 8 | AJ79: 7 | AK79: 9 | AL79: 8 | AM79: 5 | AN79: 22 | AO79: 16 | AP79: 4 | AQ79: 10 | AR79: 8 | AS79: 16 | AT79: 16 | AU79: 5 | AV79: 7 | AW79: 11 | AX79: 20 | AY79: 12 | AZ79: 9 | BA79: 0 | BB79: 511 | BC79: 28.49960784 | BD79: 10.01960784 | BE79: 9 | BF79: 10
A80: OG0000078 | B80: 1 | C80: 2 | D80: 1 | E80: 6 | F80: 5 | G80: 9 | H80: 3 | I80: 4 | J80: 0 | K80: 4 | L80: 0 | M80: 20 | N80: 3 | O80: 8 | P80: 15 | Q80: 21 | R80: 11 | S80: 5 | T80: 10 | U80: 12 | V80: 22 | W80: 14 | X80: 11 | Y80: 20 | Z80: 5 | AA80: 13 | AB80: 5 | AC80: 9 | AD80: 6 | AE80: 13 | AF80: 11 | AG80: 7 | AH80: 5 | AI80: 10 | AJ80: 11 | AK80: 4 | AL80: 9 | AM80: 15 | AN80: 7 | AO80: 17 | AP80: 11 | AQ80: 19 | AR80: 14 | AS80: 2 | AT80: 44 | AU80: 9 | AV80: 13 | AW80: 1 | AX80: 10 | AY80: 12 | AZ80: 20 | BA80: 2 | BB80: 509 | BC80: 58.65960784 | BD80: 9.980392157 | BE80: 9 | BF80: 5
A81: OG0000079 | B81: 3 | C81: 8 | D81: 10 | E81: 22 | F81: 8 | G81: 7 | H81: 7 | I81: 7 | J81: 6 | K81: 5 | L81: 7 | M81: 4 | N81: 9 | O81: 6 | P81: 15 | Q81: 6 | R81: 9 | S81: 13 | T81: 7 | U81: 4 | V81: 8 | W81: 26 | X81: 6 | Y81: 12 | Z81: 7 | AA81: 9 | AB81: 4 | AC81: 6 | AD81: 7 | AE81: 9 | AF81: 13 | AG81: 21 | AH81: 20 | AI81: 16 | AJ81: 7 | AK81: 10 | AL81: 17 | AM81: 7 | AN81: 10 | AO81: 12 | AP81: 5 | AQ81: 9 | AR81: 9 | AS81: 13 | AT81: 24 | AU81: 10 | AV81: 2 | AW81: 10 | AX81: 8 | AY81: 7 | AZ81: 18 | BA81: 0 | BB81: 505 | BC81: 29.77019608 | BD81: 9.901960784 | BE81: 8 | BF81: 7
A82: OG0000080 | B82: 25 | C82: 28 | D82: 22 | E82: 6 | F82: 8 | G82: 27 | H82: 3 | I82: 2 | J82: 1 | K82: 2 | L82: 5 | M82: 0 | N82: 24 | O82: 12 | P82: 2 | Q82: 0 | R82: 0 | S82: 9 | T82: 6 | U82: 5 | V82: 9 | W82: 11 | X82: 9 | Y82: 4 | Z82: 8 | AA82: 13 | AB82: 16 | AC82: 7 | AD82: 2 | AE82: 6 | AF82: 31 | AG82: 3 | AH82: 9 | AI82: 13 | AJ82: 7 | AK82: 8 | AL82: 2 | AM82: 11 | AN82: 9 | AO82: 10 | AP82: 3 | AQ82: 22 | AR82: 4 | AS82: 23 | AT82: 1 | AU82: 3 | AV82: 5 | AW82: 35 | AX82: 32 | AY82: 1 | AZ82: 0 | BA82: 4 | BB82: 504 | BC82: 89.78588235 | BD82: 9.882352941 | BE82: 7 | BF82: 2
A83: OG0000081 | B83: 2 | C83: 5 | D83: 8 | E83: 29 | F83: 13 | G83: 12 | H83: 13 | I83: 1 | J83: 0 | K83: 0 | L83: 1 | M83: 0 | N83: 7 | O83: 4 | P83: 13 | Q83: 10 | R83: 18 | S83: 29 | T83: 7 | U83: 4 | V83: 3 | W83: 7 | X83: 4 | Y83: 9 | Z83: 2 | AA83: 2 | AB83: 6 | AC83: 10 | AD83: 23 | AE83: 10 | AF83: 29 | AG83: 11 | AH83: 5 | AI83: 16 | AJ83: 3 | AK83: 12 | AL83: 16 | AM83: 6 | AN83: 4 | AO83: 2 | AP83: 10 | AQ83: 14 | AR83: 22 | AS83: 16 | AT83: 9 | AU83: 8 | AV83: 2 | AW83: 26 | AX83: 20 | AY83: 15 | AZ83: 6 | BA83: 3 | BB83: 504 | BC83: 63.18588235 | BD83: 9.882352941 | BE83: 8 | BF83: 2
A84: OG0000082 | B84: 29 | C84: 13 | D84: 19 | E84: 5 | F84: 0 | G84: 7 | H84: 1 | I84: 0 | J84: 0 | K84: 0 | L84: 1 | M84: 2 | N84: 12 | O84: 2 | P84: 9 | Q84: 14 | R84: 15 | S84: 11 | T84: 4 | U84: 3 | V84: 6 | W84: 9 | X84: 11 | Y84: 7 | Z84: 8 | AA84: 3 | AB84: 9 | AC84: 1 | AD84: 13 | AE84: 14 | AF84: 31 | AG84: 11 | AH84: 3 | AI84: 1 | AJ84: 4 | AK84: 2 | AL84: 14 | AM84: 12 | AN84: 7 | AO84: 12 | AP84: 17 | AQ84: 14 | AR84: 8 | AS84: 30 | AT84: 11 | AU84: 3 | AV84: 8 | AW84: 27 | AX84: 19 | AY84: 26 | AZ84: 14 | BA84: 4 | BB84: 502 | BC84: 67.25490196 | BD84: 9.843137255 | BE84: 9 | BF84: 14
A85: OG0000083 | B85: 3 | C85: 9 | D85: 11 | E85: 6 | F85: 2 | G85: 8 | H85: 11 | I85: 1 | J85: 1 | K85: 6 | L85: 1 | M85: 6 | N85: 1 | O85: 4 | P85: 20 | Q85: 20 | R85: 28 | S85: 14 | T85: 5 | U85: 2 | V85: 8 | W85: 13 | X85: 6 | Y85: 7 | Z85: 2 | AA85: 3 | AB85: 2 | AC85: 12 | AD85: 17 | AE85: 17 | AF85: 12 | AG85: 10 | AH85: 14 | AI85: 2 | AJ85: 4 | AK85: 6 | AL85: 12 | AM85: 0 | AN85: 9 | AO85: 33 | AP85: 10 | AQ85: 9 | AR85: 8 | AS85: 6 | AT85: 13 | AU85: 13 | AV85: 18 | AW85: 9 | AX85: 16 | AY85: 30 | AZ85: 22 | BA85: 1 | BB85: 502 | BC85: 58.53490196 | BD85: 9.843137255 | BE85: 9 | BF85: 6
A86: OG0000084 | B86: 14 | C86: 28 | D86: 18 | E86: 21 | F86: 5 | G86: 37 | H86: 1 | I86: 1 | J86: 1 | K86: 0 | L86: 4 | M86: 1 | N86: 22 | O86: 2 | P86: 0 | Q86: 1 | R86: 1 | S86: 0 | T86: 10 | U86: 16 | V86: 7 | W86: 6 | X86: 8 | Y86: 6 | Z86: 11 | AA86: 15 | AB86: 13 | AC86: 6 | AD86: 4 | AE86: 9 | AF86: 17 | AG86: 3 | AH86: 1 | AI86: 0 | AJ86: 9 | AK86: 2 | AL86: 4 | AM86: 11 | AN86: 6 | AO86: 6 | AP86: 4 | AQ86: 17 | AR86: 17 | AS86: 9 | AT86: 16 | AU86: 7 | AV86: 10 | AW86: 49 | AX86: 27 | AY86: 3 | AZ86: 10 | BA86: 4 | BB86: 496 | BC86: 98.52313725 | BD86: 9.725490196 | BE86: 7 | BF86: 1
A87: OG0000085 | B87: 6 | C87: 9 | D87: 5 | E87: 25 | F87: 13 | G87: 10 | H87: 11 | I87: 1 | J87: 1 | K87: 7 | L87: 4 | M87: 3 | N87: 10 | O87: 3 | P87: 23 | Q87: 14 | R87: 14 | S87: 18 | T87: 10 | U87: 7 | V87: 9 | W87: 9 | X87: 7 | Y87: 9 | Z87: 6 | AA87: 8 | AB87: 8 | AC87: 24 | AD87: 7 | AE87: 6 | AF87: 14 | AG87: 9 | AH87: 20 | AI87: 16 | AJ87: 3 | AK87: 11 | AL87: 11 | AM87: 10 | AN87: 4 | AO87: 12 | AP87: 4 | AQ87: 7 | AR87: 13 | AS87: 9 | AT87: 11 | AU87: 3 | AV87: 4 | AW87: 16 | AX87: 13 | AY87: 7 | AZ87: 12 | BA87: 0 | BB87: 496 | BC87: 31.04313725 | BD87: 9.725490196 | BE87: 9 | BF87: 9
A88: OG0000086 | B88: 17 | C88: 3 | D88: 5 | E88: 3 | F88: 8 | G88: 6 | H88: 2 | I88: 0 | J88: 0 | K88: 0 | L88: 3 | M88: 2 | N88: 1 | O88: 5 | P88: 43 | Q88: 34 | R88: 35 | S88: 18 | T88: 15 | U88: 9 | V88: 0 | W88: 3 | X88: 4 | Y88: 5 | Z88: 6 | AA88: 7 | AB88: 0 | AC88: 3 | AD88: 14 | AE88: 18 | AF88: 6 | AG88: 5 | AH88: 2 | AI88: 0 | AJ88: 5 | AK88: 7 | AL88: 48 | AM88: 7 | AN88: 2 | AO88: 7 | AP88: 21 | AQ88: 7 | AR88: 25 | AS88: 3 | AT88: 11 | AU88: 7 | AV88: 24 | AW88: 5 | AX88: 0 | AY88: 26 | AZ88: 8 | BA88: 7 | BB88: 495 | BC88: 127.4917647 | BD88: 9.705882353 | BE88: 6 | BF88: 0
A89: OG0000087 | B89: 2 | C89: 9 | D89: 5 | E89: 11 | F89: 6 | G89: 13 | H89: 7 | I89: 6 | J89: 6 | K89: 7 | L89: 7 | M89: 5 | N89: 10 | O89: 6 | P89: 12 | Q89: 12 | R89: 12 | S89: 11 | T89: 6 | U89: 5 | V89: 12 | W89: 13 | X89: 9 | Y89: 14 | Z89: 6 | AA89: 2 | AB89: 3 | AC89: 9 | AD89: 5 | AE89: 15 | AF89: 32 | AG89: 14 | AH89: 7 | AI89: 8 | AJ89: 9 | AK89: 7 | AL89: 5 | AM89: 4 | AN89: 10 | AO89: 15 | AP89: 3 | AQ89: 10 | AR89: 6 | AS89: 28 | AT89: 15 | AU89: 5 | AV89: 6 | AW89: 28 | AX89: 20 | AY89: 8 | AZ89: 8 | BA89: 0 | BB89: 494 | BC89: 39.41960784 | BD89: 9.68627451 | BE89: 8 | BF89: 6
A90: OG0000088 | B90: 12 | C90: 9 | D90: 14 | E90: 5 | F90: 3 | G90: 3 | H90: 3 | I90: 2 | J90: 2 | K90: 1 | L90: 6 | M90: 10 | N90: 4 | O90: 9 | P90: 11 | Q90: 23 | R90: 31 | S90: 3 | T90: 4 | U90: 9 | V90: 3 | W90: 7 | X90: 7 | Y90: 5 | Z90: 7 | AA90: 6 | AB90: 4 | AC90: 10 | AD90: 5 | AE90: 13 | AF90: 11 | AG90: 8 | AH90: 13 | AI90: 7 | AJ90: 6 | AK90: 8 | AL90: 14 | AM90: 15 | AN90: 12 | AO90: 11 | AP90: 9 | AQ90: 7 | AR90: 14 | AS90: 13 | AT90: 30 | AU90: 9 | AV90: 10 | AW90: 10 | AX90: 3 | AY90: 43 | AZ90: 8 | BA90: 0 | BB90: 492 | BC90: 59.99294118 | BD90: 9.647058824 | BE90: 8 | BF90: 3
A91: OG0000089 | B91: 86 | C91: 6 | D91: 45 | E91: 12 | F91: 11 | G91: 0 | H91: 0 | I91: 0 | J91: 0 | K91: 0 | L91: 0 | M91: 0 | N91: 20 | O91: 3 | P91: 12 | Q91: 5 | R91: 16 | S91: 10 | T91: 7 | U91: 4 | V91: 2 | W91: 4 | X91: 6 | Y91: 1 | Z91: 4 | AA91: 0 | AB91: 1 | AC91: 1 | AD91: 4 | AE91: 11 | AF91: 14 | AG91: 1 | AH91: 1 | AI91: 4 | AJ91: 2 | AK91: 14 | AL91: 12 | AM91: 11 | AN91: 0 | AO91: 5 | AP91: 22 | AQ91: 28 | AR91: 6 | AS91: 10 | AT91: 10 | AU91: 0 | AV91: 20 | AW91: 13 | AX91: 34 | AY91: 13 | AZ91: 0 | BA91: 11 | BB91: 491 | BC91: 206.1584314 | BD91: 9.62745098 | BE91: 5 | BF91: 0
A92: OG0000090 | B92: 10 | C92: 5 | D92: 3 | E92: 20 | F92: 15 | G92: 6 | H92: 8 | I92: 2 | J92: 4 | K92: 4 | L92: 3 | M92: 6 | N92: 5 | O92: 1 | P92: 25 | Q92: 14 | R92: 8 | S92: 9 | T92: 15 | U92: 6 | V92: 10 | W92: 4 | X92: 5 | Y92: 10 | Z92: 5 | AA92: 4 | AB92: 4 | AC92: 9 | AD92: 12 | AE92: 17 | AF92: 19 | AG92: 10 | AH92: 17 | AI92: 10 | AJ92: 2 | AK92: 7 | AL92: 24 | AM92: 12 | AN92: 9 | AO92: 9 | AP92: 6 | AQ92: 9 | AR92: 22 | AS92: 6 | AT92: 8 | AU92: 13 | AV92: 11 | AW92: 17 | AX92: 3 | AY92: 9 | AZ92: 18 | BA92: 0 | BB92: 490 | BC92: 35.52313725 | BD92: 9.607843137 | BE92: 9 | BF92: 9
A93: OG0000091 | B93: 1 | C93: 4 | D93: 1 | E93: 3 | F93: 1 | G93: 1 | H93: 2 | I93: 1 | J93: 6 | K93: 1 | L93: 4 | M93: 3 | N93: 8 | O93: 4 | P93: 15 | Q93: 25 | R93: 18 | S93: 12 | T93: 14 | U93: 11 | V93: 7 | W93: 11 | X93: 5 | Y93: 4 | Z93: 4 | AA93: 11 | AB93: 3 | AC93: 8 | AD93: 15 | AE93: 12 | AF93: 17 | AG93: 4 | AH93: 11 | AI93: 11 | AJ93: 4 | AK93: 7 | AL93: 32 | AM93: 16 | AN93: 7 | AO93: 16 | AP93: 10 | AQ93: 7 | AR93: 13 | AS93: 3 | AT93: 6 | AU93: 16 | AV93: 11 | AW93: 15 | AX93: 11 | AY93: 29 | AZ93: 28 | BA93: 0 | BB93: 489 | BC93: 56.40705882 | BD93: 9.588235294 | BE93: 8 | BF93: 4
A94: OG0000092 | B94: 9 | C94: 7 | D94: 8 | E94: 9 | F94: 9 | G94: 3 | H94: 8 | I94: 10 | J94: 9 | K94: 9 | L94: 5 | M94: 3 | N94: 6 | O94: 7 | P94: 6 | Q94: 6 | R94: 14 | S94: 12 | T94: 8 | U94: 7 | V94: 7 | W94: 14 | X94: 12 | Y94: 16 | Z94: 11 | AA94: 7 | AB94: 3 | AC94: 12 | AD94: 10 | AE94: 11 | AF94: 11 | AG94: 12 | AH94: 7 | AI94: 16 | AJ94: 11 | AK94: 5 | AL94: 11 | AM94: 9 | AN94: 13 | AO94: 10 | AP94: 12 | AQ94: 10 | AR94: 17 | AS94: 7 | AT94: 20 | AU94: 7 | AV94: 6 | AW94: 1 | AX94: 16 | AY94: 12 | AZ94: 17 | BA94: 0 | BB94: 488 | BC94: 15.97019608 | BD94: 9.568627451 | BE94: 9 | BF94: 7
A95: OG0000093 | B95: 7 | C95: 8 | D95: 12 | E95: 13 | F95: 2 | G95: 11 | H95: 11 | I95: 1 | J95: 1 | K95: 2 | L95: 8 | M95: 5 | N95: 5 | O95: 11 | P95: 9 | Q95: 11 | R95: 18 | S95: 7 | T95: 6 | U95: 8 | V95: 10 | W95: 13 | X95: 8 | Y95: 10 | Z95: 8 | AA95: 4 | AB95: 4 | AC95: 10 | AD95: 15 | AE95: 12 | AF95: 15 | AG95: 10 | AH95: 7 | AI95: 11 | AJ95: 12 | AK95: 4 | AL95: 12 | AM95: 4 | AN95: 10 | AO95: 12 | AP95: 9 | AQ95: 14 | AR95: 8 | AS95: 8 | AT95: 12 | AU95: 11 | AV95: 16 | AW95: 16 | AX95: 19 | AY95: 17 | AZ95: 10 | BA95: 0 | BB95: 487 | BC95: 18.53254902 | BD95: 9.549019608 | BE95: 10 | BF95: 8
A96: OG0000094 | B96: 9 | C96: 15 | D96: 13 | E96: 22 | F96: 12 | G96: 6 | H96: 9 | I96: 3 | J96: 2 | K96: 2 | L96: 3 | M96: 6 | N96: 7 | O96: 5 | P96: 16 | Q96: 18 | R96: 18 | S96: 14 | T96: 8 | U96: 15 | V96: 4 | W96: 7 | X96: 2 | Y96: 5 | Z96: 2 | AA96: 4 | AB96: 13 | AC96: 2 | AD96: 15 | AE96: 15 | AF96: 23 | AG96: 6 | AH96: 6 | AI96: 4 | AJ96: 3 | AK96: 3 | AL96: 8 | AM96: 11 | AN96: 3 | AO96: 2 | AP96: 10 | AQ96: 13 | AR96: 12 | AS96: 5 | AT96: 5 | AU96: 6 | AV96: 15 | AW96: 29 | AX96: 12 | AY96: 27 | AZ96: 11 | BA96: 0 | BB96: 486 | BC96: 44.85411765 | BD96: 9.529411765 | BE96: 8 | BF96: 2
A97: OG0000095 | B97: 8 | C97: 11 | D97: 14 | E97: 4 | F97: 1 | G97: 4 | H97: 2 | I97: 0 | J97: 0 | K97: 0 | L97: 1 | M97: 7 | N97: 12 | O97: 9 | P97: 4 | Q97: 14 | R97: 18 | S97: 21 | T97: 11 | U97: 14 | V97: 11 | W97: 19 | X97: 10 | Y97: 12 | Z97: 9 | AA97: 2 | AB97: 10 | AC97: 11 | AD97: 16 | AE97: 8 | AF97: 7 | AG97: 14 | AH97: 6 | AI97: 6 | AJ97: 8 | AK97: 5 | AL97: 21 | AM97: 7 | AN97: 4 | AO97: 8 | AP97: 9 | AQ97: 14 | AR97: 17 | AS97: 11 | AT97: 13 | AU97: 7 | AV97: 13 | AW97: 9 | AX97: 13 | AY97: 16 | AZ97: 15 | BA97: 3 | BB97: 486 | BC97: 29.77411765 | BD97: 9.529411765 | BE97: 9 | BF97: 11
A98: OG0000096 | B98: 7 | C98: 6 | D98: 5 | E98: 5 | F98: 6 | G98: 6 | H98: 10 | I98: 6 | J98: 1 | K98: 2 | L98: 10 | M98: 6 | N98: 10 | O98: 4 | P98: 15 | Q98: 4 | R98: 13 | S98: 10 | T98: 6 | U98: 5 | V98: 9 | W98: 15 | X98: 5 | Y98: 10 | Z98: 7 | AA98: 6 | AB98: 5 | AC98: 4 | AD98: 7 | AE98: 4 | AF98: 19 | AG98: 21 | AH98: 20 | AI98: 15 | AJ98: 8 | AK98: 4 | AL98: 13 | AM98: 8 | AN98: 15 | AO98: 27 | AP98: 4 | AQ98: 21 | AR98: 13 | AS98: 8 | AT98: 24 | AU98: 11 | AV98: 3 | AW98: 13 | AX98: 14 | AY98: 11 | AZ98: 3 | BA98: 0 | BB98: 484 | BC98: 35.69490196 | BD98: 9.490196078 | BE98: 8 | BF98: 6
A99: OG0000097 | B99: 26 | C99: 49 | D99: 21 | E99: 14 | F99: 1 | G99: 28 | H99: 0 | I99: 1 | J99: 1 | K99: 0 | L99: 3 | M99: 0 | N99: 22 | O99: 0 | P99: 4 | Q99: 12 | R99: 8 | S99: 10 | T99: 3 | U99: 10 | V99: 8 | W99: 6 | X99: 4 | Y99: 9 | Z99: 4 | AA99: 12 | AB99: 4 | AC99: 3 | AD99: 6 | AE99: 8 | AF99: 18 | AG99: 2 | AH99: 2 | AI99: 8 | AJ99: 4 | AK99: 11 | AL99: 3 | AM99: 14 | AN99: 5 | AO99: 3 | AP99: 2 | AQ99: 13 | AR99: 6 | AS99: 16 | AT99: 20 | AU99: 4 | AV99: 6 | AW99: 24 | AX99: 28 | AY99: 10 | AZ99: 7 | BA99: 4 | BB99: 483 | BC99: 90.65411765 | BD99: 9.470588235 | BE99: 6 | BF99: 4
A100: OG0000098 | B100: 1 | C100: 2 | D100: 9 | E100: 3 | F100: 3 | G100: 2 | H100: 1 | I100: 2 | J100: 0 | K100: 5 | L100: 6 | M100: 6 | N100: 4 | O100: 6 | P100: 31 | Q100: 21 | R100: 16 | S100: 7 | T100: 6 | U100: 4 | V100: 10 | W100: 13 | X100: 7 | Y100: 14 | Z100: 7 | AA100: 2 | AB100: 3 | AC100: 2 | AD100: 13 | AE100: 18 | AF100: 15 | AG100: 33 | AH100: 8 | AI100: 6 | AJ100: 6 | AK100: 4 | AL100: 22 | AM100: 11 | AN100: 12 | AO100: 7 | AP100: 10 | AQ100: 14 | AR100: 8 | AS100: 19 | AT100: 5 | AU100: 8 | AV100: 11 | AW100: 15 | AX100: 17 | AY100: 17 | AZ100: 11 | BA100: 1 | BB100: 483 | BC100: 52.77411765 | BD100: 9.470588235 | BE100: 7 | BF100: 6
A101: OG0000099 | B101: 9 | C101: 10 | D101: 13 | E101: 7 | F101: 3 | G101: 11 | H101: 6 | I101: 1 | J101: 1 | K101: 0 | L101: 3 | M101: 1 | N101: 1 | O101: 3 | P101: 17 | Q101: 12 | R101: 8 | S101: 14 | T101: 3 | U101: 14 | V101: 4 | W101: 13 | X101: 7 | Y101: 3 | Z101: 5 | AA101: 21 | AB101: 13 | AC101: 12 | AD101: 10 | AE101: 11 | AF101: 17 | AG101: 6 | AH101: 2 | AI101: 7 | AJ101: 7 | AK101: 8 | AL101: 12 | AM101: 14 | AN101: 4 | AO101: 8 | AP101: 8 | AQ101: 11 | AR101: 9 | AS101: 4 | AT101: 13 | AU101: 7 | AV101: 19 | AW101: 40 | AX101: 24 | AY101: 10 | AZ101: 15 | BA101: 1 | BB101: 481 | BC101: 49.29019608 | BD101: 9.431372549 | BE101: 8 | BF101: 7
A102: OG0000100 | B102: 5 | C102: 6 | D102: 8 | E102: 11 | F102: 7 | G102: 6 | H102: 6 | I102: 12 | J102: 3 | K102: 7 | L102: 5 | M102: 7 | N102: 5 | O102: 7 | P102: 14 | Q102: 11 | R102: 7 | S102: 18 | T102: 10 | U102: 2 | V102: 17 | W102: 12 | X102: 12 | Y102: 3 | Z102: 6 | AA102: 15 | AB102: 6 | AC102: 11 | AD102: 9 | AE102: 8 | AF102: 17 | AG102: 14 | AH102: 8 | AI102: 11 | AJ102: 3 | AK102: 10 | AL102: 8 | AM102: 10 | AN102: 10 | AO102: 14 | AP102: 8 | AQ102: 12 | AR102: 14 | AS102: 11 | AT102: 11 | AU102: 10 | AV102: 7 | AW102: 13 | AX102: 18 | AY102: 10 | AZ102: 5 | BA102: 0 | BB102: 480 | BC102: 15.88705882 | BD102: 9.411764706 | BE102: 10 | BF102: 11
A103: OG0000101 | B103: 10 | C103: 10 | D103: 10 | E103: 10 | F103: 14 | G103: 10 | H103: 8 | I103: 16 | J103: 2 | K103: 8 | L103: 4 | M103: 3 | N103: 7 | O103: 5 | P103: 16 | Q103: 13 | R103: 13 | S103: 8 | T103: 8 | U103: 9 | V103: 8 | W103: 7 | X103: 7 | Y103: 10 | Z103: 5 | AA103: 6 | AB103: 4 | AC103: 6 | AD103: 10 | AE103: 14 | AF103: 15 | AG103: 5 | AH103: 4 | AI103: 3 | AJ103: 7 | AK103: 9 | AL103: 9 | AM103: 12 | AN103: 3 | AO103: 12 | AP103: 8 | AQ103: 15 | AR103: 9 | AS103: 11 | AT103: 9 | AU103: 8 | AV103: 8 | AW103: 18 | AX103: 26 | AY103: 13 | AZ103: 9 | BA103: 0 | BB103: 474 | BC103: 19.69176471 | BD103: 9.294117647 | BE103: 9 | BF103: 8
A104: OG0000102 | B104: 7 | C104: 5 | D104: 8 | E104: 6 | F104: 5 | G104: 5 | H104: 9 | I104: 5 | J104: 4 | K104: 5 | L104: 5 | M104: 3 | N104: 4 | O104: 9 | P104: 16 | Q104: 14 | R104: 15 | S104: 6 | T104: 9 | U104: 7 | V104: 11 | W104: 9 | X104: 7 | Y104: 3 | Z104: 6 | AA104: 3 | AB104: 5 | AC104: 5 | AD104: 8 | AE104: 10 | AF104: 15 | AG104: 11 | AH104: 10 | AI104: 7 | AJ104: 3 | AK104: 5 | AL104: 17 | AM104: 6 | AN104: 10 | AO104: 5 | AP104: 6 | AQ104: 22 | AR104: 13 | AS104: 14 | AT104: 17 | AU104: 9 | AV104: 9 | AW104: 28 | AX104: 14 | AY104: 18 | AZ104: 21 | BA104: 0 | BB104: 474 | BC104: 30.37176471 | BD104: 9.294117647 | BE104: 8 | BF104: 5
A105: OG0000103 | B105: 10 | C105: 3 | D105: 16 | E105: 2 | F105: 3 | G105: 2 | H105: 7 | I105: 4 | J105: 12 | K105: 3 | L105: 11 | M105: 7 | N105: 9 | O105: 8 | P105: 4 | Q105: 11 | R105: 8 | S105: 8 | T105: 9 | U105: 12 | V105: 5 | W105: 22 | X105: 6 | Y105: 6 | Z105: 1 | AA105: 1 | AB105: 4 | AC105: 4 | AD105: 2 | AE105: 9 | AF105: 29 | AG105: 10 | AH105: 5 | AI105: 18 | AJ105: 8 | AK105: 8 | AL105: 19 | AM105: 3 | AN105: 11 | AO105: 16 | AP105: 6 | AQ105: 12 | AR105: 10 | AS105: 22 | AT105: 13 | AU105: 5 | AV105: 11 | AW105: 13 | AX105: 26 | AY105: 14 | AZ105: 4 | BA105: 0 | BB105: 472 | BC105: 40.75372549 | BD105: 9.254901961 | BE105: 8 | BF105: 4
A106: OG0000104 | B106: 15 | C106: 12 | D106: 11 | E106: 20 | F106: 5 | G106: 2 | H106: 2 | I106: 0 | J106: 1 | K106: 5 | L106: 4 | M106: 4 | N106: 3 | O106: 1 | P106: 7 | Q106: 9 | R106: 11 | S106: 25 | T106: 7 | U106: 13 | V106: 12 | W106: 12 | X106: 1 | Y106: 17 | Z106: 3 | AA106: 1 | AB106: 6 | AC106: 5 | AD106: 13 | AE106: 5 | AF106: 25 | AG106: 7 | AH106: 2 | AI106: 13 | AJ106: 4 | AK106: 9 | AL106: 18 | AM106: 0 | AN106: 5 | AO106: 4 | AP106: 9 | AQ106: 24 | AR106: 10 | AS106: 32 | AT106: 1 | AU106: 2 | AV106: 7 | AW106: 27 | AX106: 15 | AY106: 16 | AZ106: 9 | BA106: 2 | BB106: 471 | BC106: 60.26352941 | BD106: 9.235294118 | BE106: 7 | BF106: 5
A107: OG0000105 | B107: 5 | C107: 7 | D107: 2 | E107: 5 | F107: 4 | G107: 12 | H107: 2 | I107: 0 | J107: 0 | K107: 5 | L107: 8 | M107: 11 | N107: 11 | O107: 7 | P107: 4 | Q107: 0 | R107: 2 | S107: 2 | T107: 8 | U107: 11 | V107: 10 | W107: 7 | X107: 9 | Y107: 11 | Z107: 5 | AA107: 2 | AB107: 11 | AC107: 9 | AD107: 9 | AE107: 9 | AF107: 20 | AG107: 11 | AH107: 9 | AI107: 4 | AJ107: 12 | AK107: 4 | AL107: 13 | AM107: 6 | AN107: 14 | AO107: 18 | AP107: 8 | AQ107: 10 | AR107: 11 | AS107: 19 | AT107: 25 | AU107: 16 | AV107: 8 | AW107: 25 | AX107: 26 | AY107: 7 | AZ107: 17 | BA107: 3 | BB107: 471 | BC107: 39.66352941 | BD107: 9.235294118 | BE107: 9 | BF107: 11
A108: OG0000106 | B108: 2 | C108: 2 | D108: 4 | E108: 1 | F108: 0 | G108: 2 | H108: 0 | I108: 1 | J108: 15 | K108: 0 | L108: 1 | M108: 2 | N108: 10 | O108: 7 | P108: 4 | Q108: 4 | R108: 5 | S108: 13 | T108: 9 | U108: 13 | V108: 6 | W108: 8 | X108: 6 | Y108: 4 | Z108: 1 | AA108: 1 | AB108: 4 | AC108: 8 | AD108: 7 | AE108: 14 | AF108: 22 | AG108: 13 | AH108: 11 | AI108: 34 | AJ108: 1 | AK108: 5 | AL108: 9 | AM108: 9 | AN108: 4 | AO108: 6 | AP108: 8 | AQ108: 14 | AR108: 23 | AS108: 25 | AT108: 13 | AU108: 12 | AV108: 21 | AW108: 52 | AX108: 11 | AY108: 7 | AZ108: 16 | BA108: 3 | BB108: 470 | BC108: 90.01254902 | BD108: 9.215686275 | BE108: 7 | BF108: 4
A109: OG0000107 | B109: 8 | C109: 3 | D109: 7 | E109: 5 | F109: 6 | G109: 3 | H109: 7 | I109: 5 | J109: 5 | K109: 5 | L109: 1 | M109: 8 | N109: 12 | O109: 6 | P109: 15 | Q109: 12 | R109: 7 | S109: 13 | T109: 5 | U109: 3 | V109: 7 | W109: 15 | X109: 4 | Y109: 12 | Z109: 3 | AA109: 3 | AB109: 4 | AC109: 9 | AD109: 14 | AE109: 12 | AF109: 16 | AG109: 21 | AH109: 30 | AI109: 15 | AJ109: 4 | AK109: 6 | AL109: 11 | AM109: 3 | AN109: 3 | AO109: 14 | AP109: 6 | AQ109: 14 | AR109: 9 | AS109: 5 | AT109: 9 | AU109: 13 | AV109: 12 | AW109: 21 | AX109: 10 | AY109: 13 | AZ109: 13 | BA109: 0 | BB109: 467 | BC109: 32.29490196 | BD109: 9.156862745 | BE109: 8 | BF109: 3
A110: OG0000108 | B110: 6 | C110: 7 | D110: 8 | E110: 4 | F110: 4 | G110: 4 | H110: 5 | I110: 0 | J110: 0 | K110: 0 | L110: 3 | M110: 7 | N110: 11 | O110: 6 | P110: 10 | Q110: 7 | R110: 13 | S110: 12 | T110: 4 | U110: 14 | V110: 16 | W110: 13 | X110: 11 | Y110: 8 | Z110: 9 | AA110: 8 | AB110: 7 | AC110: 10 | AD110: 10 | AE110: 4 | AF110: 32 | AG110: 6 | AH110: 3 | AI110: 4 | AJ110: 12 | AK110: 3 | AL110: 17 | AM110: 13 | AN110: 9 | AO110: 7 | AP110: 12 | AQ110: 15 | AR110: 13 | AS110: 14 | AT110: 12 | AU110: 5 | AV110: 8 | AW110: 19 | AX110: 10 | AY110: 14 | AZ110: 12 | BA110: 3 | BB110: 461 | BC110: 31.15843137 | BD110: 9.039215686 | BE110: 8 | BF110: 4
A111: OG0000109 | B111: 9 | C111: 13 | D111: 14 | E111: 11 | F111: 11 | G111: 7 | H111: 3 | I111: 0 | J111: 0 | K111: 0 | L111: 2 | M111: 4 | N111: 12 | O111: 4 | P111: 6 | Q111: 16 | R111: 17 | S111: 9 | T111: 5 | U111: 10 | V111: 13 | W111: 7 | X111: 8 | Y111: 5 | Z111: 6 | AA111: 7 | AB111: 7 | AC111: 10 | AD111: 4 | AE111: 8 | AF111: 34 | AG111: 3 | AH111: 4 | AI111: 5 | AJ111: 5 | AK111: 6 | AL111: 5 | AM111: 15 | AN111: 8 | AO111: 9 | AP111: 8 | AQ111: 16 | AR111: 5 | AS111: 18 | AT111: 12 | AU111: 4 | AV111: 13 | AW111: 25 | AX111: 20 | AY111: 15 | AZ111: 3 | BA111: 3 | BB111: 461 | BC111: 41.71843137 | BD111: 9.039215686 | BE111: 8 | BF111: 5
A112: OG0000110 | B112: 16 | C112: 8 | D112: 13 | E112: 11 | F112: 2 | G112: 10 | H112: 1 | I112: 0 | J112: 0 | K112: 0 | L112: 5 | M112: 5 | N112: 11 | O112: 8 | P112: 17 | Q112: 9 | R112: 15 | S112: 10 | T112: 6 | U112: 8 | V112: 18 | W112: 6 | X112: 3 | Y112: 14 | Z112: 4 | AA112: 8 | AB112: 4 | AC112: 2 | AD112: 6 | AE112: 4 | AF112: 21 | AG112: 9 | AH112: 7 | AI112: 6 | AJ112: 7 | AK112: 3 | AL112: 15 | AM112: 12 | AN112: 6 | AO112: 13 | AP112: 4 | AQ112: 15 | AR112: 8 | AS112: 17 | AT112: 17 | AU112: 3 | AV112: 4 | AW112: 32 | AX112: 16 | AY112: 13 | AZ112: 6 | BA112: 3 | BB112: 458 | BC112: 39.61960784 | BD112: 8.980392157 | BE112: 8 | BF112: 6
A113: OG0000111 | B113: 15 | C113: 19 | D113: 10 | E113: 13 | F113: 8 | G113: 1 | H113: 2 | I113: 0 | J113: 0 | K113: 0 | L113: 1 | M113: 0 | N113: 17 | O113: 2 | P113: 10 | Q113: 13 | R113: 8 | S113: 6 | T113: 6 | U113: 7 | V113: 5 | W113: 17 | X113: 5 | Y113: 4 | Z113: 3 | AA113: 3 | AB113: 13 | AC113: 9 | AD113: 10 | AE113: 11 | AF113: 19 | AG113: 7 | AH113: 2 | AI113: 7 | AJ113: 3 | AK113: 4 | AL113: 16 | AM113: 6 | AN113: 5 | AO113: 6 | AP113: 5 | AQ113: 17 | AR113: 15 | AS113: 27 | AT113: 12 | AU113: 2 | AV113: 9 | AW113: 29 | AX113: 12 | AY113: 16 | AZ113: 19 | BA113: 4 | BB113: 456 | BC113: 47.57647059 | BD113: 8.941176471 | BE113: 7 | BF113: 2
A114: OG0000112 | B114: 5 | C114: 5 | D114: 11 | E114: 13 | F114: 1 | G114: 4 | H114: 6 | I114: 0 | J114: 0 | K114: 0 | L114: 5 | M114: 19 | N114: 5 | O114: 4 | P114: 19 | Q114: 22 | R114: 19 | S114: 11 | T114: 8 | U114: 5 | V114: 13 | W114: 12 | X114: 8 | Y114: 7 | Z114: 5 | AA114: 4 | AB114: 5 | AC114: 14 | AD114: 7 | AE114: 16 | AF114: 5 | AG114: 12 | AH114: 3 | AI114: 6 | AJ114: 16 | AK114: 5 | AL114: 14 | AM114: 11 | AN114: 14 | AO114: 18 | AP114: 11 | AQ114: 9 | AR114: 8 | AS114: 7 | AT114: 12 | AU114: 5 | AV114: 8 | AW114: 0 | AX114: 4 | AY114: 18 | AZ114: 17 | BA114: 4 | BB114: 456 | BC114: 33.21647059 | BD114: 8.941176471 | BE114: 8 | BF114: 5
A115: OG0000113 | B115: 6 | C115: 5 | D115: 15 | E115: 8 | F115: 8 | G115: 29 | H115: 4 | I115: 0 | J115: 1 | K115: 4 | L115: 4 | M115: 0 | N115: 2 | O115: 16 | P115: 2 | Q115: 13 | R115: 5 | S115: 22 | T115: 10 | U115: 4 | V115: 1 | W115: 7 | X115: 9 | Y115: 14 | Z115: 5 | AA115: 7 | AB115: 0 | AC115: 8 | AD115: 15 | AE115: 14 | AF115: 2 | AG115: 12 | AH115: 13 | AI115: 13 | AJ115: 3 | AK115: 33 | AL115: 20 | AM115: 4 | AN115: 13 | AO115: 12 | AP115: 7 | AQ115: 9 | AR115: 20 | AS115: 2 | AT115: 14 | AU115: 5 | AV115: 10 | AW115: 5 | AX115: 2 | AY115: 7 | AZ115: 11 | BA115: 3 | BB115: 455 | BC115: 51.11372549 | BD115: 8.921568627 | BE115: 7 | BF115: 5
A116: OG0000114 | B116: 8 | C116: 3 | D116: 2 | E116: 12 | F116: 4 | G116: 4 | H116: 4 | I116: 1 | J116: 1 | K116: 0 | L116: 6 | M116: 14 | N116: 12 | O116: 8 | P116: 12 | Q116: 10 | R116: 10 | S116: 14 | T116: 7 | U116: 17 | V116: 15 | W116: 17 | X116: 7 | Y116: 8 | Z116: 6 | AA116: 5 | AB116: 3 | AC116: 9 | AD116: 9 | AE116: 9 | AF116: 9 | AG116: 17 | AH116: 6 | AI116: 7 | AJ116: 8 | AK116: 8 | AL116: 11 | AM116: 5 | AN116: 7 | AO116: 9 | AP116: 5 | AQ116: 11 | AR116: 6 | AS116: 22 | AT116: 11 | AU116: 4 | AV116: 17 | AW116: 20 | AX116: 7 | AY116: 13 | AZ116: 13 | BA116: 1 | BB116: 453 | BC116: 24.86588235 | BD116: 8.882352941 | BE116: 8 | BF116: 8
A117: OG0000115 | B117: 21 | C117: 9 | D117: 15 | E117: 18 | F117: 8 | G117: 5 | H117: 1 | I117: 2 | J117: 0 | K117: 1 | L117: 1 | M117: 2 | N117: 12 | O117: 5 | P117: 6 | Q117: 11 | R117: 11 | S117: 11 | T117: 3 | U117: 12 | V117: 9 | W117: 12 | X117: 3 | Y117: 8 | Z117: 5 | AA117: 9 | AB117: 12 | AC117: 6 | AD117: 5 | AE117: 8 | AF117: 24 | AG117: 10 | AH117: 4 | AI117: 7 | AJ117: 4 | AK117: 7 | AL117: 3 | AM117: 10 | AN117: 4 | AO117: 11 | AP117: 7 | AQ117: 15 | AR117: 9 | AS117: 25 | AT117: 4 | AU117: 6 | AV117: 7 | AW117: 13 | AX117: 11 | AY117: 29 | AZ117: 11 | BA117: 1 | BB117: 452 | BC117: 38.88078431 | BD117: 8.862745098 | BE117: 8 | BF117: 11
A118: OG0000116 | B118: 0 | C118: 0 | D118: 0 | E118: 1 | F118: 2 | G118: 1 | H118: 0 | I118: 0 | J118: 0 | K118: 0 | L118: 0 | M118: 0 | N118: 8 | O118: 11 | P118: 20 | Q118: 21 | R118: 14 | S118: 6 | T118: 12 | U118: 13 | V118: 4 | W118: 0 | X118: 4 | Y118: 10 | Z118: 1 | AA118: 26 | AB118: 3 | AC118: 1 | AD118: 29 | AE118: 23 | AF118: 6 | AG118: 14 | AH118: 9 | AI118: 7 | AJ118: 1 | AK118: 6 | AL118: 30 | AM118: 17 | AN118: 8 | AO118: 4 | AP118: 15 | AQ118: 4 | AR118: 16 | AS118: 2 | AT118: 5 | AU118: 24 | AV118: 9 | AW118: 8 | AX118: 9 | AY118: 24 | AZ118: 23 | BA118: 10 | BB118: 451 | BC118: 77.57490196 | BD118: 8.843137255 | BE118: 6 | BF118: 0
A119: OG0000117 | B119: 9 | C119: 1 | D119: 13 | E119: 1 | F119: 12 | G119: 10 | H119: 1 | I119: 0 | J119: 0 | K119: 0 | L119: 0 | M119: 7 | N119: 9 | O119: 5 | P119: 17 | Q119: 11 | R119: 14 | S119: 12 | T119: 4 | U119: 8 | V119: 10 | W119: 9 | X119: 2 | Y119: 7 | Z119: 2 | AA119: 4 | AB119: 4 | AC119: 15 | AD119: 4 | AE119: 8 | AF119: 29 | AG119: 8 | AH119: 8 | AI119: 7 | AJ119: 3 | AK119: 7 | AL119: 3 | AM119: 6 | AN119: 2 | AO119: 6 | AP119: 9 | AQ119: 30 | AR119: 3 | AS119: 21 | AT119: 15 | AU119: 8 | AV119: 15 | AW119: 34 | AX119: 15 | AY119: 13 | AZ119: 8 | BA119: 4 | BB119: 449 | BC119: 56.48078431 | BD119: 8.803921569 | BE119: 8 | BF119: 8
A120: OG0000118 | B120: 3 | C120: 2 | D120: 3 | E120: 0 | F120: 0 | G120: 6 | H120: 0 | I120: 2 | J120: 10 | K120: 4 | L120: 3 | M120: 0 | N120: 13 | O120: 22 | P120: 3 | Q120: 10 | R120: 8 | S120: 3 | T120: 8 | U120: 6 | V120: 8 | W120: 9 | X120: 7 | Y120: 12 | Z120: 1 | AA120: 8 | AB120: 3 | AC120: 13 | AD120: 6 | AE120: 8 | AF120: 6 | AG120: 25 | AH120: 25 | AI120: 27 | AJ120: 2 | AK120: 13 | AL120: 4 | AM120: 7 | AN120: 10 | AO120: 16 | AP120: 5 | AQ120: 11 | AR120: 18 | AS120: 11 | AT120: 26 | AU120: 7 | AV120: 3 | AW120: 11 | AX120: 19 | AY120: 5 | AZ120: 16 | BA120: 4 | BB120: 448 | BC120: 51.29254902 | BD120: 8.784313725 | BE120: 7 | BF120: 3
A121: OG0000119 | B121: 5 | C121: 9 | D121: 10 | E121: 4 | F121: 8 | G121: 13 | H121: 4 | I121: 0 | J121: 0 | K121: 1 | L121: 9 | M121: 1 | N121: 24 | O121: 4 | P121: 8 | Q121: 8 | R121: 10 | S121: 6 | T121: 6 | U121: 5 | V121: 9 | W121: 5 | X121: 10 | Y121: 7 | Z121: 6 | AA121: 9 | AB121: 11 | AC121: 6 | AD121: 4 | AE121: 6 | AF121: 31 | AG121: 17 | AH121: 11 | AI121: 11 | AJ121: 10 | AK121: 8 | AL121: 3 | AM121: 16 | AN121: 8 | AO121: 9 | AP121: 10 | AQ121: 16 | AR121: 8 | AS121: 16 | AT121: 11 | AU121: 5 | AV121: 4 | AW121: 8 | AX121: 21 | AY121: 9 | AZ121: 7 | BA121: 2 | BB121: 447 | BC121: 33.46352941 | BD121: 8.764705882 | BE121: 8 | BF121: 8
A122: OG0000120 | B122: 5 | C122: 3 | D122: 7 | E122: 17 | F122: 6 | G122: 3 | H122: 5 | I122: 0 | J122: 0 | K122: 0 | L122: 9 | M122: 2 | N122: 16 | O122: 7 | P122: 8 | Q122: 13 | R122: 8 | S122: 18 | T122: 6 | U122: 18 | V122: 11 | W122: 11 | X122: 7 | Y122: 18 | Z122: 7 | AA122: 4 | AB122: 2 | AC122: 3 | AD122: 4 | AE122: 5 | AF122: 11 | AG122: 15 | AH122: 19 | AI122: 9 | AJ122: 6 | AK122: 14 | AL122: 25 | AM122: 7 | AN122: 10 | AO122: 6 | AP122: 6 | AQ122: 6 | AR122: 11 | AS122: 8 | AT122: 17 | AU122: 8 | AV122: 8 | AW122: 1 | AX122: 5 | AY122: 14 | AZ122: 17 | BA122: 3 | BB122: 446 | BC122: 33.23372549 | BD122: 8.745098039 | BE122: 7 | BF122: 6
A123: OG0000121 | B123: 7 | C123: 7 | D123: 3 | E123: 9 | F123: 5 | G123: 2 | H123: 6 | I123: 0 | J123: 0 | K123: 0 | L123: 7 | M123: 5 | N123: 3 | O123: 5 | P123: 13 | Q123: 18 | R123: 20 | S123: 9 | T123: 7 | U123: 5 | V123: 6 | W123: 13 | X123: 12 | Y123: 10 | Z123: 8 | AA123: 8 | AB123: 5 | AC123: 12 | AD123: 8 | AE123: 9 | AF123: 17 | AG123: 12 | AH123: 18 | AI123: 9 | AJ123: 9 | AK123: 5 | AL123: 13 | AM123: 9 | AN123: 10 | AO123: 11 | AP123: 8 | AQ123: 13 | AR123: 10 | AS123: 4 | AT123: 10 | AU123: 8 | AV123: 11 | AW123: 15 | AX123: 7 | AY123: 14 | AZ123: 10 | BA123: 3 | BB123: 445 | BC123: 20.72313725 | BD123: 8.725490196 | BE123: 9 | BF123: 9
A124: OG0000122 | B124: 2 | C124: 4 | D124: 2 | E124: 4 | F124: 3 | G124: 9 | H124: 11 | I124: 0 | J124: 0 | K124: 0 | L124: 4 | M124: 8 | N124: 2 | O124: 10 | P124: 16 | Q124: 11 | R124: 17 | S124: 15 | T124: 5 | U124: 3 | V124: 15 | W124: 9 | X124: 6 | Y124: 12 | Z124: 8 | AA124: 11 | AB124: 3 | AC124: 17 | AD124: 9 | AE124: 5 | AF124: 4 | AG124: 10 | AH124: 25 | AI124: 3 | AJ124: 10 | AK124: 10 | AL124: 16 | AM124: 1 | AN124: 4 | AO124: 17 | AP124: 11 | AQ124: 9 | AR124: 8 | AS124: 4 | AT124: 27 | AU124: 6 | AV124: 8 | AW124: 3 | AX124: 7 | AY124: 23 | AZ124: 16 | BA124: 3 | BB124: 443 | BC124: 41.05960784 | BD124: 8.68627451 | BE124: 8 | BF124: 4
A125: OG0000123 | B125: 5 | C125: 11 | D125: 11 | E125: 5 | F125: 3 | G125: 1 | H125: 9 | I125: 5 | J125: 5 | K125: 7 | L125: 7 | M125: 8 | N125: 9 | O125: 6 | P125: 6 | Q125: 5 | R125: 7 | S125: 10 | T125: 6 | U125: 6 | V125: 14 | W125: 11 | X125: 10 | Y125: 15 | Z125: 11 | AA125: 4 | AB125: 3 | AC125: 6 | AD125: 9 | AE125: 6 | AF125: 18 | AG125: 13 | AH125: 19 | AI125: 8 | AJ125: 11 | AK125: 4 | AL125: 12 | AM125: 4 | AN125: 14 | AO125: 13 | AP125: 5 | AQ125: 14 | AR125: 9 | AS125: 8 | AT125: 13 | AU125: 3 | AV125: 9 | AW125: 18 | AX125: 11 | AY125: 7 | AZ125: 9 | BA125: 0 | BB125: 443 | BC125: 17.33960784 | BD125: 8.68627451 | BE125: 8 | BF125: 5
A126: OG0000124 | B126: 18 | C126: 7 | D126: 14 | E126: 5 | F126: 0 | G126: 0 | H126: 0 | I126: 1 | J126: 0 | K126: 0 | L126: 1 | M126: 0 | N126: 11 | O126: 3 | P126: 7 | Q126: 12 | R126: 13 | S126: 11 | T126: 9 | U126: 9 | V126: 3 | W126: 5 | X126: 3 | Y126: 18 | Z126: 2 | AA126: 4 | AB126: 6 | AC126: 1 | AD126: 4 | AE126: 10 | AF126: 34 | AG126: 7 | AH126: 2 | AI126: 17 | AJ126: 4 | AK126: 23 | AL126: 30 | AM126: 3 | AN126: 7 | AO126: 4 | AP126: 12 | AQ126: 9 | AR126: 16 | AS126: 22 | AT126: 3 | AU126: 8 | AV126: 16 | AW126: 7 | AX126: 8 | AY126: 24 | AZ126: 9 | BA126: 6 | BB126: 442 | BC126: 63.22666667 | BD126: 8.666666667 | BE126: 7 | BF126: 0
A127: OG0000125 | B127: 8 | C127: 7 | D127: 3 | E127: 29 | F127: 12 | G127: 19 | H127: 13 | I127: 15 | J127: 11 | K127: 2 | L127: 4 | M127: 9 | N127: 8 | O127: 4 | P127: 2 | Q127: 4 | R127: 1 | S127: 15 | T127: 8 | U127: 8 | V127: 12 | W127: 5 | X127: 6 | Y127: 18 | Z127: 3 | AA127: 9 | AB127: 10 | AC127: 2 | AD127: 7 | AE127: 9 | AF127: 23 | AG127: 11 | AH127: 4 | AI127: 4 | AJ127: 8 | AK127: 3 | AL127: 13 | AM127: 3 | AN127: 6 | AO127: 8 | AP127: 4 | AQ127: 4 | AR127: 9 | AS127: 18 | AT127: 6 | AU127: 6 | AV127: 7 | AW127: 21 | AX127: 7 | AY127: 1 | AZ127: 13 | BA127: 0 | BB127: 442 | BC127: 36.22666667 | BD127: 8.666666667 | BE127: 8 | BF127: 4
A128: OG0000126 | B128: 3 | C128: 3 | D128: 3 | E128: 7 | F128: 3 | G128: 4 | H128: 7 | I128: 3 | J128: 1 | K128: 6 | L128: 7 | M128: 11 | N128: 5 | O128: 5 | P128: 18 | Q128: 22 | R128: 18 | S128: 10 | T128: 6 | U128: 7 | V128: 17 | W128: 12 | X128: 7 | Y128: 6 | Z128: 3 | AA128: 7 | AB128: 4 | AC128: 5 | AD128: 6 | AE128: 11 | AF128: 10 | AG128: 12 | AH128: 12 | AI128: 11 | AJ128: 10 | AK128: 7 | AL128: 16 | AM128: 3 | AN128: 7 | AO128: 9 | AP128: 11 | AQ128: 12 | AR128: 9 | AS128: 7 | AT128: 16 | AU128: 7 | AV128: 12 | AW128: 8 | AX128: 5 | AY128: 20 | AZ128: 10 | BA128: 0 | BB128: 441 | BC128: 23.59294118 | BD128: 8.647058824 | BE128: 7 | BF128: 7
A129: OG0000127 | B129: 19 | C129: 7 | D129: 9 | E129: 13 | F129: 10 | G129: 6 | H129: 9 | I129: 1 | J129: 5 | K129: 2 | L129: 3 | M129: 7 | N129: 8 | O129: 5 | P129: 13 | Q129: 25 | R129: 6 | S129: 15 | T129: 7 | U129: 5 | V129: 5 | W129: 6 | X129: 5 | Y129: 9 | Z129: 5 | AA129: 6 | AB129: 1 | AC129: 5 | AD129: 8 | AE129: 10 | AF129: 9 | AG129: 11 | AH129: 12 | AI129: 18 | AJ129: 3 | AK129: 4 | AL129: 9 | AM129: 5 | AN129: 5 | AO129: 6 | AP129: 10 | AQ129: 8 | AR129: 11 | AS129: 13 | AT129: 13 | AU129: 6 | AV129: 9 | AW129: 8 | AX129: 3 | AY129: 30 | AZ129: 12 | BA129: 0 | BB129: 440 | BC129: 30.47843137 | BD129: 8.62745098 | BE129: 8 | BF129: 5
A130: OG0000128 | B130: 19 | C130: 14 | D130: 4 | E130: 1 | F130: 0 | G130: 0 | H130: 0 | I130: 0 | J130: 1 | K130: 5 | L130: 4 | M130: 2 | N130: 17 | O130: 2 | P130: 13 | Q130: 8 | R130: 6 | S130: 16 | T130: 12 | U130: 33 | V130: 6 | W130: 8 | X130: 8 | Y130: 4 | Z130: 3 | AA130: 2 | AB130: 2 | AC130: 2 | AD130: 9 | AE130: 3 | AF130: 23 | AG130: 12 | AH130: 5 | AI130: 8 | AJ130: 9 | AK130: 4 | AL130: 12 | AM130: 13 | AN130: 19 | AO130: 1 | AP130: 4 | AQ130: 20 | AR130: 5 | AS130: 19 | AT130: 2 | AU130: 14 | AV130: 8 | AW130: 12 | AX130: 16 | AY130: 20 | AZ130: 3 | BA130: 4 | BB130: 433 | BC130: 53.89490196 | BD130: 8.490196078 | BE130: 6 | BF130: 2
A131: OG0000129 | B131: 13 | C131: 6 | D131: 9 | E131: 7 | F131: 5 | G131: 6 | H131: 5 | I131: 26 | J131: 7 | K131: 4 | L131: 4 | M131: 7 | N131: 6 | O131: 4 | P131: 21 | Q131: 9 | R131: 14 | S131: 14 | T131: 5 | U131: 4 | V131: 8 | W131: 12 | X131: 4 | Y131: 8 | Z131: 3 | AA131: 6 | AB131: 3 | AC131: 3 | AD131: 7 | AE131: 4 | AF131: 7 | AG131: 10 | AH131: 9 | AI131: 7 | AJ131: 3 | AK131: 7 | AL131: 12 | AM131: 6 | AN131: 8 | AO131: 5 | AP131: 6 | AQ131: 19 | AR131: 5 | AS131: 7 | AT131: 5 | AU131: 3 | AV131: 12 | AW131: 15 | AX131: 19 | AY131: 24 | AZ131: 10 | BA131: 0 | BB131: 433 | BC131: =VAR(B131:AZ131) -> 29.81490196 | BD131: =AVERAGE(B131:AZ131) -> 8.490196078 | BE131: =MEDIAN(B131:AZ131) -> 7 | BF131: =MODE(B131:AZ131) -> 7
A132: OG0000130 | B132: 4 | C132: 4 | D132: 0 | E132: 1 | F132: 2 | G132: 1 | H132: 5 | I132: 0 | J132: 0 | K132: 4 | L132: 0 | M132: 13 | N132: 4 | O132: 3 | P132: 27 | Q132: 23 | R132: 14 | S132: 4 | T132: 4 | U132: 17 | V132: 10 | W132: 16 | X132: 6 | Y132: 16 | Z132: 4 | AA132: 9 | AB132: 1 | AC132: 15 | AD132: 11 | AE132: 14 | AF132: 15 | AG132: 10 | AH132: 11 | AI132: 4 | AJ132: 1 | AK132: 8 | AL132: 9 | AM132: 8 | AN132: 6 | AO132: 9 | AP132: 9 | AQ132: 17 | AR132: 14 | AS132: 9 | AT132: 8 | AU132: 2 | AV132: 14 | AW132: 9 | AX132: 18 | AY132: 9 | AZ132: 10 | BA132: 4 | BB132: 432 | BC132: 39.25411765 | BD132: 8.470588235 | BE132: 9 | BF132: 4
A133: OG0000131 | B133: 4 | C133: 10 | D133: 8 | E133: 7 | F133: 13 | G133: 8 | H133: 16 | I133: 17 | J133: 12 | K133: 6 | L133: 8 | M133: 3 | N133: 11 | O133: 13 | P133: 12 | Q133: 6 | R133: 5 | S133: 5 | T133: 2 | U133: 7 | V133: 10 | W133: 4 | X133: 3 | Y133: 4 | Z133: 11 | AA133: 12 | AB133: 9 | AC133: 2 | AD133: 8 | AE133: 7 | AF133: 12 | AG133: 8 | AH133: 7 | AI133: 11 | AJ133: 4 | AK133: 4 | AL133: 13 | AM133: 8 | AN133: 14 | AO133: 8 | AP133: 3 | AQ133: 19 | AR133: 7 | AS133: 8 | AT133: 13 | AU133: 2 | AV133: 4 | AW133: 9 | AX133: 10 | AY133: 7 | AZ133: 16 | BA133: 0 | BB133: 430 | BC133: 17.45019608 | BD133: 8.431372549 | BE133: 8 | BF133: 8
A134: OG0000132 | B134: 1 | C134: 7 | D134: 2 | E134: 1 | F134: 3 | G134: 2 | H134: 0 | I134: 3 | J134: 8 | K134: 1 | L134: 0 | M134: 0 | N134: 6 | O134: 5 | P134: 14 | Q134: 9 | R134: 29 | S134: 3 | T134: 21 | U134: 19 | V134: 3 | W134: 1 | X134: 2 | Y134: 1 | Z134: 1 | AA134: 3 | AB134: 5 | AC134: 2 | AD134: 14 | AE134: 27 | AF134: 7 | AG134: 2 | AH134: 1 | AI134: 1 | AJ134: 3 | AK134: 1 | AL134: 26 | AM134: 5 | AN134: 4 | AO134: 5 | AP134: 9 | AQ134: 6 | AR134: 27 | AS134: 1 | AT134: 1 | AU134: 27 | AV134: 39 | AW134: 2 | AX134: 3 | AY134: 13 | AZ134: 54 | BA134: 3 | BB134: 430 | BC134: 129.7701961 | BD134: 8.431372549 | BE134: 3 | BF134: 1
A135: OG0000133 | B135: 4 | C135: 3 | D135: 0 | E135: 6 | F135: 0 | G135: 0 | H135: 0 | I135: 0 | J135: 0 | K135: 0 | L135: 2 | M135: 3 | N135: 15 | O135: 2 | P135: 8 | Q135: 15 | R135: 18 | S135: 14 | T135: 1 | U135: 20 | V135: 9 | W135: 5 | X135: 3 | Y135: 6 | Z135: 3 | AA135: 4 | AB135: 6 | AC135: 0 | AD135: 14 | AE135: 12 | AF135: 28 | AG135: 11 | AH135: 10 | AI135: 16 | AJ135: 3 | AK135: 7 | AL135: 24 | AM135: 7 | AN135: 5 | AO135: 9 | AP135: 2 | AQ135: 16 | AR135: 8 | AS135: 17 | AT135: 1 | AU135: 0 | AV135: 7 | AW135: 27 | AX135: 19 | AY135: 34 | AZ135: 6 | BA135: 9 | BB135: 430 | BC135: 68.69019608 | BD135: 8.431372549 | BE135: 6 | BF135: 0
A136: OG0000134 | B136: 6 | C136: 5 | D136: 10 | E136: 11 | F136: 6 | G136: 6 | H136: 2 | I136: 0 | J136: 0 | K136: 10 | L136: 4 | M136: 1 | N136: 6 | O136: 18 | P136: 10 | Q136: 13 | R136: 10 | S136: 18 | T136: 8 | U136: 5 | V136: 2 | W136: 9 | X136: 4 | Y136: 16 | Z136: 3 | AA136: 8 | AB136: 0 | AC136: 11 | AD136: 5 | AE136: 10 | AF136: 9 | AG136: 18 | AH136: 19 | AI136: 13 | AJ136: 5 | AK136: 5 | AL136: 10 | AM136: 6 | AN136: 6 | AO136: 22 | AP136: 7 | AQ136: 9 | AR136: 6 | AS136: 6 | AT136: 16 | AU136: 6 | AV136: 6 | AW136: 10 | AX136: 14 | AY136: 9 | AZ136: 10 | BA136: 3 | BB136: 429 | BC136: 26.64705882 | BD136: 8.411764706 | BE136: 8 | BF136: 6
A137: OG0000135 | B137: 9 | C137: 4 | D137: 5 | E137: 3 | F137: 6 | G137: 3 | H137: 2 | I137: 15 | J137: 2 | K137: 7 | L137: 2 | M137: 14 | N137: 4 | O137: 2 | P137: 8 | Q137: 12 | R137: 5 | S137: 8 | T137: 8 | U137: 8 | V137: 9 | W137: 14 | X137: 9 | Y137: 6 | Z137: 12 | AA137: 11 | AB137: 7 | AC137: 9 | AD137: 5 | AE137: 14 | AF137: 16 | AG137: 17 | AH137: 4 | AI137: 5 | AJ137: 12 | AK137: 4 | AL137: 20 | AM137: 8 | AN137: 7 | AO137: 10 | AP137: 9 | AQ137: 14 | AR137: 13 | AS137: 10 | AT137: 12 | AU137: 3 | AV137: 8 | AW137: 4 | AX137: 17 | AY137: 4 | AZ137: 8 | BA137: 0 | BB137: 428 | BC137: 20.56313725 | BD137: 8.392156863 | BE137: 8 | BF137: 8
A138: OG0000136 | B138: 9 | C138: 12 | D138: 9 | E138: 7 | F138: 1 | G138: 6 | H138: 2 | I138: 1 | J138: 3 | K138: 3 | L138: 2 | M138: 4 | N138: 12 | O138: 5 | P138: 3 | Q138: 6 | R138: 13 | S138: 9 | T138: 3 | U138: 4 | V138: 7 | W138: 8 | X138: 2 | Y138: 7 | Z138: 1 | AA138: 6 | AB138: 3 | AC138: 14 | AD138: 6 | AE138: 7 | AF138: 23 | AG138: 10 | AH138: 12 | AI138: 3 | AJ138: 4 | AK138: 3 | AL138: 8 | AM138: 6 | AN138: 5 | AO138: 19 | AP138: 8 | AQ138: 14 | AR138: 3 | AS138: 21 | AT138: 17 | AU138: 3 | AV138: 8 | AW138: 39 | AX138: 25 | AY138: 11 | AZ138: 8 | BA138: 0 | BB138: 425 | BC138: 51.42666667 | BD138: 8.333333333 | BE138: 7 | BF138: 3
A139: OG0000137 | B139: 7 | C139: 7 | D139: 10 | E139: 5 | F139: 3 | G139: 5 | H139: 4 | I139: 0 | J139: 0 | K139: 2 | L139: 5 | M139: 3 | N139: 10 | O139: 8 | P139: 9 | Q139: 7 | R139: 10 | S139: 11 | T139: 4 | U139: 9 | V139: 9 | W139: 10 | X139: 9 | Y139: 8 | Z139: 5 | AA139: 1 | AB139: 5 | AC139: 5 | AD139: 5 | AE139: 12 | AF139: 27 | AG139: 7 | AH139: 6 | AI139: 7 | AJ139: 8 | AK139: 8 | AL139: 4 | AM139: 8 | AN139: 9 | AO139: 10 | AP139: 7 | AQ139: 17 | AR139: 8 | AS139: 13 | AT139: 12 | AU139: 10 | AV139: 7 | AW139: 24 | AX139: 19 | AY139: 19 | AZ139: 7 | BA139: 2 | BB139: 425 | BC139: 28.30666667 | BD139: 8.333333333 | BE139: 8 | BF139: 7
A140: OG0000138 | B140: 5 | C140: 5 | D140: 4 | E140: 3 | F140: 2 | G140: 6 | H140: 6 | I140: 4 | J140: 4 | K140: 6 | L140: 6 | M140: 5 | N140: 10 | O140: 9 | P140: 14 | Q140: 8 | R140: 7 | S140: 13 | T140: 2 | U140: 14 | V140: 12 | W140: 15 | X140: 6 | Y140: 15 | Z140: 7 | AA140: 4 | AB140: 6 | AC140: 4 | AD140: 5 | AE140: 4 | AF140: 15 | AG140: 22 | AH140: 14 | AI140: 9 | AJ140: 7 | AK140: 4 | AL140: 13 | AM140: 6 | AN140: 15 | AO140: 8 | AP140: 6 | AQ140: 3 | AR140: 10 | AS140: 14 | AT140: 13 | AU140: 5 | AV140: 10 | AW140: 8 | AX140: 7 | AY140: 15 | AZ140: 10 | BA140: 0 | BB140: 425 | BC140: 20.06666667 | BD140: 8.333333333 | BE140: 7 | BF140: 6
A141: OG0000139 | B141: 1 | C141: 0 | D141: 0 | E141: 0 | F141: 1 | G141: 0 | H141: 0 | I141: 0 | J141: 0 | K141: 0 | L141: 5 | M141: 3 | N141: 4 | O141: 8 | P141: 10 | Q141: 15 | R141: 8 | S141: 6 | T141: 13 | U141: 9 | V141: 2 | W141: 12 | X141: 11 | Y141: 17 | Z141: 2 | AA141: 7 | AB141: 1 | AC141: 5 | AD141: 15 | AE141: 13 | AF141: 13 | AG141: 15 | AH141: 9 | AI141: 2 | AJ141: 5 | AK141: 7 | AL141: 23 | AM141: 4 | AN141: 20 | AO141: 16 | AP141: 12 | AQ141: 4 | AR141: 25 | AS141: 9 | AT141: 19 | AU141: 14 | AV141: 6 | AW141: 8 | AX141: 20 | AY141: 10 | AZ141: 14 | BA141: 8 | BB141: 423 | BC141: 45.73176471 | BD141: 8.294117647 | BE141: 8 | BF141: 0
A142: OG0000140 | B142: 17 | C142: 12 | D142: 13 | E142: 6 | F142: 2 | G142: 6 | H142: 2 | I142: 0 | J142: 1 | K142: 0 | L142: 3 | M142: 5 | N142: 13 | O142: 4 | P142: 5 | Q142: 16 | R142: 30 | S142: 0 | T142: 8 | U142: 5 | V142: 5 | W142: 16 | X142: 3 | Y142: 6 | Z142: 3 | AA142: 8 | AB142: 2 | AC142: 7 | AD142: 9 | AE142: 9 | AF142: 27 | AG142: 2 | AH142: 2 | AI142: 2 | AJ142: 9 | AK142: 3 | AL142: 9 | AM142: 9 | AN142: 7 | AO142: 6 | AP142: 6 | AQ142: 18 | AR142: 7 | AS142: 4 | AT142: 10 | AU142: 4 | AV142: 8 | AW142: 30 | AX142: 25 | AY142: 11 | AZ142: 7 | BA142: 3 | BB142: 422 | BC142: 53.44313725 | BD142: 8.274509804 | BE142: 6 | BF142: 2
A143: OG0000141 | B143: 0 | C143: 9 | D143: 4 | E143: 18 | F143: 1 | G143: 5 | H143: 3 | I143: 0 | J143: 0 | K143: 0 | L143: 9 | M143: 1 | N143: 5 | O143: 2 | P143: 7 | Q143: 11 | R143: 10 | S143: 17 | T143: 3 | U143: 8 | V143: 9 | W143: 6 | X143: 5 | Y143: 9 | Z143: 9 | AA143: 4 | AB143: 17 | AC143: 2 | AD143: 12 | AE143: 17 | AF143: 30 | AG143: 4 | AH143: 6 | AI143: 3 | AJ143: 6 | AK143: 3 | AL143: 14 | AM143: 4 | AN143: 9 | AO143: 11 | AP143: 7 | AQ143: 4 | AR143: 14 | AS143: 19 | AT143: 6 | AU143: 3 | AV143: 10 | AW143: 25 | AX143: 16 | AY143: 18 | AZ143: 6 | BA143: 4 | BB143: 421 | BC143: 43.95372549 | BD143: 8.254901961 | BE143: 6 | BF143: 9
A144: OG0000142 | B144: 0 | C144: 6 | D144: 3 | E144: 13 | F144: 8 | G144: 3 | H144: 3 | I144: 43 | J144: 11 | K144: 12 | L144: 7 | M144: 7 | N144: 7 | O144: 12 | P144: 8 | Q144: 23 | R144: 12 | S144: 8 | T144: 11 | U144: 2 | V144: 8 | W144: 10 | X144: 11 | Y144: 7 | Z144: 9 | AA144: 4 | AB144: 4 | AC144: 10 | AD144: 6 | AE144: 10 | AF144: 4 | AG144: 8 | AH144: 10 | AI144: 7 | AJ144: 10 | AK144: 12 | AL144: 9 | AM144: 2 | AN144: 6 | AO144: 7 | AP144: 4 | AQ144: 6 | AR144: 9 | AS144: 6 | AT144: 4 | AU144: 4 | AV144: 6 | AW144: 2 | AX144: 4 | AY144: 10 | AZ144: 11 | BA144: 1 | BB144: 419 | BC144: 39.77254902 | BD144: 8.215686275 | BE144: 7 | BF144: 4
A145: OG0000143 | B145: 2 | C145: 2 | D145: 3 | E145: 7 | F145: 8 | G145: 7 | H145: 7 | I145: 4 | J145: 2 | K145: 8 | L145: 4 | M145: 4 | N145: 2 | O145: 4 | P145: 8 | Q145: 11 | R145: 11 | S145: 12 | T145: 10 | U145: 7 | V145: 6 | W145: 16 | X145: 4 | Y145: 14 | Z145: 8 | AA145: 3 | AB145: 4 | AC145: 9 | AD145: 6 | AE145: 9 | AF145: 16 | AG145: 15 | AH145: 15 | AI145: 14 | AJ145: 4 | AK145: 9 | AL145: 18 | AM145: 4 | AN145: 12 | AO145: 10 | AP145: 3 | AQ145: 6 | AR145: 11 | AS145: 10 | AT145: 13 | AU145: 3 | AV145: 8 | AW145: 6 | AX145: 12 | AY145: 15 | AZ145: 12 | BA145: 0 | BB145: 418 | BC145: 19.36078431 | BD145: 8.196078431 | BE145: 8 | BF145: 4
A146: OG0000144 | B146: 3 | C146: 9 | D146: 5 | E146: 18 | F146: 4 | G146: 6 | H146: 9 | I146: 5 | J146: 11 | K146: 4 | L146: 3 | M146: 2 | N146: 8 | O146: 4 | P146: 10 | Q146: 10 | R146: 5 | S146: 9 | T146: 8 | U146: 4 | V146: 14 | W146: 10 | X146: 6 | Y146: 11 | Z146: 4 | AA146: 4 | AB146: 5 | AC146: 5 | AD146: 6 | AE146: 9 | AF146: 15 | AG146: 7 | AH146: 17 | AI146: 7 | AJ146: 8 | AK146: 5 | AL146: 12 | AM146: 11 | AN146: 3 | AO146: 8 | AP146: 4 | AQ146: 10 | AR146: 13 | AS146: 14 | AT146: 14 | AU146: 5 | AV146: 6 | AW146: 13 | AX146: 16 | AY146: 5 | AZ146: 14 | BA146: 0 | BB146: 418 | BC146: 17.24078431 | BD146: 8.196078431 | BE146: 8 | BF146: 5
A147: OG0000145 | B147: 21 | C147: 24 | D147: 23 | E147: 1 | F147: 0 | G147: 6 | H147: 1 | I147: 0 | J147: 8 | K147: 3 | L147: 5 | M147: 4 | N147: 15 | O147: 18 | P147: 7 | Q147: 3 | R147: 8 | S147: 2 | T147: 5 | U147: 3 | V147: 13 | W147: 4 | X147: 9 | Y147: 19 | Z147: 4 | AA147: 10 | AB147: 2 | AC147: 7 | AD147: 9 | AE147: 6 | AF147: 4 | AG147: 16 | AH147: 5 | AI147: 7 | AJ147: 8 | AK147: 13 | AL147: 6 | AM147: 5 | AN147: 7 | AO147: 6 | AP147: 3 | AQ147: 10 | AR147: 8 | AS147: 10 | AT147: 21 | AU147: 10 | AV147: 8 | AW147: 7 | AX147: 13 | AY147: 1 | AZ147: 8 | BA147: 2 | BB147: 416 | BC147: 36.25490196 | BD147: 8.156862745 | BE147: 7 | BF147: 8
A148: OG0000146 | B148: 1 | C148: 7 | D148: 11 | E148: 9 | F148: 10 | G148: 0 | H148: 0 | I148: 5 | J148: 6 | K148: 0 | L148: 3 | M148: 1 | N148: 17 | O148: 2 | P148: 21 | Q148: 9 | R148: 6 | S148: 4 | T148: 5 | U148: 10 | V148: 3 | W148: 8 | X148: 2 | Y148: 8 | Z148: 1 | AA148: 2 | AB148: 15 | AC148: 9 | AD148: 6 | AE148: 1 | AF148: 24 | AG148: 5 | AH148: 2 | AI148: 20 | AJ148: 5 | AK148: 3 | AL148: 12 | AM148: 8 | AN148: 4 | AO148: 7 | AP148: 5 | AQ148: 11 | AR148: 13 | AS148: 20 | AT148: 7 | AU148: 10 | AV148: 6 | AW148: 26 | AX148: 23 | AY148: 15 | AZ148: 7 | BA148: 3 | BB148: 415 | BC148: 44.36078431 | BD148: 8.137254902 | BE148: 7 | BF148: 5
A149: OG0000147 | B149: 3 | C149: 5 | D149: 6 | E149: 2 | F149: 5 | G149: 9 | H149: 2 | I149: 2 | J149: 10 | K149: 4 | L149: 3 | M149: 3 | N149: 5 | O149: 3 | P149: 22 | Q149: 6 | R149: 6 | S149: 1 | T149: 10 | U149: 3 | V149: 6 | W149: 6 | X149: 3 | Y149: 8 | Z149: 6 | AA149: 15 | AB149: 1 | AC149: 5 | AD149: 9 | AE149: 14 | AF149: 7 | AG149: 13 | AH149: 13 | AI149: 3 | AJ149: 8 | AK149: 1 | AL149: 20 | AM149: 4 | AN149: 13 | AO149: 7 | AP149: 12 | AQ149: 14 | AR149: 12 | AS149: 8 | AT149: 20 | AU149: 21 | AV149: 14 | AW149: 6 | AX149: 8 | AY149: 7 | AZ149: 18 | BA149: 0 | BB149: 412 | BC149: 31.11372549 | BD149: 8.078431373 | BE149: 6 | BF149: 3
A150: OG0000148 | B150: 2 | C150: 14 | D150: 4 | E150: 12 | F150: 5 | G150: 5 | H150: 4 | I150: 0 | J150: 0 | K150: 0 | L150: 3 | M150: 9 | N150: 4 | O150: 6 | P150: 14 | Q150: 13 | R150: 5 | S150: 21 | T150: 6 | U150: 13 | V150: 4 | W150: 7 | X150: 7 | Y150: 15 | Z150: 5 | AA150: 11 | AB150: 2 | AC150: 7 | AD150: 15 | AE150: 9 | AF150: 7 | AG150: 13 | AH150: 7 | AI150: 13 | AJ150: 10 | AK150: 6 | AL150: 14 | AM150: 3 | AN150: 10 | AO150: 4 | AP150: 11 | AQ150: 6 | AR150: 6 | AS150: 7 | AT150: 13 | AU150: 8 | AV150: 14 | AW150: 11 | AX150: 11 | AY150: 7 | AZ150: 6 | BA150: 3 | BB150: 409 | BC150: 21.17960784 | BD150: 8.019607843 | BE150: 7 | BF150: 7
A151: OG0000149 | B151: 11 | C151: 10 | D151: 2 | E151: 10 | F151: 13 | G151: 11 | H151: 14 | I151: 2 | J151: 6 | K151: 3 | L151: 12 | M151: 4 | N151: 6 | O151: 2 | P151: 12 | Q151: 12 | R151: 8 | S151: 20 | T151: 8 | U151: 9 | V151: 6 | W151: 3 | X151: 5 | Y151: 12 | Z151: 5 | AA151: 4 | AB151: 3 | AC151: 9 | AD151: 7 | AE151: 7 | AF151: 4 | AG151: 14 | AH151: 16 | AI151: 9 | AJ151: 6 | AK151: 8 | AL151: 12 | AM151: 4 | AN151: 5 | AO151: 9 | AP151: 8 | AQ151: 8 | AR151: 11 | AS151: 6 | AT151: 2 | AU151: 1 | AV151: 7 | AW151: 8 | AX151: 11 | AY151: 12 | AZ151: 12 | BA151: 0 | BB151: 409 | BC151: 16.93960784 | BD151: 8.019607843 | BE151: 8 | BF151: 12
A152: OG0000150 | B152: 27 | C152: 16 | D152: 19 | E152: 3 | F152: 0 | G152: 6 | H152: 0 | I152: 0 | J152: 0 | K152: 1 | L152: 5 | M152: 0 | N152: 15 | O152: 0 | P152: 6 | Q152: 4 | R152: 6 | S152: 19 | T152: 7 | U152: 10 | V152: 5 | W152: 4 | X152: 6 | Y152: 6 | Z152: 9 | AA152: 25 | AB152: 3 | AC152: 9 | AD152: 4 | AE152: 1 | AF152: 1 | AG152: 2 | AH152: 3 | AI152: 7 | AJ152: 8 | AK152: 9 | AL152: 3 | AM152: 9 | AN152: 5 | AO152: 19 | AP152: 6 | AQ152: 7 | AR152: 5 | AS152: 22 | AT152: 16 | AU152: 2 | AV152: 8 | AW152: 2 | AX152: 37 | AY152: 15 | AZ152: 5 | BA152: 6 | BB152: 407 | BC152: 62.85960784 | BD152: 7.980392157 | BE152: 6 | BF152: 0
A153: OG0000151 | B153: 4 | C153: 2 | D153: 4 | E153: 7 | F153: 8 | G153: 7 | H153: 9 | I153: 0 | J153: 0 | K153: 0 | L153: 6 | M153: 2 | N153: 8 | O153: 2 | P153: 7 | Q153: 9 | R153: 6 | S153: 14 | T153: 9 | U153: 9 | V153: 8 | W153: 6 | X153: 9 | Y153: 7 | Z153: 5 | AA153: 9 | AB153: 7 | AC153: 3 | AD153: 7 | AE153: 11 | AF153: 23 | AG153: 4 | AH153: 4 | AI153: 8 | AJ153: 8 | AK153: 10 | AL153: 8 | AM153: 11 | AN153: 6 | AO153: 8 | AP153: 10 | AQ153: 16 | AR153: 10 | AS153: 7 | AT153: 6 | AU153: 10 | AV153: 10 | AW153: 26 | AX153: 16 | AY153: 11 | AZ153: 10 | BA153: 3 | BB153: 407 | BC153: 23.89960784 | BD153: 7.980392157 | BE153: 8 | BF153: 7
A154: OG0000152 | B154: 11 | C154: 2 | D154: 7 | E154: 11 | F154: 9 | G154: 5 | H154: 12 | I154: 1 | J154: 4 | K154: 3 | L154: 7 | M154: 4 | N154: 10 | O154: 2 | P154: 5 | Q154: 7 | R154: 20 | S154: 7 | T154: 14 | U154: 16 | V154: 2 | W154: 8 | X154: 8 | Y154: 5 | Z154: 9 | AA154: 12 | AB154: 8 | AC154: 9 | AD154: 6 | AE154: 10 | AF154: 7 | AG154: 8 | AH154: 6 | AI154: 5 | AJ154: 4 | AK154: 3 | AL154: 14 | AM154: 10 | AN154: 10 | AO154: 7 | AP154: 4 | AQ154: 11 | AR154: 8 | AS154: 13 | AT154: 4 | AU154: 11 | AV154: 13 | AW154: 8 | AX154: 7 | AY154: 11 | AZ154: 7 | BA154: 0 | BB154: 405 | BC154: 15.29647059 | BD154: 7.941176471 | BE154: 8 | BF154: 7
A155: OG0000153 | B155: 1 | C155: 1 | D155: 3 | E155: 3 | F155: 2 | G155: 3 | H155: 7 | I155: 3 | J155: 0 | K155: 5 | L155: 7 | M155: 12 | N155: 6 | O155: 5 | P155: 23 | Q155: 12 | R155: 12 | S155: 8 | T155: 7 | U155: 6 | V155: 11 | W155: 17 | X155: 15 | Y155: 8 | Z155: 5 | AA155: 6 | AB155: 3 | AC155: 10 | AD155: 5 | AE155: 13 | AF155: 8 | AG155: 22 | AH155: 5 | AI155: 4 | AJ155: 11 | AK155: 3 | AL155: 13 | AM155: 4 | AN155: 11 | AO155: 8 | AP155: 11 | AQ155: 10 | AR155: 5 | AS155: 4 | AT155: 24 | AU155: 6 | AV155: 7 | AW155: 3 | AX155: 17 | AY155: 6 | AZ155: 4 | BA155: 1 | BB155: 405 | BC155: 30.89647059 | BD155: 7.941176471 | BE155: 6 | BF155: 3
A156: OG0000154 | B156: 17 | C156: 8 | D156: 10 | E156: 7 | F156: 10 | G156: 9 | H156: 4 | I156: 0 | J156: 0 | K156: 0 | L156: 9 | M156: 3 | N156: 4 | O156: 4 | P156: 12 | Q156: 14 | R156: 5 | S156: 17 | T156: 2 | U156: 9 | V156: 7 | W156: 7 | X156: 12 | Y156: 5 | Z156: 4 | AA156: 2 | AB156: 13 | AC156: 5 | AD156: 17 | AE156: 9 | AF156: 14 | AG156: 3 | AH156: 12 | AI156: 8 | AJ156: 4 | AK156: 3 | AL156: 7 | AM156: 5 | AN156: 4 | AO156: 13 | AP156: 3 | AQ156: 23 | AR156: 10 | AS156: 19 | AT156: 6 | AU156: 4 | AV156: 3 | AW156: 12 | AX156: 11 | AY156: 7 | AZ156: 9 | BA156: 3 | BB156: 405 | BC156: 26.93647059 | BD156: 7.941176471 | BE156: 7 | BF156: 4
A157: OG0000155 | B157: 15 | C157: 18 | D157: 14 | E157: 8 | F157: 3 | G157: 7 | H157: 20 | I157: 2 | J157: 4 | K157: 4 | L157: 0 | M157: 4 | N157: 4 | O157: 7 | P157: 15 | Q157: 7 | R157: 6 | S157: 5 | T157: 4 | U157: 9 | V157: 17 | W157: 12 | X157: 1 | Y157: 6 | Z157: 2 | AA157: 13 | AB157: 5 | AC157: 7 | AD157: 5 | AE157: 9 | AF157: 6 | AG157: 8 | AH157: 13 | AI157: 9 | AJ157: 2 | AK157: 4 | AL157: 10 | AM157: 6 | AN157: 2 | AO157: 7 | AP157: 6 | AQ157: 12 | AR157: 6 | AS157: 6 | AT157: 15 | AU157: 3 | AV157: 11 | AW157: 8 | AX157: 20 | AY157: 9 | AZ157: 8 | BA157: 1 | BB157: 404 | BC157: 24.27372549 | BD157: 7.921568627 | BE157: 7 | BF157: 6
A158: OG0000156 | B158: 13 | C158: 6 | D158: 9 | E158: 5 | F158: 4 | G158: 5 | H158: 6 | I158: 1 | J158: 1 | K158: 3 | L158: 4 | M158: 10 | N158: 10 | O158: 5 | P158: 11 | Q158: 8 | R158: 9 | S158: 12 | T158: 7 | U158: 7 | V158: 5 | W158: 4 | X158: 3 | Y158: 11 | Z158: 4 | AA158: 8 | AB158: 6 | AC158: 6 | AD158: 9 | AE158: 9 | AF158: 10 | AG158: 8 | AH158: 8 | AI158: 7 | AJ158: 7 | AK158: 8 | AL158: 20 | AM158: 6 | AN158: 7 | AO158: 7 | AP158: 6 | AQ158: 12 | AR158: 15 | AS158: 6 | AT158: 10 | AU158: 14 | AV158: 7 | AW158: 13 | AX158: 9 | AY158: 12 | AZ158: 10 | BA158: 0 | BB158: 403 | BC158: 13.05019608 | BD158: 7.901960784 | BE158: 7 | BF158: 6
A159: OG0000157 | B159: 18 | C159: 3 | D159: 29 | E159: 12 | F159: 0 | G159: 0 | H159: 1 | I159: 1 | J159: 2 | K159: 0 | L159: 2 | M159: 1 | N159: 6 | O159: 2 | P159: 6 | Q159: 7 | R159: 20 | S159: 11 | T159: 14 | U159: 12 | V159: 6 | W159: 2 | X159: 6 | Y159: 6 | Z159: 5 | AA159: 4 | AB159: 6 | AC159: 6 | AD159: 1 | AE159: 10 | AF159: 18 | AG159: 4 | AH159: 5 | AI159: 7 | AJ159: 7 | AK159: 9 | AL159: 24 | AM159: 8 | AN159: 4 | AO159: 4 | AP159: 14 | AQ159: 11 | AR159: 17 | AS159: 10 | AT159: 3 | AU159: 8 | AV159: 9 | AW159: 5 | AX159: 12 | AY159: 17 | AZ159: 8 | BA159: 3 | BB159: 403 | BC159: 41.09019608 | BD159: 7.901960784 | BE159: 6 | BF159: 6
A160: OG0000158 | B160: 5 | C160: 8 | D160: 2 | E160: 4 | F160: 4 | G160: 2 | H160: 4 | I160: 0 | J160: 0 | K160: 0 | L160: 2 | M160: 12 | N160: 8 | O160: 4 | P160: 10 | Q160: 10 | R160: 17 | S160: 4 | T160: 10 | U160: 6 | V160: 14 | W160: 9 | X160: 8 | Y160: 10 | Z160: 9 | AA160: 7 | AB160: 4 | AC160: 7 | AD160: 11 | AE160: 12 | AF160: 14 | AG160: 14 | AH160: 3 | AI160: 7 | AJ160: 9 | AK160: 8 | AL160: 13 | AM160: 1 | AN160: 11 | AO160: 5 | AP160: 12 | AQ160: 7 | AR160: 10 | AS160: 14 | AT160: 13 | AU160: 6 | AV160: 12 | AW160: 10 | AX160: 11 | AY160: 15 | AZ160: 4 | BA160: 3 | BB160: 402 | BC160: 19.14588235 | BD160: 7.882352941 | BE160: 8 | BF160: 4
A161: OG0000159 | B161: 6 | C161: 10 | D161: 6 | E161: 4 | F161: 5 | G161: 3 | H161: 6 | I161: 4 | J161: 7 | K161: 14 | L161: 3 | M161: 3 | N161: 5 | O161: 6 | P161: 15 | Q161: 5 | R161: 6 | S161: 11 | T161: 5 | U161: 4 | V161: 7 | W161: 15 | X161: 3 | Y161: 12 | Z161: 6 | AA161: 7 | AB161: 5 | AC161: 4 | AD161: 5 | AE161: 5 | AF161: 15 | AG161: 6 | AH161: 17 | AI161: 15 | AJ161: 2 | AK161: 11 | AL161: 19 | AM161: 4 | AN161: 7 | AO161: 11 | AP161: 7 | AQ161: 13 | AR161: 5 | AS161: 5 | AT161: 17 | AU161: 4 | AV161: 2 | AW161: 12 | AX161: 15 | AY161: 14 | AZ161: 4 | BA161: 0 | BB161: 402 | BC161: 21.70588235 | BD161: 7.882352941 | BE161: 6 | BF161: 5
A162: OG0000160 | B162: 5 | C162: 5 | D162: 6 | E162: 2 | F162: 5 | G162: 5 | H162: 1 | I162: 3 | J162: 2 | K162: 0 | L162: 4 | M162: 5 | N162: 19 | O162: 14 | P162: 12 | Q162: 5 | R162: 11 | S162: 9 | T162: 6 | U162: 5 | V162: 10 | W162: 7 | X162: 7 | Y162: 14 | Z162: 6 | AA162: 2 | AB162: 7 | AC162: 9 | AD162: 4 | AE162: 5 | AF162: 29 | AG162: 7 | AH162: 0 | AI162: 11 | AJ162: 4 | AK162: 5 | AL162: 4 | AM162: 8 | AN162: 5 | AO162: 8 | AP162: 5 | AQ162: 23 | AR162: 5 | AS162: 17 | AT162: 4 | AU162: 6 | AV162: 6 | AW162: 29 | AX162: 15 | AY162: 7 | AZ162: 8 | BA162: 2 | BB162: 401 | BC162: 39.84078431 | BD162: 7.862745098 | BE162: 6 | BF162: 5
A163: OG0000161 | B163: 21 | C163: 21 | D163: 4 | E163: 0 | F163: 0 | G163: 0 | H163: 0 | I163: 0 | J163: 0 | K163: 0 | L163: 2 | M163: 0 | N163: 8 | O163: 1 | P163: 4 | Q163: 4 | R163: 8 | S163: 13 | T163: 5 | U163: 22 | V163: 0 | W163: 12 | X163: 9 | Y163: 4 | Z163: 4 | AA163: 0 | AB163: 0 | AC163: 0 | AD163: 8 | AE163: 15 | AF163: 13 | AG163: 5 | AH163: 3 | AI163: 2 | AJ163: 6 | AK163: 3 | AL163: 14 | AM163: 7 | AN163: 13 | AO163: 0 | AP163: 20 | AQ163: 12 | AR163: 21 | AS163: 41 | AT163: 10 | AU163: 11 | AV163: 3 | AW163: 11 | AX163: 21 | AY163: 19 | AZ163: 1 | BA163: 13 | BB163: 401 | BC163: 72.40078431 | BD163: 7.862745098 | BE163: 5 | BF163: 0
A164: OG0000162 | B164: 5 | C164: 2 | D164: 5 | E164: 5 | F164: 5 | G164: 7 | H164: 4 | I164: 0 | J164: 0 | K164: 3 | L164: 2 | M164: 1 | N164: 6 | O164: 8 | P164: 8 | Q164: 8 | R164: 13 | S164: 4 | T164: 12 | U164: 5 | V164: 8 | W164: 9 | X164: 6 | Y164: 4 | Z164: 5 | AA164: 10 | AB164: 4 | AC164: 9 | AD164: 3 | AE164: 9 | AF164: 18 | AG164: 10 | AH164: 5 | AI164: 14 | AJ164: 8 | AK164: 8 | AL164: 8 | AM164: 4 | AN164: 6 | AO164: 8 | AP164: 15 | AQ164: 2 | AR164: 11 | AS164: 20 | AT164: 8 | AU164: 16 | AV164: 7 | AW164: 12 | AX164: 16 | AY164: 18 | AZ164: 16 | BA164: 2 | BB164: 400 | BC164: 23.77490196 | BD164: 7.843137255 | BE164: 8 | BF164: 8
A165: OG0000163 | B165: 5 | C165: 3 | D165: 3 | E165: 9 | F165: 1 | G165: 1 | H165: 3 | I165: 2 | J165: 9 | K165: 14 | L165: 2 | M165: 2 | N165: 11 | O165: 7 | P165: 23 | Q165: 9 | R165: 5 | S165: 13 | T165: 8 | U165: 5 | V165: 8 | W165: 15 | X165: 5 | Y165: 10 | Z165: 2 | AA165: 3 | AB165: 3 | AC165: 7 | AD165: 5 | AE165: 8 | AF165: 9 | AG165: 17 | AH165: 5 | AI165: 2 | AJ165: 5 | AK165: 5 | AL165: 15 | AM165: 7 | AN165: 3 | AO165: 3 | AP165: 6 | AQ165: 9 | AR165: 15 | AS165: 11 | AT165: 7 | AU165: 6 | AV165: 9 | AW165: 20 | AX165: 16 | AY165: 19 | AZ165: 9 | BA165: 0 | BB165: 399 | BC165: 28.14823529 | BD165: 7.823529412 | BE165: 7 | BF165: 5
A166: OG0000164 | B166: 11 | C166: 2 | D166: 5 | E166: 12 | F166: 2 | G166: 5 | H166: 2 | I166: 1 | J166: 2 | K166: 2 | L166: 7 | M166: 3 | N166: 16 | O166: 3 | P166: 25 | Q166: 11 | R166: 5 | S166: 7 | T166: 8 | U166: 7 | V166: 5 | W166: 4 | X166: 9 | Y166: 6 | Z166: 6 | AA166: 5 | AB166: 4 | AC166: 6 | AD166: 7 | AE166: 6 | AF166: 9 | AG166: 17 | AH166: 5 | AI166: 6 | AJ166: 7 | AK166: 2 | AL166: 11 | AM166: 5 | AN166: 17 | AO166: 6 | AP166: 3 | AQ166: 10 | AR166: 16 | AS166: 8 | AT166: 8 | AU166: 3 | AV166: 6 | AW166: 11 | AX166: 12 | AY166: 23 | AZ166: 20 | BA166: 0 | BB166: 399 | BC166: 30.26823529 | BD166: 7.823529412 | BE166: 6 | BF166: 5
A167: OG0000165 | B167: 6 | C167: 16 | D167: 14 | E167: 8 | F167: 6 | G167: 9 | H167: 4 | I167: 3 | J167: 2 | K167: 4 | L167: 2 | M167: 3 | N167: 11 | O167: 4 | P167: 6 | Q167: 5 | R167: 6 | S167: 7 | T167: 8 | U167: 5 | V167: 10 | W167: 6 | X167: 4 | Y167: 3 | Z167: 3 | AA167: 12 | AB167: 9 | AC167: 7 | AD167: 12 | AE167: 14 | AF167: 8 | AG167: 5 | AH167: 2 | AI167: 8 | AJ167: 3 | AK167: 7 | AL167: 12 | AM167: 8 | AN167: 6 | AO167: 6 | AP167: 12 | AQ167: 14 | AR167: 12 | AS167: 7 | AT167: 13 | AU167: 14 | AV167: 8 | AW167: 8 | AX167: 10 | AY167: 7 | AZ167: 18 | BA167: 0 | BB167: 397 | BC167: 15.73254902 | BD167: 7.784313725 | BE167: 7 | BF167: 6
A168: OG0000167 | B168: 6 | C168: 9 | D168: 3 | E168: 4 | F168: 1 | G168: 6 | H168: 5 | I168: 3 | J168: 1 | K168: 2 | L168: 5 | M168: 7 | N168: 4 | O168: 8 | P168: 10 | Q168: 12 | R168: 12 | S168: 12 | T168: 8 | U168: 8 | V168: 16 | W168: 15 | X168: 6 | Y168: 3 | Z168: 8 | AA168: 4 | AB168: 2 | AC168: 7 | AD168: 7 | AE168: 12 | AF168: 14 | AG168: 5 | AH168: 3 | AI168: 9 | AJ168: 6 | AK168: 4 | AL168: 9 | AM168: 7 | AN168: 11 | AO168: 8 | AP168: 7 | AQ168: 13 | AR168: 10 | AS168: 9 | AT168: 8 | AU168: 7 | AV168: 13 | AW168: 11 | AX168: 16 | AY168: 10 | AZ168: 9 | BA168: 0 | BB168: 395 | BC168: 14.83372549 | BD168: 7.745098039 | BE168: 8 | BF168: 7
A169: OG0000168 | B169: 22 | C169: 9 | D169: 20 | E169: 24 | F169: 8 | G169: 1 | H169: 13 | I169: 1 | J169: 0 | K169: 1 | L169: 0 | M169: 0 | N169: 12 | O169: 5 | P169: 3 | Q169: 6 | R169: 5 | S169: 5 | T169: 7 | U169: 4 | V169: 9 | W169: 27 | X169: 10 | Y169: 2 | Z169: 2 | AA169: 4 | AB169: 3 | AC169: 2 | AD169: 4 | AE169: 8 | AF169: 16 | AG169: 7 | AH169: 1 | AI169: 4 | AJ169: 10 | AK169: 5 | AL169: 5 | AM169: 4 | AN169: 5 | AO169: 3 | AP169: 7 | AQ169: 14 | AR169: 3 | AS169: 32 | AT169: 3 | AU169: 1 | AV169: 4 | AW169: 12 | AX169: 37 | AY169: 2 | AZ169: 2 | BA169: 3 | BB169: 394 | BC169: 68.72313725 | BD169: 7.725490196 | BE169: 5 | BF169: 5
A170: OG0000169 | B170: 10 | C170: 3 | D170: 10 | E170: 1 | F170: 1 | G170: 2 | H170: 1 | I170: 0 | J170: 0 | K170: 0 | L170: 6 | M170: 0 | N170: 2 | O170: 17 | P170: 3 | Q170: 12 | R170: 15 | S170: 19 | T170: 4 | U170: 6 | V170: 2 | W170: 3 | X170: 11 | Y170: 13 | Z170: 5 | AA170: 8 | AB170: 4 | AC170: 8 | AD170: 8 | AE170: 10 | AF170: 5 | AG170: 9 | AH170: 13 | AI170: 21 | AJ170: 4 | AK170: 23 | AL170: 18 | AM170: 8 | AN170: 9 | AO170: 7 | AP170: 17 | AQ170: 5 | AR170: 16 | AS170: 1 | AT170: 10 | AU170: 7 | AV170: 10 | AW170: 5 | AX170: 2 | AY170: 10 | AZ170: 8 | BA170: 4 | BB170: 392 | BC170: 35.01960784 | BD170: 7.68627451 | BE170: 7 | BF170: 10
A171: OG0000170 | B171: 7 | C171: 30 | D171: 16 | E171: 7 | F171: 3 | G171: 4 | H171: 12 | I171: 0 | J171: 0 | K171: 2 | L171: 2 | M171: 7 | N171: 11 | O171: 8 | P171: 9 | Q171: 11 | R171: 7 | S171: 7 | T171: 7 | U171: 2 | V171: 18 | W171: 12 | X171: 6 | Y171: 19 | Z171: 8 | AA171: 2 | AB171: 2 | AC171: 8 | AD171: 7 | AE171: 5 | AF171: 14 | AG171: 10 | AH171: 6 | AI171: 6 | AJ171: 3 | AK171: 5 | AL171: 6 | AM171: 5 | AN171: 5 | AO171: 8 | AP171: 3 | AQ171: 9 | AR171: 6 | AS171: 11 | AT171: 5 | AU171: 2 | AV171: 8 | AW171: 7 | AX171: 9 | AY171: 20 | AZ171: 5 | BA171: 2 | BB171: 392 | BC171: 30.53960784 | BD171: 7.68627451 | BE171: 7 | BF171: 7
A172: OG0000171 | B172: 11 | C172: 13 | D172: 20 | E172: 6 | F172: 4 | G172: 4 | H172: 3 | I172: 10 | J172: 0 | K172: 6 | L172: 3 | M172: 1 | N172: 9 | O172: 6 | P172: 9 | Q172: 8 | R172: 1 | S172: 7 | T172: 11 | U172: 9 | V172: 6 | W172: 4 | X172: 4 | Y172: 15 | Z172: 2 | AA172: 8 | AB172: 7 | AC172: 2 | AD172: 6 | AE172: 9 | AF172: 15 | AG172: 13 | AH172: 4 | AI172: 8 | AJ172: 6 | AK172: 6 | AL172: 23 | AM172: 8 | AN172: 9 | AO172: 4 | AP172: 9 | AQ172: 15 | AR172: 8 | AS172: 4 | AT172: 7 | AU172: 7 | AV172: 11 | AW172: 6 | AX172: 10 | AY172: 4 | AZ172: 10 | BA172: 1 | BB172: 391 | BC172: 21.06666667 | BD172: 7.666666667 | BE172: 7 | BF172: 6
A173: OG0000172 | B173: 13 | C173: 1 | D173: 3 | E173: 11 | F173: 3 | G173: 6 | H173: 6 | I173: 2 | J173: 1 | K173: 0 | L173: 12 | M173: 4 | N173: 12 | O173: 4 | P173: 1 | Q173: 0 | R173: 1 | S173: 2 | T173: 10 | U173: 10 | V173: 3 | W173: 5 | X173: 8 | Y173: 3 | Z173: 6 | AA173: 5 | AB173: 5 | AC173: 5 | AD173: 18 | AE173: 6 | AF173: 13 | AG173: 1 | AH173: 11 | AI173: 3 | AJ173: 2 | AK173: 2 | AL173: 17 | AM173: 8 | AN173: 8 | AO173: 13 | AP173: 5 | AQ173: 18 | AR173: 26 | AS173: 18 | AT173: 10 | AU173: 11 | AV173: 10 | AW173: 13 | AX173: 26 | AY173: 1 | AZ173: 9 | BA173: 2 | BB173: 391 | BC173: 39.66666667 | BD173: 7.666666667 | BE173: 6 | BF173: 1
A174: OG0000173 | B174: 18 | C174: 20 | D174: 18 | E174: 2 | F174: 3 | G174: 0 | H174: 0 | I174: 0 | J174: 0 | K174: 0 | L174: 7 | M174: 4 | N174: 21 | O174: 3 | P174: 4 | Q174: 2 | R174: 3 | S174: 5 | T174: 2 | U174: 3 | V174: 13 | W174: 10 | X174: 9 | Y174: 19 | Z174: 12 | AA174: 13 | AB174: 3 | AC174: 0 | AD174: 2 | AE174: 4 | AF174: 39 | AG174: 20 | AH174: 8 | AI174: 1 | AJ174: 9 | AK174: 6 | AL174: 3 | AM174: 1 | AN174: 14 | AO174: 8 | AP174: 1 | AQ174: 10 | AR174: 4 | AS174: 11 | AT174: 4 | AU174: 2 | AV174: 2 | AW174: 23 | AX174: 18 | AY174: 4 | AZ174: 2 | BA174: 6 | BB174: 390 | BC174: 64.43294118 | BD174: 7.647058824 | BE174: 4 | BF174: 2
A175: OG0000174 | B175: 8 | C175: 2 | D175: 9 | E175: 9 | F175: 8 | G175: 3 | H175: 7 | I175: 3 | J175: 6 | K175: 7 | L175: 12 | M175: 9 | N175: 7 | O175: 4 | P175: 16 | Q175: 8 | R175: 7 | S175: 8 | T175: 8 | U175: 5 | V175: 12 | W175: 10 | X175: 6 | Y175: 9 | Z175: 8 | AA175: 7 | AB175: 2 | AC175: 4 | AD175: 8 | AE175: 7 | AF175: 4 | AG175: 12 | AH175: 15 | AI175: 12 | AJ175: 9 | AK175: 4 | AL175: 18 | AM175: 5 | AN175: 7 | AO175: 11 | AP175: 5 | AQ175: 9 | AR175: 7 | AS175: 4 | AT175: 10 | AU175: 1 | AV175: 7 | AW175: 8 | AX175: 7 | AY175: 8 | AZ175: 8 | BA175: 0 | BB175: 390 | BC175: 11.79294118 | BD175: 7.647058824 | BE175: 8 | BF175: 8
A176: OG0000175 | B176: 7 | C176: 4 | D176: 9 | E176: 1 | F176: 0 | G176: 4 | H176: 3 | I176: 5 | J176: 5 | K176: 1 | L176: 4 | M176: 6 | N176: 8 | O176: 6 | P176: 9 | Q176: 9 | R176: 6 | S176: 16 | T176: 7 | U176: 2 | V176: 9 | W176: 9 | X176: 8 | Y176: 5 | Z176: 6 | AA176: 2 | AB176: 2 | AC176: 13 | AD176: 3 | AE176: 3 | AF176: 28 | AG176: 10 | AH176: 7 | AI176: 4 | AJ176: 6 | AK176: 2 | AL176: 2 | AM176: 3 | AN176: 13 | AO176: 3 | AP176: 12 | AQ176: 14 | AR176: 4 | AS176: 13 | AT176: 5 | AU176: 8 | AV176: 3 | AW176: 22 | AX176: 34 | AY176: 14 | AZ176: 10 | BA176: 1 | BB176: 389 | BC176: 42.71843137 | BD176: 7.62745098 | BE176: 6 | BF176: 3
A177: OG0000176 | B177: 0 | C177: 2 | D177: 1 | E177: 5 | F177: 6 | G177: 6 | H177: 2 | I177: 0 | J177: 0 | K177: 0 | L177: 0 | M177: 14 | N177: 1 | O177: 7 | P177: 12 | Q177: 12 | R177: 12 | S177: 11 | T177: 5 | U177: 5 | V177: 21 | W177: 10 | X177: 11 | Y177: 20 | Z177: 10 | AA177: 5 | AB177: 2 | AC177: 18 | AD177: 8 | AE177: 13 | AF177: 3 | AG177: 13 | AH177: 5 | AI177: 10 | AJ177: 15 | AK177: 9 | AL177: 5 | AM177: 6 | AN177: 7 | AO177: 4 | AP177: 8 | AQ177: 8 | AR177: 10 | AS177: 1 | AT177: 9 | AU177: 9 | AV177: 14 | AW177: 0 | AX177: 0 | AY177: 22 | AZ177: 11 | BA177: 7 | BB177: 388 | BC177: 33.56313725 | BD177: 7.607843137 | BE177: 7 | BF177: 0
A178: OG0000177 | B178: 7 | C178: 8 | D178: 8 | E178: 8 | F178: 6 | G178: 4 | H178: 14 | I178: 6 | J178: 3 | K178: 1 | L178: 6 | M178: 1 | N178: 5 | O178: 10 | P178: 9 | Q178: 8 | R178: 10 | S178: 10 | T178: 5 | U178: 11 | V178: 6 | W178: 7 | X178: 6 | Y178: 5 | Z178: 4 | AA178: 11 | AB178: 4 | AC178: 10 | AD178: 10 | AE178: 7 | AF178: 8 | AG178: 4 | AH178: 5 | AI178: 14 | AJ178: 5 | AK178: 7 | AL178: 6 | AM178: 1 | AN178: 9 | AO178: 15 | AP178: 5 | AQ178: 15 | AR178: 13 | AS178: 9 | AT178: 9 | AU178: 4 | AV178: 8 | AW178: 14 | AX178: 7 | AY178: 10 | AZ178: 8 | BA178: 0 | BB178: 386 | BC178: 12.05019608 | BD178: 7.568627451 | BE178: 7 | BF178: 8
A179: OG0000178 | B179: 5 | C179: 9 | D179: 7 | E179: 3 | F179: 4 | G179: 14 | H179: 6 | I179: 7 | J179: 4 | K179: 7 | L179: 4 | M179: 3 | N179: 4 | O179: 4 | P179: 14 | Q179: 2 | R179: 6 | S179: 7 | T179: 2 | U179: 4 | V179: 5 | W179: 5 | X179: 3 | Y179: 5 | Z179: 3 | AA179: 6 | AB179: 3 | AC179: 6 | AD179: 4 | AE179: 3 | AF179: 16 | AG179: 7 | AH179: 21 | AI179: 14 | AJ179: 2 | AK179: 5 | AL179: 9 | AM179: 5 | AN179: 9 | AO179: 8 | AP179: 2 | AQ179: 18 | AR179: 7 | AS179: 10 | AT179: 15 | AU179: 10 | AV179: 5 | AW179: 11 | AX179: 17 | AY179: 20 | AZ179: 16 | BA179: 0 | BB179: 386 | BC179: 25.61019608 | BD179: 7.568627451 | BE179: 6 | BF179: 5
A180: OG0000179 | B180: 14 | C180: 4 | D180: 4 | E180: 19 | F180: 3 | G180: 0 | H180: 4 | I180: 2 | J180: 3 | K180: 5 | L180: 7 | M180: 3 | N180: 6 | O180: 6 | P180: 21 | Q180: 14 | R180: 8 | S180: 20 | T180: 10 | U180: 3 | V180: 5 | W180: 12 | X180: 10 | Y180: 10 | Z180: 5 | AA180: 2 | AB180: 1 | AC180: 5 | AD180: 3 | AE180: 4 | AF180: 13 | AG180: 5 | AH180: 3 | AI180: 7 | AJ180: 10 | AK180: 3 | AL180: 17 | AM180: 2 | AN180: 6 | AO180: 7 | AP180: 12 | AQ180: 10 | AR180: 7 | AS180: 14 | AT180: 5 | AU180: 1 | AV180: 6 | AW180: 17 | AX180: 7 | AY180: 8 | AZ180: 12 | BA180: 1 | BB180: 385 | BC180: 27.41254902 | BD180: 7.549019608 | BE180: 6 | BF180: 3
A181: OG0000180 | B181: 4 | C181: 0 | D181: 2 | E181: 0 | F181: 0 | G181: 8 | H181: 1 | I181: 2 | J181: 9 | K181: 0 | L181: 6 | M181: 0 | N181: 18 | O181: 11 | P181: 15 | Q181: 7 | R181: 5 | S181: 2 | T181: 13 | U181: 6 | V181: 5 | W181: 2 | X181: 2 | Y181: 12 | Z181: 3 | AA181: 14 | AB181: 2 | AC181: 5 | AD181: 24 | AE181: 7 | AF181: 5 | AG181: 13 | AH181: 7 | AI181: 4 | AJ181: 3 | AK181: 14 | AL181: 15 | AM181: 9 | AN181: 4 | AO181: 14 | AP181: 12 | AQ181: 4 | AR181: 13 | AS181: 5 | AT181: 14 | AU181: 7 | AV181: 9 | AW181: 5 | AX181: 13 | AY181: 9 | AZ181: 19 | BA181: 5 | BB181: 383 | BC181: 32.33490196 | BD181: 7.509803922 | BE181: 6 | BF181: 2
A182: OG0000181 | B182: 3 | C182: 5 | D182: 10 | E182: 2 | F182: 4 | G182: 0 | H182: 1 | I182: 8 | J182: 7 | K182: 2 | L182: 2 | M182: 1 | N182: 3 | O182: 5 | P182: 4 | Q182: 15 | R182: 13 | S182: 13 | T182: 8 | U182: 19 | V182: 6 | W182: 14 | X182: 5 | Y182: 6 | Z182: 4 | AA182: 1 | AB182: 7 | AC182: 1 | AD182: 6 | AE182: 6 | AF182: 8 | AG182: 1 | AH182: 9 | AI182: 6 | AJ182: 5 | AK182: 5 | AL182: 9 | AM182: 6 | AN182: 5 | AO182: 4 | AP182: 4 | AQ182: 19 | AR182: 19 | AS182: 32 | AT182: 5 | AU182: 1 | AV182: 2 | AW182: 18 | AX182: 16 | AY182: 14 | AZ182: 13 | BA182: 1 | BB182: 382 | BC182: 40.25490196 | BD182: 7.490196078 | BE182: 6 | BF182: 5
A183: OG0000182 | B183: 5 | C183: 10 | D183: 10 | E183: 11 | F183: 4 | G183: 5 | H183: 5 | I183: 1 | J183: 1 | K183: 2 | L183: 4 | M183: 5 | N183: 6 | O183: 7 | P183: 16 | Q183: 9 | R183: 11 | S183: 6 | T183: 6 | U183: 8 | V183: 7 | W183: 3 | X183: 3 | Y183: 8 | Z183: 2 | AA183: 6 | AB183: 6 | AC183: 4 | AD183: 6 | AE183: 9 | AF183: 11 | AG183: 27 | AH183: 7 | AI183: 4 | AJ183: 5 | AK183: 13 | AL183: 6 | AM183: 2 | AN183: 4 | AO183: 6 | AP183: 5 | AQ183: 9 | AR183: 3 | AS183: 18 | AT183: 4 | AU183: 9 | AV183: 8 | AW183: 10 | AX183: 17 | AY183: 22 | AZ183: 6 | BA183: 0 | BB183: 382 | BC183: 26.53490196 | BD183: 7.490196078 | BE183: 6 | BF183: 6
A184: OG0000183 | B184: 9 | C184: 3 | D184: 4 | E184: 10 | F184: 3 | G184: 3 | H184: 5 | I184: 2 | J184: 3 | K184: 3 | L184: 3 | M184: 3 | N184: 14 | O184: 9 | P184: 7 | Q184: 9 | R184: 5 | S184: 8 | T184: 8 | U184: 5 | V184: 6 | W184: 10 | X184: 4 | Y184: 7 | Z184: 6 | AA184: 12 | AB184: 1 | AC184: 6 | AD184: 9 | AE184: 3 | AF184: 10 | AG184: 6 | AH184: 6 | AI184: 6 | AJ184: 7 | AK184: 2 | AL184: 13 | AM184: 2 | AN184: 5 | AO184: 8 | AP184: 3 | AQ184: 24 | AR184: 13 | AS184: 17 | AT184: 12 | AU184: 10 | AV184: 8 | AW184: 15 | AX184: 18 | AY184: 7 | AZ184: 9 | BA184: 0 | BB184: 381 | BC184: 21.77411765 | BD184: 7.470588235 | BE184: 7 | BF184: 3
A185: OG0000184 | B185: 4 | C185: 10 | D185: 4 | E185: 12 | F185: 8 | G185: 4 | H185: 9 | I185: 18 | J185: 5 | K185: 4 | L185: 8 | M185: 7 | N185: 6 | O185: 12 | P185: 13 | Q185: 7 | R185: 10 | S185: 11 | T185: 6 | U185: 5 | V185: 5 | W185: 4 | X185: 6 | Y185: 6 | Z185: 7 | AA185: 7 | AB185: 5 | AC185: 6 | AD185: 9 | AE185: 9 | AF185: 6 | AG185: 9 | AH185: 8 | AI185: 6 | AJ185: 5 | AK185: 4 | AL185: 6 | AM185: 6 | AN185: 14 | AO185: 11 | AP185: 3 | AQ185: 5 | AR185: 7 | AS185: 6 | AT185: 11 | AU185: 2 | AV185: 9 | AW185: 8 | AX185: 7 | AY185: 12 | AZ185: 9 | BA185: 0 | BB185: 381 | BC185: 9.854117647 | BD185: 7.470588235 | BE185: 7 | BF185: 6
A186: OG0000185 | B186: 4 | C186: 5 | D186: 6 | E186: 5 | F186: 1 | G186: 10 | H186: 2 | I186: 0 | J186: 1 | K186: 0 | L186: 0 | M186: 0 | N186: 12 | O186: 2 | P186: 16 | Q186: 12 | R186: 9 | S186: 4 | T186: 5 | U186: 14 | V186: 2 | W186: 3 | X186: 5 | Y186: 0 | Z186: 3 | AA186: 6 | AB186: 4 | AC186: 1 | AD186: 4 | AE186: 12 | AF186: 35 | AG186: 5 | AH186: 0 | AI186: 12 | AJ186: 2 | AK186: 3 | AL186: 4 | AM186: 4 | AN186: 1 | AO186: 0 | AP186: 13 | AQ186: 21 | AR186: 20 | AS186: 19 | AT186: 5 | AU186: 1 | AV186: 2 | AW186: 23 | AX186: 15 | AY186: 35 | AZ186: 13 | BA186: 7 | BB186: 381 | BC186: 69.53411765 | BD186: 7.470588235 | BE186: 4 | BF186: 0
A187: OG0000186 | B187: 4 | C187: 0 | D187: 16 | E187: 1 | F187: 4 | G187: 0 | H187: 0 | I187: 0 | J187: 0 | K187: 2 | L187: 5 | M187: 1 | N187: 3 | O187: 7 | P187: 8 | Q187: 21 | R187: 14 | S187: 8 | T187: 7 | U187: 6 | V187: 10 | W187: 10 | X187: 8 | Y187: 6 | Z187: 3 | AA187: 3 | AB187: 8 | AC187: 5 | AD187: 12 | AE187: 9 | AF187: 13 | AG187: 10 | AH187: 11 | AI187: 10 | AJ187: 6 | AK187: 3 | AL187: 6 | AM187: 8 | AN187: 5 | AO187: 4 | AP187: 5 | AQ187: 15 | AR187: 8 | AS187: 20 | AT187: 2 | AU187: 6 | AV187: 11 | AW187: 10 | AX187: 12 | AY187: 30 | AZ187: 5 | BA187: 5 | BB187: 381 | BC187: 34.65411765 | BD187: 7.470588235 | BE187: 6 | BF187: 8
A188: OG0000187 | B188: 2 | C188: 2 | D188: 0 | E188: 6 | F188: 2 | G188: 3 | H188: 2 | I188: 1 | J188: 0 | K188: 1 | L188: 6 | M188: 17 | N188: 0 | O188: 3 | P188: 5 | Q188: 16 | R188: 11 | S188: 3 | T188: 12 | U188: 13 | V188: 9 | W188: 11 | X188: 10 | Y188: 17 | Z188: 5 | AA188: 6 | AB188: 1 | AC188: 8 | AD188: 5 | AE188: 10 | AF188: 0 | AG188: 15 | AH188: 9 | AI188: 10 | AJ188: 9 | AK188: 6 | AL188: 21 | AM188: 8 | AN188: 14 | AO188: 11 | AP188: 10 | AQ188: 14 | AR188: 9 | AS188: 2 | AT188: 8 | AU188: 9 | AV188: 10 | AW188: 0 | AX188: 7 | AY188: 8 | AZ188: 12 | BA188: 5 | BB188: 379 | BC188: 27.49019608 | BD188: 7.431372549 | BE188: 8 | BF188: 2
A189: OG0000188 | B189: 8 | C189: 9 | D189: 3 | E189: 10 | F189: 1 | G189: 12 | H189: 3 | I189: 0 | J189: 0 | K189: 0 | L189: 10 | M189: 2 | N189: 3 | O189: 7 | P189: 11 | Q189: 10 | R189: 18 | S189: 13 | T189: 7 | U189: 8 | V189: 2 | W189: 3 | X189: 2 | Y189: 4 | Z189: 5 | AA189: 4 | AB189: 6 | AC189: 2 | AD189: 13 | AE189: 31 | AF189: 17 | AG189: 17 | AH189: 0 | AI189: 0 | AJ189: 4 | AK189: 0 | AL189: 20 | AM189: 0 | AN189: 8 | AO189: 5 | AP189: 15 | AQ189: 10 | AR189: 6 | AS189: 9 | AT189: 8 | AU189: 3 | AV189: 4 | AW189: 22 | AX189: 4 | AY189: 10 | AZ189: 8 | BA189: 7 | BB189: 377 | BC189: 42.64313725 | BD189: 7.392156863 | BE189: 6 | BF189: 0
A190: OG0000189 | B190: 3 | C190: 7 | D190: 3 | E190: 0 | F190: 1 | G190: 3 | H190: 1 | I190: 0 | J190: 0 | K190: 3 | L190: 5 | M190: 1 | N190: 3 | O190: 12 | P190: 16 | Q190: 15 | R190: 11 | S190: 3 | T190: 11 | U190: 15 | V190: 1 | W190: 8 | X190: 6 | Y190: 26 | Z190: 3 | AA190: 7 | AB190: 4 | AC190: 8 | AD190: 15 | AE190: 6 | AF190: 6 | AG190: 6 | AH190: 7 | AI190: 14 | AJ190: 1 | AK190: 16 | AL190: 16 | AM190: 8 | AN190: 9 | AO190: 5 | AP190: 12 | AQ190: 6 | AR190: 11 | AS190: 5 | AT190: 13 | AU190: 15 | AV190: 7 | AW190: 3 | AX190: 5 | AY190: 5 | AZ190: 10 | BA190: 3 | BB190: 377 | BC190: 30.80313725 | BD190: 7.392156863 | BE190: 6 | BF190: 3
A191: OG0000190 | B191: 9 | C191: 5 | D191: 3 | E191: 1 | F191: 3 | G191: 3 | H191: 2 | I191: 1 | J191: 0 | K191: 0 | L191: 3 | M191: 7 | N191: 4 | O191: 6 | P191: 10 | Q191: 12 | R191: 10 | S191: 17 | T191: 4 | U191: 10 | V191: 6 | W191: 9 | X191: 6 | Y191: 9 | Z191: 7 | AA191: 2 | AB191: 1 | AC191: 1 | AD191: 13 | AE191: 9 | AF191: 11 | AG191: 9 | AH191: 8 | AI191: 14 | AJ191: 7 | AK191: 13 | AL191: 9 | AM191: 6 | AN191: 11 | AO191: 7 | AP191: 4 | AQ191: 10 | AR191: 8 | AS191: 4 | AT191: 16 | AU191: 8 | AV191: 5 | AW191: 14 | AX191: 11 | AY191: 16 | AZ191: 13 | BA191: 2 | BB191: 377 | BC191: 20.00313725 | BD191: 7.392156863 | BE191: 7 | BF191: 9
A192: OG0000191 | B192: 4 | C192: 9 | D192: 13 | E192: 14 | F192: 6 | G192: 0 | H192: 13 | I192: 0 | J192: 0 | K192: 6 | L192: 4 | M192: 4 | N192: 2 | O192: 6 | P192: 16 | Q192: 21 | R192: 16 | S192: 13 | T192: 7 | U192: 0 | V192: 11 | W192: 11 | X192: 4 | Y192: 12 | Z192: 5 | AA192: 4 | AB192: 3 | AC192: 8 | AD192: 8 | AE192: 11 | AF192: 3 | AG192: 19 | AH192: 4 | AI192: 4 | AJ192: 4 | AK192: 3 | AL192: 8 | AM192: 3 | AN192: 6 | AO192: 15 | AP192: 7 | AQ192: 3 | AR192: 8 | AS192: 3 | AT192: 14 | AU192: 6 | AV192: 5 | AW192: 8 | AX192: 0 | AY192: 15 | AZ192: 7 | BA192: 5 | BB192: 376 | BC192: 27.23843137 | BD192: 7.37254902 | BE192: 6 | BF192: 4
A193: OG0000192 | B193: 12 | C193: 12 | D193: 7 | E193: 10 | F193: 7 | G193: 2 | H193: 11 | I193: 0 | J193: 0 | K193: 3 | L193: 5 | M193: 1 | N193: 5 | O193: 11 | P193: 10 | Q193: 2 | R193: 13 | S193: 17 | T193: 10 | U193: 9 | V193: 3 | W193: 10 | X193: 3 | Y193: 1 | Z193: 2 | AA193: 4 | AB193: 4 | AC193: 8 | AD193: 11 | AE193: 7 | AF193: 10 | AG193: 6 | AH193: 6 | AI193: 4 | AJ193: 7 | AK193: 9 | AL193: 15 | AM193: 10 | AN193: 9 | AO193: 6 | AP193: 7 | AQ193: 5 | AR193: 10 | AS193: 11 | AT193: 17 | AU193: 9 | AV193: 1 | AW193: 11 | AX193: 7 | AY193: 7 | AZ193: 8 | BA193: 2 | BB193: 375 | BC193: 17.51294118 | BD193: 7.352941176 | BE193: 7 | BF193: 7
A194: OG0000193 | B194: 6 | C194: 7 | D194: 4 | E194: 3 | F194: 4 | G194: 6 | H194: 3 | I194: 2 | J194: 1 | K194: 3 | L194: 6 | M194: 2 | N194: 8 | O194: 3 | P194: 9 | Q194: 13 | R194: 7 | S194: 10 | T194: 6 | U194: 14 | V194: 6 | W194: 6 | X194: 5 | Y194: 8 | Z194: 4 | AA194: 11 | AB194: 10 | AC194: 7 | AD194: 10 | AE194: 9 | AF194: 18 | AG194: 1 | AH194: 0 | AI194: 4 | AJ194: 4 | AK194: 2 | AL194: 11 | AM194: 12 | AN194: 14 | AO194: 3 | AP194: 4 | AQ194: 11 | AR194: 7 | AS194: 10 | AT194: 9 | AU194: 6 | AV194: 8 | AW194: 21 | AX194: 17 | AY194: 10 | AZ194: 10 | BA194: 1 | BB194: 375 | BC194: 20.55294118 | BD194: 7.352941176 | BE194: 7 | BF194: 6
A195: OG0000194 | B195: 2 | C195: 4 | D195: 6 | E195: 5 | F195: 2 | G195: 2 | H195: 3 | I195: 0 | J195: 3 | K195: 5 | L195: 4 | M195: 0 | N195: 21 | O195: 5 | P195: 14 | Q195: 10 | R195: 4 | S195: 4 | T195: 6 | U195: 9 | V195: 11 | W195: 5 | X195: 5 | Y195: 4 | Z195: 5 | AA195: 2 | AB195: 4 | AC195: 8 | AD195: 4 | AE195: 3 | AF195: 27 | AG195: 4 | AH195: 9 | AI195: 6 | AJ195: 4 | AK195: 3 | AL195: 3 | AM195: 3 | AN195: 4 | AO195: 7 | AP195: 4 | AQ195: 14 | AR195: 9 | AS195: 14 | AT195: 13 | AU195: 4 | AV195: 8 | AW195: 23 | AX195: 40 | AY195: 14 | AZ195: 2 | BA195: 2 | BB195: 375 | BC195: =VAR(B195:AZ195) -> 53.19294118 | BD195: =AVERAGE(B195:AZ195) -> 7.352941176 | BE195: =MEDIAN(B195:AZ195) -> 5 | BF195: =MODE(B195:AZ195) -> 4
A196: OG0000195 | B196: 2 | C196: 1 | D196: 1 | E196: 0 | F196: 0 | G196: 4 | H196: 0 | I196: 2 | J196: 8 | K196: 0 | L196: 6 | M196: 0 | N196: 5 | O196: 9 | P196: 11 | Q196: 17 | R196: 10 | S196: 3 | T196: 6 | U196: 5 | V196: 7 | W196: 3 | X196: 12 | Y196: 23 | Z196: 2 | AA196: 12 | AB196: 4 | AC196: 13 | AD196: 13 | AE196: 11 | AF196: 3 | AG196: 15 | AH196: 6 | AI196: 4 | AJ196: 6 | AK196: 13 | AL196: 23 | AM196: 15 | AN196: 14 | AO196: 13 | AP196: 11 | AQ196: 7 | AR196: 10 | AS196: 2 | AT196: 6 | AU196: 5 | AV196: 10 | AW196: 1 | AX196: 8 | AY196: 3 | AZ196: 10 | BA196: 5 | BB196: 375 | BC196: 32.55294118 | BD196: 7.352941176 | BE196: 6 | BF196: 0
A197: OG0000196 | B197: 9 | C197: 3 | D197: 7 | E197: 3 | F197: 0 | G197: 7 | H197: 0 | I197: 0 | J197: 0 | K197: 1 | L197: 4 | M197: 3 | N197: 7 | O197: 4 | P197: 13 | Q197: 14 | R197: 15 | S197: 6 | T197: 3 | U197: 2 | V197: 3 | W197: 8 | X197: 1 | Y197: 2 | Z197: 6 | AA197: 1 | AB197: 16 | AC197: 1 | AD197: 11 | AE197: 14 | AF197: 34 | AG197: 13 | AH197: 3 | AI197: 1 | AJ197: 4 | AK197: 0 | AL197: 9 | AM197: 7 | AN197: 6 | AO197: 4 | AP197: 17 | AQ197: 3 | AR197: 15 | AS197: 15 | AT197: 2 | AU197: 2 | AV197: 9 | AW197: 23 | AX197: 9 | AY197: 23 | AZ197: 10 | BA197: 5 | BB197: 373 | BC197: 49.93960784 | BD197: 7.31372549 | BE197: 6 | BF197: 3
A198: OG0000197 | B198: 3 | C198: 10 | D198: 4 | E198: 4 | F198: 4 | G198: 5 | H198: 8 | I198: 2 | J198: 4 | K198: 3 | L198: 5 | M198: 4 | N198: 4 | O198: 7 | P198: 13 | Q198: 8 | R198: 6 | S198: 2 | T198: 4 | U198: 7 | V198: 8 | W198: 12 | X198: 9 | Y198: 3 | Z198: 6 | AA198: 7 | AB198: 2 | AC198: 6 | AD198: 9 | AE198: 5 | AF198: 19 | AG198: 11 | AH198: 10 | AI198: 3 | AJ198: 7 | AK198: 3 | AL198: 7 | AM198: 6 | AN198: 10 | AO198: 8 | AP198: 6 | AQ198: 9 | AR198: 11 | AS198: 14 | AT198: 8 | AU198: 5 | AV198: 6 | AW198: 16 | AX198: 19 | AY198: 8 | AZ198: 13 | BA198: 0 | BB198: 373 | BC198: 16.53960784 | BD198: 7.31372549 | BE198: 7 | BF198: 4
A199: OG0000198 | B199: 2 | C199: 3 | D199: 6 | E199: 1 | F199: 1 | G199: 2 | H199: 0 | I199: 6 | J199: 1 | K199: 5 | L199: 5 | M199: 2 | N199: 5 | O199: 9 | P199: 17 | Q199: 22 | R199: 20 | S199: 16 | T199: 5 | U199: 5 | V199: 18 | W199: 15 | X199: 5 | Y199: 7 | Z199: 2 | AA199: 5 | AB199: 5 | AC199: 12 | AD199: 8 | AE199: 8 | AF199: 9 | AG199: 4 | AH199: 8 | AI199: 3 | AJ199: 7 | AK199: 1 | AL199: 5 | AM199: 3 | AN199: 6 | AO199: 3 | AP199: 3 | AQ199: 6 | AR199: 10 | AS199: 8 | AT199: 17 | AU199: 3 | AV199: 12 | AW199: 11 | AX199: 10 | AY199: 15 | AZ199: 11 | BA199: 1 | BB199: 373 | BC199: 29.37960784 | BD199: 7.31372549 | BE199: 6 | BF199: 5
A200: OG0000199 | B200: 20 | C200: 15 | D200: 17 | E200: 23 | F200: 5 | G200: 1 | H200: 7 | I200: 0 | J200: 0 | K200: 0 | L200: 2 | M200: 0 | N200: 11 | O200: 2 | P200: 2 | Q200: 7 | R200: 4 | S200: 11 | T200: 2 | U200: 2 | V200: 9 | W200: 12 | X200: 8 | Y200: 7 | Z200: 3 | AA200: 1 | AB200: 2 | AC200: 1 | AD200: 1 | AE200: 7 | AF200: 7 | AG200: 4 | AH200: 1 | AI200: 0 | AJ200: 8 | AK200: 9 | AL200: 5 | AM200: 2 | AN200: 2 | AO200: 4 | AP200: 2 | AQ200: 22 | AR200: 5 | AS200: 38 | AT200: 4 | AU200: 0 | AV200: 5 | AW200: 20 | AX200: 45 | AY200: 3 | AZ200: 4 | BA200: 6 | BB200: 372 | BC200: 84.85176471 | BD200: 7.294117647 | BE200: 4 | BF200: 2
... 2050 more rows

Sheet 2594 OGs vs 10851 pre-OGs
A1: 10851 Pre-OGs | B1: 2594 OGs | C1: average | D1: median | E1: mode
A2: OG0002096 | C2: 3 | D2: 3 | E2: 2
A3: OG0002097 | C3: 3 | D3: 3 | E3: 2
A4: OG0002098 | C4: 3 | D4: 3 | E4: 2
A5: OG0002099 | C5: 3 | D5: 3 | E5: 2
A6: OG0002100 | C6: 3 | D6: 3 | E6: 2
A7: OG0002101 | C7: 3 | D7: 3 | E7: 2
A8: OG0002102 | C8: 3 | D8: 3 | E8: 2
A9: OG0002103 | C9: 3 | D9: 3 | E9: 2
A10: OG0002104 | C10: 3 | D10: 3 | E10: 2
A11: OG0002106 | C11: 3 | D11: 2 | E11: 2
A12: OG0002107 | C12: 3 | D12: 3 | E12: 2
A13: OG0002108 | C13: 3 | D13: 2 | E13: 1
A14: OG0002109 | C14: 3 | D14: 2 | E14: 2
A15: OG0002110 | C15: 3 | D15: 2 | E15: 1
A16: OG0002111 | C16: 3 | D16: 3 | E16: 2
A17: OG0002112 | C17: 3 | D17: 3 | E17: 2
A18: OG0002113 | C18: 3 | D18: 3 | E18: 2
A19: OG0002114 | C19: 3 | D19: 3 | E19: 2
A20: OG0002115 | C20: 3 | D20: 2 | E20: 1
A21: OG0002116 | C21: 3 | D21: 2 | E21: 2
A22: OG0002117 | C22: 3 | D22: 3 | E22: 2
A23: OG0002118 | C23: 3 | D23: 2 | E23: 2
A24: OG0002119 | C24: 3 | D24: 2 | E24: 1
A25: OG0002120 | C25: 3 | D25: 3 | E25: 2
A26: OG0002121 | C26: 3 | D26: 3 | E26: 2
A27: OG0002122 | C27: 3 | D27: 2 | E27: 2
A28: OG0002123 | C28: 3 | D28: 3 | E28: 2
A29: OG0002124 | C29: 3 | D29: 2 | E29: 2
A30: OG0002125 | C30: 3 | D30: 3 | E30: 1
A31: OG0002126 | C31: 3 | D31: 3 | E31: 2
A32: OG0002127 | C32: 3 | D32: 3 | E32: 2
A33: OG0002130 | C33: 2.980392157 | D33: 3 | E33: 3
A34: OG0002131 | C34: 2.980392157 | D34: 3 | E34: 3
A35: OG0002133 | C35: 2.980392157 | D35: 2 | E35: 2
A36: OG0002135 | C36: 2.980392157 | D36: 3 | E36: 3
A37: OG0002136 | C37: 2.980392157 | D37: 3 | E37: 3
A38: OG0002137 | C38: 2.980392157 | D38: 3 | E38: 3
A39: OG0002138 | C39: 2.980392157 | D39: 3 | E39: 2
A40: OG0002139 | C40: 2.980392157 | D40: 3 | E40: 2
A41: OG0002140 | C41: 2.980392157 | D41: 3 | E41: 2
A42: OG0002141 | C42: 2.980392157 | D42: 3 | E42: 2
A43: OG0002142 | C43: 2.980392157 | D43: 3 | E43: 2
A44: OG0002143 | C44: 2.980392157 | D44: 2 | E44: 1
A45: OG0002144 | C45: 2.980392157 | D45: 3 | E45: 2
A46: OG0002146 | C46: 2.980392157 | D46: 3 | E46: 2
A47: OG0002147 | C47: 2.980392157 | D47: 2 | E47: 1
A48: OG0002148 | C48: 2.980392157 | D48: 2 | E48: 2
A49: OG0002149 | C49: 2.980392157 | D49: 2 | E49: 2
A50: OG0002150 | C50: 2.980392157 | D50: 3 | E50: 2
A51: OG0002151 | C51: 2.980392157 | D51: 3 | E51: 3
A52: OG0002153 | C52: 2.980392157 | D52: 3 | E52: 3
A53: OG0002154 | C53: 2.980392157 | D53: 2 | E53: 2
A54: OG0002156 | C54: 2.980392157 | D54: 2 | E54: 2
A55: OG0002157 | C55: 2.980392157 | D55: 3 | E55: 1
A56: OG0002158 | C56: 2.980392157 | D56: 3 | E56: 3
A57: OG0002159 | C57: 2.980392157 | D57: 3 | E57: 2
A58: OG0002160 | C58: 2.980392157 | D58: 2 | E58: 1
A59: OG0002161 | C59: 2.980392157 | D59: 3 | E59: 2
A60: OG0002162 | C60: 2.980392157 | D60: 3 | E60: 1
A61: OG0002163 | C61: 2.980392157 | D61: 3 | E61: 1
A62: OG0002164 | C62: 2.980392157 | D62: 3 | E62: 3
A63: OG0002165 | C63: 2.980392157 | D63: 2 | E63: 2
A64: OG0002166 | C64: 2.980392157 | D64: 3 | E64: 1
A65: OG0002167 | C65: 2.980392157 | D65: 3 | E65: 2
A66: OG0002168 | C66: 2.980392157 | D66: 3 | E66: 2
A67: OG0002169 | C67: 2.980392157 | D67: 3 | E67: 3
A68: OG0002170 | C68: 2.980392157 | D68: 2 | E68: 2
A69: OG0002171 | C69: 2.980392157 | D69: 3 | E69: 3
A70: OG0002173 | C70: 2.980392157 | D70: 3 | E70: 2
A71: OG0002174 | C71: 2.980392157 | D71: 3 | E71: 2
A72: OG0002175 | C72: 2.980392157 | D72: 2 | E72: 2
A73: OG0002176 | C73: 2.980392157 | D73: 3 | E73: 3
A74: OG0002177 | C74: 2.960784314 | D74: 3 | E74: 2
A75: OG0002178 | C75: 2.960784314 | D75: 2 | E75: 2
A76: OG0002179 | C76: 2.960784314 | D76: 3 | E76: 3
A77: OG0002180 | C77: 2.960784314 | D77: 3 | E77: 2
A78: OG0002181 | C78: 2.960784314 | D78: 3 | E78: 1
A79: OG0002182 | C79: 2.960784314 | D79: 3 | E79: 2
A80: OG0002183 | C80: 2.960784314 | D80: 3 | E80: 2
A81: OG0002184 | C81: 2.960784314 | D81: 3 | E81: 1
A82: OG0002185 | C82: 2.960784314 | D82: 3 | E82: 2
A83: OG0002187 | C83: 2.960784314 | D83: 3 | E83: 2
A84: OG0002188 | C84: 2.960784314 | D84: 3 | E84: 3
A85: OG0002189 | C85: 2.960784314 | D85: 3 | E85: 2
A86: OG0002190 | C86: 2.960784314 | D86: 2 | E86: 2
A87: OG0002192 | C87: 2.960784314 | D87: 3 | E87: 2
A88: OG0002193 | C88: 2.960784314 | D88: 3 | E88: 2
A89: OG0002194 | C89: 2.960784314 | D89: 3 | E89: 2
A90: OG0002195 | C90: 2.960784314 | D90: 3 | E90: 3
A91: OG0002196 | C91: 2.960784314 | D91: 2 | E91: 1
A92: OG0002197 | C92: 2.960784314 | D92: 3 | E92: 3
A93: OG0002199 | C93: 2.960784314 | D93: 3 | E93: 2
A94: OG0002201 | C94: 2.960784314 | D94: 3 | E94: 3
A95: OG0002202 | C95: 2.960784314 | D95: 2 | E95: 2
A96: OG0002203 | C96: 2.960784314 | D96: 3 | E96: 3
A97: OG0002204 | C97: 2.960784314 | D97: 3 | E97: 3
A98: OG0002205 | C98: 2.960784314 | D98: 3 | E98: 2
A99: OG0002206 | C99: 2.960784314 | D99: 3 | E99: 3
A100: OG0002207 | C100: 2.960784314 | D100: 2 | E100: 2
A101: OG0002208 | C101: 2.960784314 | D101: 3 | E101: 3
A102: OG0002209 | C102: 2.960784314 | D102: 3 | E102: 1
A103: OG0002210 | C103: 2.960784314 | D103: 2 | E103: 2
A104: OG0002211 | C104: 2.960784314 | D104: 2 | E104: 2
A105: OG0002212 | C105: 2.960784314 | D105: 3 | E105: 3
A106: OG0002213 | C106: 2.960784314 | D106: 3 | E106: 3
A107: OG0002214 | C107: 2.960784314 | D107: 3 | E107: 3
A108: OG0002215 | C108: 2.960784314 | D108: 3 | E108: 2
A109: OG0002216 | C109: 2.960784314 | D109: 3 | E109: 2
A110: OG0002218 | C110: 2.960784314 | D110: 2 | E110: 2
A111: OG0002219 | C111: 2.960784314 | D111: 3 | E111: 3
A112: OG0002221 | C112: 2.960784314 | D112: 3 | E112: 1
A113: OG0002223 | C113: 2.960784314 | D113: 2 | E113: 1
A114: OG0002224 | C114: 2.960784314 | D114: 3 | E114: 2
A115: OG0002228 | C115: 2.941176471 | D115: 2 | E115: 1
A116: OG0002230 | C116: 2.941176471 | D116: 3 | E116: 3
A117: OG0002232 | C117: 2.941176471 | D117: 2 | E117: 1
A118: OG0002233 | C118: 2.941176471 | D118: 3 | E118: 2
A119: OG0002234 | C119: 2.941176471 | D119: 2 | E119: 1
A120: OG0002235 | C120: 2.941176471 | D120: 3 | E120: 2
A121: OG0002236 | C121: 2.941176471 | D121: 2 | E121: 2
A122: OG0002237 | C122: 2.941176471 | D122: 3 | E122: 2
A123: OG0002238 | C123: 2.941176471 | D123: 3 | E123: 3
A124: OG0002239 | C124: 2.941176471 | D124: 3 | E124: 3
A125: OG0002240 | C125: 2.941176471 | D125: 3 | E125: 2
A126: OG0002241 | C126: 2.941176471 | D126: 3 | E126: 3
A127: OG0002242 | C127: 2.941176471 | D127: 3 | E127: 2
A128: OG0002243 | C128: 2.941176471 | D128: 2 | E128: 1
A129: OG0002244 | C129: 2.941176471 | D129: 3 | E129: 2
A130: OG0002245 | C130: 2.941176471 | D130: 2 | E130: 2
A131: OG0002246 | C131: 2.941176471 | D131: 2 | E131: 1
A132: OG0002247 | C132: 2.941176471 | D132: 3 | E132: 2
A133: OG0002249 | C133: 2.941176471 | D133: 3 | E133: 3
A134: OG0002250 | C134: 2.941176471 | D134: 3 | E134: 2
A135: OG0002251 | C135: 2.941176471 | D135: 3 | E135: 2
A136: OG0002252 | C136: 2.941176471 | D136: 3 | E136: 2
A137: OG0002253 | C137: 2.941176471 | D137: 2 | E137: 2
A138: OG0002254 | C138: 2.941176471 | D138: 2 | E138: 2
A139: OG0002255 | C139: 2.941176471 | D139: 3 | E139: 2
A140: OG0002256 | C140: 2.941176471 | D140: 2 | E140: 1
A141: OG0002257 | C141: 2.941176471 | D141: 2 | E141: 2
A142: OG0002258 | C142: 2.941176471 | D142: 3 | E142: 2
A143: OG0002259 | C143: 2.941176471 | D143: 3 | E143: 1
A144: OG0002260 | C144: 2.941176471 | D144: 2 | E144: 1
A145: OG0002261 | C145: 2.941176471 | D145: 3 | E145: 3
A146: OG0002263 | C146: 2.941176471 | D146: 3 | E146: 1
A147: OG0002264 | C147: 2.941176471 | D147: 3 | E147: 2
A148: OG0002266 | C148: 2.941176471 | D148: 3 | E148: 1
A149: OG0002267 | C149: 2.941176471 | D149: 2 | E149: 2
A150: OG0002269 | C150: 2.941176471 | D150: 3 | E150: 1
A151: OG0002270 | C151: 2.941176471 | D151: 3 | E151: 2
A152: OG0002272 | C152: 2.941176471 | D152: 2 | E152: 1
A153: OG0002273 | C153: 2.941176471 | D153: 3 | E153: 3
A154: OG0002274 | C154: 2.941176471 | D154: 3 | E154: 2
A155: OG0002275 | C155: 2.941176471 | D155: 3 | E155: 3
A156: OG0002276 | C156: 2.941176471 | D156: 3 | E156: 3
A157: OG0002277 | C157: 2.941176471 | D157: 3 | E157: 3
A158: OG0002278 | C158: 2.941176471 | D158: 3 | E158: 2
A159: OG0002279 | C159: 2.921568627 | D159: 3 | E159: 3
A160: OG0002282 | C160: 2.921568627 | D160: 3 | E160: 3
A161: OG0002283 | C161: 2.921568627 | D161: 3 | E161: 2
A162: OG0002284 | C162: 2.921568627 | D162: 2 | E162: 2
A163: OG0002285 | C163: 2.921568627 | D163: 2 | E163: 2
A164: OG0002286 | C164: 2.921568627 | D164: 2 | E164: 2
A165: OG0002287 | C165: 2.921568627 | D165: 2 | E165: 1
A166: OG0002288 | C166: 2.921568627 | D166: 2 | E166: 1
A167: OG0002289 | C167: 2.921568627 | D167: 2 | E167: 2
A168: OG0002290 | C168: 2.921568627 | D168: 3 | E168: 2
A169: OG0002291 | C169: 2.921568627 | D169: 3 | E169: 2
A170: OG0002292 | C170: 2.921568627 | D170: 2 | E170: 2
A171: OG0002293 | C171: 2.921568627 | D171: 3 | E171: 3
A172: OG0002294 | C172: 2.921568627 | D172: 3 | E172: 3
A173: OG0002296 | C173: 2.921568627 | D173: 2 | E173: 1
A174: OG0002297 | C174: 2.921568627 | D174: 2 | E174: 2
A175: OG0002298 | C175: 2.921568627 | D175: 2 | E175: 2
A176: OG0002299 | C176: 2.921568627 | D176: 2 | E176: 2
A177: OG0002300 | C177: 2.921568627 | D177: 3 | E177: 2
A178: OG0002301 | C178: 2.921568627 | D178: 2 | E178: 2
A179: OG0002302 | C179: 2.921568627 | D179: 2 | E179: 1
A180: OG0002304 | C180: 2.921568627 | D180: 2 | E180: 1
A181: OG0002305 | C181: 2.921568627 | D181: 2 | E181: 1
A182: OG0002306 | C182: 2.921568627 | D182: 3 | E182: 3
A183: OG0002307 | C183: 2.921568627 | D183: 2 | E183: 2
A184: OG0002308 | C184: 2.921568627 | D184: 3 | E184: 2
A185: OG0002309 | C185: 2.921568627 | D185: 3 | E185: 1
A186: OG0002310 | C186: 2.921568627 | D186: 3 | E186: 3
A187: OG0002311 | C187: 2.921568627 | D187: 3 | E187: 1
A188: OG0002312 | C188: 2.921568627 | D188: 3 | E188: 2
A189: OG0002313 | C189: 2.921568627 | D189: 2 | E189: 2
A190: OG0002314 | C190: 2.921568627 | D190: 3 | E190: 3
A191: OG0002315 | C191: 2.921568627 | D191: 3 | E191: 1
A192: OG0002317 | C192: 2.921568627 | D192: 2 | E192: 2
A193: OG0002318 | C193: 2.921568627 | D193: 3 | E193: 2
A194: OG0002320 | C194: 2.901960784 | D194: 3 | E194: 3
A195: OG0002321 | C195: 2.901960784 | D195: 2 | E195: 2
A196: OG0002322 | C196: 2.901960784 | D196: 3 | E196: 3
A197: OG0002323 | C197: 2.901960784 | D197: 3 | E197: 3
A198: OG0002324 | C198: 2.901960784 | D198: 2 | E198: 1
A199: OG0002325 | C199: 2.901960784 | D199: 2 | E199: 2
A200: OG0002327 | C200: 2.901960784 | D200: 3 | E200: 3
... 10652 more rows

Sheet 2594 OGs
A1: ID | B1: average | C1: median | D1: mode
A2: OG0002134 | B2: 2.980392157 | C2: 3 | D2: 2
A3: OG0002152 | B3: 2.980392157 | C3: 3 | D3: 1
A4: OG0002172 | B4: 2.980392157 | C4: 3 | D4: 1
A5: OG0002198 | B5: 2.960784314 | C5: 3 | D5: 2
A6: OG0002200 | B6: 2.960784314 | C6: 3 | D6: 1
A7: OG0002217 | B7: 2.960784314 | C7: 3 | D7: 3
A8: OG0002248 | B8: 2.941176471 | C8: 2 | D8: 2
A9: OG0002271 | B9: 2.941176471 | C9: 3 | D9: 2
A10: OG0002326 | B10: 2.901960784 | C10: 3 | D10: 2
A11: OG0002341 | B11: 2.901960784 | C11: 3 | D11: 2
A12: OG0002360 | B12: 2.901960784 | C12: 2 | D12: 2
A13: OG0002391 | B13: 2.882352941 | C13: 2 | D13: 2
A14: OG0002441 | B14: 2.862745098 | C14: 3 | D14: 2
A15: OG0002458 | B15: 2.862745098 | C15: 2 | D15: 2
A16: OG0002504 | B16: 2.843137255 | C16: 3 | D16: 1
A17: OG0002513 | B17: 2.843137255 | C17: 2 | D17: 2
A18: OG0002530 | B18: 2.823529412 | C18: 3 | D18: 2
A19: OG0002550 | B19: 2.823529412 | C19: 2 | D19: 2
A20: OG0002590 | B20: 2.803921569 | C20: 2 | D20: 1
A21: OG0002629 | B21: 2.784313725 | C21: 2 | D21: 2
A22: OG0002643 | B22: 2.784313725 | C22: 2 | D22: 1
A23: OG0002648 | B23: 2.784313725 | C23: 3 | D23: 2
A24: OG0002654 | B24: 2.784313725 | C24: 3 | D24: 1
A25: OG0002680 | B25: 2.764705882 | C25: 3 | D25: 2
A26: OG0002704 | B26: 2.764705882 | C26: 2 | D26: 1
A27: OG0002714 | B27: 2.764705882 | C27: 2 | D27: 2
A28: OG0002736 | B28: 2.745098039 | C28: 2 | D28: 2
A29: OG0002750 | B29: 2.745098039 | C29: 3 | D29: 3
A30: OG0002759 | B30: 2.745098039 | C30: 3 | D30: 2
A31: OG0002811 | B31: 2.725490196 | C31: 2 | D31: 2
A32: OG0002841 | B32: 2.725490196 | C32: 2 | D32: 2
A33: OG0002860 | B33: 2.705882353 | C33: 3 | D33: 3
A34: OG0002866 | B34: 2.705882353 | C34: 2 | D34: 1
A35: OG0002875 | B35: 2.705882353 | C35: 2 | D35: 2
A36: OG0002895 | B36: 2.705882353 | C36: 2 | D36: 2
A37: OG0002909 | B37: 2.68627451 | C37: 2 | D37: 1
A38: OG0002911 | B38: 2.68627451 | C38: 2 | D38: 2
A39: OG0002913 | B39: 2.68627451 | C39: 2 | D39: 2
A40: OG0002939 | B40: 2.68627451 | C40: 2 | D40: 2
A41: OG0002951 | B41: 2.68627451 | C41: 2 | D41: 2
A42: OG0002958 | B42: 2.666666667 | C42: 2 | D42: 2
A43: OG0002994 | B43: 2.666666667 | C43: 2 | D43: 2
A44: OG0002999 | B44: 2.666666667 | C44: 2 | D44: 2
A45: OG0003007 | B45: 2.666666667 | C45: 2 | D45: 2
A46: OG0003008 | B46: 2.666666667 | C46: 2 | D46: 1
A47: OG0003023 | B47: 2.647058824 | C47: 2 | D47: 3
A48: OG0003025 | B48: 2.647058824 | C48: 2 | D48: 1
A49: OG0003027 | B49: 2.647058824 | C49: 2 | D49: 2
A50: OG0003049 | B50: 2.647058824 | C50: 2 | D50: 2
A51: OG0003099 | B51: 2.62745098 | C51: 2 | D51: 1
A52: OG0003102 | B52: 2.62745098 | C52: 2 | D52: 2
A53: OG0003107 | B53: 2.62745098 | C53: 2 | D53: 2
A54: OG0003108 | B54: 2.62745098 | C54: 2 | D54: 2
A55: OG0003110 | B55: 2.62745098 | C55: 2 | D55: 1
A56: OG0003114 | B56: 2.62745098 | C56: 2 | D56: 1
A57: OG0003116 | B57: 2.62745098 | C57: 2 | D57: 1
A58: OG0003118 | B58: 2.62745098 | C58: 2 | D58: 2
A59: OG0003146 | B59: 2.607843137 | C59: 2 | D59: 2
A60: OG0003185 | B60: 2.607843137 | C60: 2 | D60: 2
A61: OG0003187 | B61: 2.607843137 | C61: 2 | D61: 1
A62: OG0003204 | B62: 2.607843137 | C62: 2 | D62: 2
A63: OG0003215 | B63: 2.588235294 | C63: 2 | D63: 1
A64: OG0003226 | B64: 2.588235294 | C64: 2 | D64: 2
A65: OG0003244 | B65: 2.588235294 | C65: 2 | D65: 1
A66: OG0003262 | B66: 2.588235294 | C66: 2 | D66: 1
A67: OG0003278 | B67: 2.568627451 | C67: 2 | D67: 2
A68: OG0003291 | B68: 2.568627451 | C68: 2 | D68: 1
A69: OG0003305 | B69: 2.568627451 | C69: 2 | D69: 2
A70: OG0003311 | B70: 2.568627451 | C70: 2 | D70: 1
A71: OG0003312 | B71: 2.568627451 | C71: 2 | D71: 2
A72: OG0003317 | B72: 2.568627451 | C72: 2 | D72: 2
A73: OG0003337 | B73: 2.568627451 | C73: 2 | D73: 1
A74: OG0003345 | B74: 2.568627451 | C74: 2 | D74: 1
A75: OG0003346 | B75: 2.568627451 | C75: 2 | D75: 1
A76: OG0003347 | B76: 2.568627451 | C76: 2 | D76: 2
A77: OG0003355 | B77: 2.549019608 | C77: 2 | D77: 1
A78: OG0003357 | B78: 2.549019608 | C78: 2 | D78: 1
A79: OG0003376 | B79: 2.549019608 | C79: 2 | D79: 1
A80: OG0003381 | B80: 2.549019608 | C80: 2 | D80: 1
A81: OG0003393 | B81: 2.549019608 | C81: 2 | D81: 3
A82: OG0003397 | B82: 2.549019608 | C82: 2 | D82: 2
A83: OG0003399 | B83: 2.549019608 | C83: 2 | D83: 1
A84: OG0003413 | B84: 2.529411765 | C84: 2 | D84: 1
A85: OG0003415 | B85: 2.529411765 | C85: 2 | D85: 1
A86: OG0003421 | B86: 2.529411765 | C86: 2 | D86: 1
A87: OG0003433 | B87: 2.529411765 | C87: 2 | D87: 2
A88: OG0003458 | B88: 2.529411765 | C88: 2 | D88: 1
A89: OG0003462 | B89: 2.509803922 | C89: 2 | D89: 2
A90: OG0003480 | B90: 2.509803922 | C90: 2 | D90: 1
A91: OG0003481 | B91: 2.509803922 | C91: 2 | D91: 2
A92: OG0003491 | B92: 2.509803922 | C92: 3 | D92: 3
A93: OG0003495 | B93: 2.509803922 | C93: 2 | D93: 2
A94: OG0003541 | B94: 2.490196078 | C94: 2 | D94: 2
A95: OG0003548 | B95: 2.490196078 | C95: 2 | D95: 2
A96: OG0003553 | B96: 2.490196078 | C96: 2 | D96: 2
A97: OG0003557 | B97: 2.490196078 | C97: 2 | D97: 2
A98: OG0003567 | B98: 2.490196078 | C98: 2 | D98: 1
A99: OG0003572 | B99: 2.490196078 | C99: 2 | D99: 2
A100: OG0003578 | B100: 2.490196078 | C100: 2 | D100: 1
A101: OG0003582 | B101: 2.490196078 | C101: 2 | D101: 2
A102: OG0003618 | B102: 2.470588235 | C102: 2 | D102: 1
A103: OG0003631 | B103: 2.470588235 | C103: 2 | D103: 1
A104: OG0003638 | B104: 2.470588235 | C104: 2 | D104: 2
A105: OG0003646 | B105: 2.470588235 | C105: 2 | D105: 1
A106: OG0003658 | B106: 2.470588235 | C106: 2 | D106: 1
A107: OG0003661 | B107: 2.470588235 | C107: 2 | D107: 2
A108: OG0003673 | B108: 2.470588235 | C108: 2 | D108: 1
A109: OG0003695 | B109: 2.470588235 | C109: 2 | D109: 2
A110: OG0003711 | B110: 2.450980392 | C110: 2 | D110: 1
A111: OG0003729 | B111: 2.450980392 | C111: 2 | D111: 1
A112: OG0003730 | B112: 2.450980392 | C112: 2 | D112: 1
A113: OG0003739 | B113: 2.450980392 | C113: 2 | D113: 1
A114: OG0003746 | B114: 2.450980392 | C114: 2 | D114: 2
A115: OG0003759 | B115: 2.450980392 | C115: 2 | D115: 2
A116: OG0003773 | B116: 2.431372549 | C116: 2 | D116: 1
A117: OG0003774 | B117: 2.431372549 | C117: 2 | D117: 1
A118: OG0003781 | B118: 2.431372549 | C118: 2 | D118: 1
A119: OG0003786 | B119: 2.431372549 | C119: 2 | D119: 2
A120: OG0003796 | B120: 2.431372549 | C120: 2 | D120: 2
A121: OG0003799 | B121: 2.431372549 | C121: 2 | D121: 2
A122: OG0003806 | B122: 2.431372549 | C122: 2 | D122: 1
A123: OG0003812 | B123: 2.431372549 | C123: 2 | D123: 2
A124: OG0003816 | B124: 2.431372549 | C124: 2 | D124: 2
A125: OG0003821 | B125: 2.431372549 | C125: 2 | D125: 1
A126: OG0003832 | B126: 2.431372549 | C126: 2 | D126: 1
A127: OG0003838 | B127: 2.431372549 | C127: 2 | D127: 1
A128: OG0003840 | B128: 2.431372549 | C128: 2 | D128: 2
A129: OG0003845 | B129: 2.431372549 | C129: 2 | D129: 1
A130: OG0003846 | B130: 2.431372549 | C130: 2 | D130: 2
A131: OG0003874 | B131: 2.411764706 | C131: 2 | D131: 1
A132: OG0003883 | B132: 2.411764706 | C132: 2 | D132: 1
A133: OG0003892 | B133: 2.411764706 | C133: 2 | D133: 1
A134: OG0003907 | B134: 2.411764706 | C134: 2 | D134: 1
A135: OG0003918 | B135: 2.411764706 | C135: 2 | D135: 1
A136: OG0003924 | B136: 2.411764706 | C136: 2 | D136: 2
A137: OG0003934 | B137: 2.392156863 | C137: 2 | D137: 2
A138: OG0003980 | B138: 2.392156863 | C138: 2 | D138: 1
A139: OG0003989 | B139: 2.392156863 | C139: 2 | D139: 1
A140: OG0003990 | B140: 2.392156863 | C140: 2 | D140: 1
A141: OG0004022 | B141: 2.37254902 | C141: 2 | D141: 1
A142: OG0004058 | B142: 2.37254902 | C142: 2 | D142: 2
A143: OG0004066 | B143: 2.37254902 | C143: 2 | D143: 1
A144: OG0004074 | B144: 2.37254902 | C144: 2 | D144: 1
A145: OG0004085 | B145: 2.352941176 | C145: 2 | D145: 2
A146: OG0004108 | B146: 2.352941176 | C146: 2 | D146: 2
A147: OG0004118 | B147: 2.352941176 | C147: 2 | D147: 2
A148: OG0004121 | B148: 2.352941176 | C148: 2 | D148: 1
A149: OG0004128 | B149: 2.352941176 | C149: 2 | D149: 1
A150: OG0004132 | B150: 2.352941176 | C150: 2 | D150: 1
A151: OG0004135 | B151: 2.352941176 | C151: 2 | D151: 1
A152: OG0004136 | B152: 2.352941176 | C152: 2 | D152: 1
A153: OG0004148 | B153: 2.352941176 | C153: 2 | D153: 1
A154: OG0004174 | B154: 2.333333333 | C154: 2 | D154: 1
A155: OG0004188 | B155: 2.333333333 | C155: 2 | D155: 1
A156: OG0004191 | B156: 2.333333333 | C156: 2 | D156: 1
A157: OG0004204 | B157: 2.333333333 | C157: 2 | D157: 1
A158: OG0004218 | B158: 2.333333333 | C158: 2 | D158: 2
A159: OG0004228 | B159: 2.333333333 | C159: 2 | D159: 1
A160: OG0004232 | B160: 2.333333333 | C160: 2 | D160: 2
A161: OG0004233 | B161: 2.333333333 | C161: 2 | D161: 2
A162: OG0004251 | B162: 2.31372549 | C162: 2 | D162: 1
A163: OG0004258 | B163: 2.31372549 | C163: 2 | D163: 2
A164: OG0004269 | B164: 2.31372549 | C164: 2 | D164: 1
A165: OG0004280 | B165: 2.31372549 | C165: 2 | D165: 1
A166: OG0004297 | B166: 2.31372549 | C166: 2 | D166: 1
A167: OG0004305 | B167: 2.31372549 | C167: 2 | D167: 2
A168: OG0004310 | B168: 2.31372549 | C168: 2 | D168: 2
A169: OG0004313 | B169: 2.31372549 | C169: 2 | D169: 1
A170: OG0004315 | B170: 2.31372549 | C170: 2 | D170: 1
A171: OG0004321 | B171: 2.31372549 | C171: 2 | D171: 1
A172: OG0004329 | B172: 2.31372549 | C172: 2 | D172: 1
A173: OG0004330 | B173: 2.31372549 | C173: 2 | D173: 1
A174: OG0004334 | B174: 2.31372549 | C174: 2 | D174: 1
A175: OG0004362 | B175: 2.294117647 | C175: 2 | D175: 1
A176: OG0004367 | B176: 2.294117647 | C176: 2 | D176: 1
A177: OG0004394 | B177: 2.294117647 | C177: 2 | D177: 1
A178: OG0004396 | B178: 2.294117647 | C178: 2 | D178: 1
A179: OG0004399 | B179: 2.294117647 | C179: 2 | D179: 1
A180: OG0004403 | B180: 2.294117647 | C180: 2 | D180: 1
A181: OG0004413 | B181: 2.294117647 | C181: 2 | D181: 1
A182: OG0004414 | B182: 2.294117647 | C182: 2 | D182: 2
A183: OG0004415 | B183: 2.294117647 | C183: 2 | D183: 2
A184: OG0004442 | B184: 2.274509804 | C184: 2 | D184: 2
A185: OG0004444 | B185: 2.274509804 | C185: 2 | D185: 2
A186: OG0004445 | B186: 2.274509804 | C186: 2 | D186: 1
A187: OG0004456 | B187: 2.274509804 | C187: 2 | D187: 1
A188: OG0004468 | B188: 2.274509804 | C188: 2 | D188: 2
A189: OG0004488 | B189: 2.274509804 | C189: 2 | D189: 1
A190: OG0004501 | B190: 2.274509804 | C190: 2 | D190: 1
A191: OG0004502 | B191: 2.274509804 | C191: 2 | D191: 1
A192: OG0004515 | B192: 2.274509804 | C192: 2 | D192: 2
A193: OG0004524 | B193: 2.274509804 | C193: 2 | D193: 1
A194: OG0004528 | B194: 2.274509804 | C194: 2 | D194: 1
A195: OG0004538 | B195: 2.274509804 | C195: 2 | D195: 1
A196: OG0004563 | B196: 2.254901961 | C196: 2 | D196: 2
A197: OG0004566 | B197: 2.254901961 | C197: 2 | D197: 2
A198: OG0004568 | B198: 2.254901961 | C198: 2 | D198: 2
A199: OG0004571 | B199: 2.254901961 | C199: 2 | D199: 2
A200: OG0004575 | B200: 2.254901961 | C200: 2 | D200: 1
... 2395 more rows

Sheet 2032 OGs good
A1: all 2594OGs | B1: 2032 OGs good for phylogeny | C1: VS
A2: OG0002134 | B2: OG0002134 | C2: =IF(COUNTIF(B$2:B$2033,A2)=0,"",A2) -> OG0002134 | E2: =COUNTIF(C2:C802,"") -> 154 | F2: 801 | G2: =E2/F2 -> 0.1922596754
A3: OG0002152 | B3: OG0002152 | C3: =IF(COUNTIF(B$2:B$2033,A3)=0,"",A3) -> OG0002152 | E3: =COUNTIF(C803:C1341,"") -> 117 | F3: 539 | G3: =E3/F3 -> 0.2170686456
A4: OG0002172 | B4: OG0002172 | C4: OG0002172 | E4: =COUNTIF(C1342:C2033,"") -> 184 | F4: 1254 | G4: 0.1467304625
A5: OG0002198 | B5: OG0002198 | C5: OG0002198
A6: OG0002200 | B6: OG0002200 | C6: OG0002200
A7: OG0002217 | B7: OG0002217 | C7: OG0002217
A8: OG0002248 | B8: OG0002248 | C8: OG0002248
A9: OG0002271 | B9: OG0002271 | C9: OG0002271
A10: OG0002326 | B10: OG0002326 | C10: OG0002326
A11: OG0002341 | B11: OG0002341 | C11: OG0002341
A12: OG0002360 | B12: OG0002360 | C12: OG0002360
A13: OG0002391 | B13: OG0002391 | C13: OG0002391
A14: OG0002441 | B14: OG0002458
A15: OG0002458 | B15: OG0002504 | C15: OG0002458
A16: OG0002504 | B16: OG0002513 | C16: OG0002504
A17: OG0002513 | B17: OG0002530 | C17: OG0002513
A18: OG0002530 | B18: OG0002550 | C18: OG0002530
A19: OG0002550 | B19: OG0002590 | C19: OG0002550
A20: OG0002590 | B20: OG0002629 | C20: OG0002590
A21: OG0002629 | B21: OG0002643 | C21: OG0002629
A22: OG0002643 | B22: OG0002648 | C22: OG0002643
A23: OG0002648 | B23: OG0002654 | C23: OG0002648
A24: OG0002654 | B24: OG0002680 | C24: OG0002654
A25: OG0002680 | B25: OG0002704 | C25: OG0002680
A26: OG0002704 | B26: OG0002714 | C26: OG0002704
A27: OG0002714 | B27: OG0002736 | C27: OG0002714
A28: OG0002736 | B28: OG0002750 | C28: OG0002736
A29: OG0002750 | B29: OG0002759 | C29: OG0002750
A30: OG0002759 | B30: OG0002811 | C30: OG0002759
A31: OG0002811 | B31: OG0002841 | C31: OG0002811
A32: OG0002841 | B32: OG0002866 | C32: OG0002841
A33: OG0002860 | B33: OG0002875
A34: OG0002866 | B34: OG0002895 | C34: OG0002866
A35: OG0002875 | B35: OG0002909 | C35: OG0002875
A36: OG0002895 | B36: OG0002939 | C36: OG0002895
A37: OG0002909 | B37: OG0002951 | C37: OG0002909
A38: OG0002911 | B38: OG0002958
A39: OG0002913 | B39: OG0002999
A40: OG0002939 | B40: OG0003007 | C40: OG0002939
A41: OG0002951 | B41: OG0003008 | C41: OG0002951
A42: OG0002958 | B42: OG0003023 | C42: OG0002958
A43: OG0002994 | B43: OG0003025
A44: OG0002999 | B44: OG0003027 | C44: OG0002999
A45: OG0003007 | B45: OG0003049 | C45: OG0003007
A46: OG0003008 | B46: OG0003102 | C46: OG0003008
A47: OG0003023 | B47: OG0003107 | C47: OG0003023
A48: OG0003025 | B48: OG0003108 | C48: OG0003025
A49: OG0003027 | B49: OG0003110 | C49: OG0003027
A50: OG0003049 | B50: OG0003114 | C50: OG0003049
A51: OG0003099 | B51: OG0003116
A52: OG0003102 | B52: OG0003118 | C52: OG0003102
A53: OG0003107 | B53: OG0003146 | C53: OG0003107
A54: OG0003108 | B54: OG0003185 | C54: OG0003108
A55: OG0003110 | B55: OG0003187 | C55: OG0003110
A56: OG0003114 | B56: OG0003204 | C56: OG0003114
A57: OG0003116 | B57: OG0003215 | C57: OG0003116
A58: OG0003118 | B58: OG0003226 | C58: OG0003118
A59: OG0003146 | B59: OG0003244 | C59: OG0003146
A60: OG0003185 | B60: OG0003262 | C60: OG0003185
A61: OG0003187 | B61: OG0003305 | C61: OG0003187
A62: OG0003204 | B62: OG0003312 | C62: OG0003204
A63: OG0003215 | B63: OG0003317 | C63: OG0003215
A64: OG0003226 | B64: OG0003337 | C64: OG0003226
A65: OG0003244 | B65: OG0003345 | C65: OG0003244
A66: OG0003262 | B66: OG0003346 | C66: OG0003262
A67: OG0003278 | B67: OG0003347 | C67: =IF(COUNTIF(B$2:B$2033,A67)=0,"",A67) -> 
A68: OG0003291 | B68: OG0003355
A69: OG0003305 | B69: OG0003376 | C69: OG0003305
A70: OG0003311 | B70: OG0003381
A71: OG0003312 | B71: OG0003397 | C71: OG0003312
A72: OG0003317 | B72: OG0003399 | C72: OG0003317
A73: OG0003337 | B73: OG0003413 | C73: OG0003337
A74: OG0003345 | B74: OG0003421 | C74: OG0003345
A75: OG0003346 | B75: OG0003433 | C75: OG0003346
A76: OG0003347 | B76: OG0003458 | C76: OG0003347
A77: OG0003355 | B77: OG0003462 | C77: OG0003355
A78: OG0003357 | B78: OG0003480
A79: OG0003376 | B79: OG0003481 | C79: OG0003376
A80: OG0003381 | B80: OG0003491 | C80: OG0003381
A81: OG0003393 | B81: OG0003495
A82: OG0003397 | B82: OG0003541 | C82: OG0003397
A83: OG0003399 | B83: OG0003548 | C83: OG0003399
A84: OG0003413 | B84: OG0003553 | C84: OG0003413
A85: OG0003415 | B85: OG0003557
A86: OG0003421 | B86: OG0003567 | C86: OG0003421
A87: OG0003433 | B87: OG0003572 | C87: OG0003433
A88: OG0003458 | B88: OG0003582 | C88: OG0003458
A89: OG0003462 | B89: OG0003631 | C89: OG0003462
A90: OG0003480 | B90: OG0003646 | C90: OG0003480
A91: OG0003481 | B91: OG0003658 | C91: OG0003481
A92: OG0003491 | B92: OG0003661 | C92: OG0003491
A93: OG0003495 | B93: OG0003673 | C93: OG0003495
A94: OG0003541 | B94: OG0003695 | C94: OG0003541
A95: OG0003548 | B95: OG0003711 | C95: OG0003548
A96: OG0003553 | B96: OG0003729 | C96: OG0003553
A97: OG0003557 | B97: OG0003730 | C97: OG0003557
A98: OG0003567 | B98: OG0003739 | C98: OG0003567
A99: OG0003572 | B99: OG0003759 | C99: OG0003572
A100: OG0003578 | B100: OG0003773
A101: OG0003582 | B101: OG0003774 | C101: OG0003582
A102: OG0003618 | B102: OG0003781
A103: OG0003631 | B103: OG0003786 | C103: OG0003631
A104: OG0003638 | B104: OG0003796
A105: OG0003646 | B105: OG0003799 | C105: OG0003646
A106: OG0003658 | B106: OG0003806 | C106: OG0003658
A107: OG0003661 | B107: OG0003816 | C107: OG0003661
A108: OG0003673 | B108: OG0003821 | C108: OG0003673
A109: OG0003695 | B109: OG0003832 | C109: OG0003695
A110: OG0003711 | B110: OG0003838 | C110: OG0003711
A111: OG0003729 | B111: OG0003840 | C111: OG0003729
A112: OG0003730 | B112: OG0003845 | C112: OG0003730
A113: OG0003739 | B113: OG0003846 | C113: OG0003739
A114: OG0003746 | B114: OG0003874
A115: OG0003759 | B115: OG0003892 | C115: OG0003759
A116: OG0003773 | B116: OG0003907 | C116: OG0003773
A117: OG0003774 | B117: OG0003918 | C117: OG0003774
A118: OG0003781 | B118: OG0003924 | C118: OG0003781
A119: OG0003786 | B119: OG0003934 | C119: OG0003786
A120: OG0003796 | B120: OG0003980 | C120: OG0003796
A121: OG0003799 | B121: OG0003990 | C121: OG0003799
A122: OG0003806 | B122: OG0004022 | C122: OG0003806
A123: OG0003812 | B123: OG0004066
A124: OG0003816 | B124: OG0004074 | C124: OG0003816
A125: OG0003821 | B125: OG0004108 | C125: OG0003821
A126: OG0003832 | B126: OG0004118 | C126: OG0003832
A127: OG0003838 | B127: OG0004121 | C127: OG0003838
A128: OG0003840 | B128: OG0004128 | C128: OG0003840
A129: OG0003845 | B129: OG0004132 | C129: OG0003845
A130: OG0003846 | B130: OG0004135 | C130: OG0003846
A131: OG0003874 | B131: OG0004136 | C131: =IF(COUNTIF(B$2:B$2033,A131)=0,"",A131) -> OG0003874
A132: OG0003883 | B132: OG0004148
A133: OG0003892 | B133: OG0004174 | C133: OG0003892
A134: OG0003907 | B134: OG0004188 | C134: OG0003907
A135: OG0003918 | B135: OG0004191 | C135: OG0003918
A136: OG0003924 | B136: OG0004204 | C136: OG0003924
A137: OG0003934 | B137: OG0004218 | C137: OG0003934
A138: OG0003980 | B138: OG0004232 | C138: OG0003980
A139: OG0003989 | B139: OG0004233
A140: OG0003990 | B140: OG0004251 | C140: OG0003990
A141: OG0004022 | B141: OG0004258 | C141: OG0004022
A142: OG0004058 | B142: OG0004280
A143: OG0004066 | B143: OG0004297 | C143: OG0004066
A144: OG0004074 | B144: OG0004305 | C144: OG0004074
A145: OG0004085 | B145: OG0004310
A146: OG0004108 | B146: OG0004315 | C146: OG0004108
A147: OG0004118 | B147: OG0004321 | C147: OG0004118
A148: OG0004121 | B148: OG0004329 | C148: OG0004121
A149: OG0004128 | B149: OG0004330 | C149: OG0004128
A150: OG0004132 | B150: OG0004367 | C150: OG0004132
A151: OG0004135 | B151: OG0004394 | C151: OG0004135
A152: OG0004136 | B152: OG0004399 | C152: OG0004136
A153: OG0004148 | B153: OG0004403 | C153: OG0004148
A154: OG0004174 | B154: OG0004413 | C154: OG0004174
A155: OG0004188 | B155: OG0004414 | C155: OG0004188
A156: OG0004191 | B156: OG0004415 | C156: OG0004191
A157: OG0004204 | B157: OG0004445 | C157: OG0004204
A158: OG0004218 | B158: OG0004468 | C158: OG0004218
A159: OG0004228 | B159: OG0004502
A160: OG0004232 | B160: OG0004524 | C160: OG0004232
A161: OG0004233 | B161: OG0004528 | C161: OG0004233
A162: OG0004251 | B162: OG0004538 | C162: OG0004251
A163: OG0004258 | B163: OG0004563 | C163: OG0004258
A164: OG0004269 | B164: OG0004566
A165: OG0004280 | B165: OG0004571 | C165: OG0004280
A166: OG0004297 | B166: OG0004575 | C166: OG0004297
A167: OG0004305 | B167: OG0004581 | C167: OG0004305
A168: OG0004310 | B168: OG0004582 | C168: OG0004310
A169: OG0004313 | B169: OG0004596
A170: OG0004315 | B170: OG0004599 | C170: OG0004315
A171: OG0004321 | B171: OG0004601 | C171: OG0004321
A172: OG0004329 | B172: OG0004631 | C172: OG0004329
A173: OG0004330 | B173: OG0004639 | C173: OG0004330
A174: OG0004334 | B174: OG0004659
A175: OG0004362 | B175: OG0004664
A176: OG0004367 | B176: OG0004666 | C176: OG0004367
A177: OG0004394 | B177: OG0004687 | C177: OG0004394
A178: OG0004396 | B178: OG0004695
A179: OG0004399 | B179: OG0004699 | C179: OG0004399
A180: OG0004403 | B180: OG0004703 | C180: OG0004403
A181: OG0004413 | B181: OG0004706 | C181: OG0004413
A182: OG0004414 | B182: OG0004716 | C182: OG0004414
A183: OG0004415 | B183: OG0004728 | C183: OG0004415
A184: OG0004442 | B184: OG0004756
A185: OG0004444 | B185: OG0004761
A186: OG0004445 | B186: OG0004777 | C186: OG0004445
A187: OG0004456 | B187: OG0004781
A188: OG0004468 | B188: OG0004782 | C188: OG0004468
A189: OG0004488 | B189: OG0004786
A190: OG0004501 | B190: OG0004795
A191: OG0004502 | B191: OG0004802 | C191: OG0004502
A192: OG0004515 | B192: OG0004842
A193: OG0004524 | B193: OG0004857 | C193: OG0004524
A194: OG0004528 | B194: OG0004872 | C194: OG0004528
A195: OG0004538 | B195: OG0004874 | C195: =IF(COUNTIF(B$2:B$2033,A195)=0,"",A195) -> OG0004538
A196: OG0004563 | B196: OG0004877 | C196: OG0004563
A197: OG0004566 | B197: OG0004884 | C197: OG0004566
A198: OG0004568 | B198: OG0004902
A199: OG0004571 | B199: OG0004903 | C199: OG0004571
A200: OG0004575 | B200: OG0004922 | C200: OG0004575
... 2395 more rows
